Workbook

Sheet القاهره
A1: NO | B1: رقم الصنف | C1: الصنف | D1: المجموعه | E1: المجموعه 2 | F1: المجموعه | G1: الوحده | H1: رصيد مخزن 111 | I1: رصيد مخزن 138 | J1: رصيد مخزن 139
A2: =+IF(B2="","",SUBTOTAL(3,B$2:B2)) -> 1 | B2: 110203201 | C2: صدربط مدخن | D2: صدربط مدخن | E2: 0 | F2: بط | G2: 0 | H2: =IFERROR(VLOOKUP($B2,'مخزن 111'!$D$7:$I$249,6,0),0) -> 0 | I2: =IFERROR(VLOOKUP($B2,'مخزن 138'!$C$5:$G$110,5,0),0) -> 0 | J2: =IFERROR(VLOOKUP($B2,'مخزن 139'!$E$7:$J$161,6,0),0) -> 0
A3: =+IF(B3="","",SUBTOTAL(3,B$2:B3)) -> 2 | B3: 110309304 | C3: سمك تراوت | D3: تراوت | E3: 0 | F3: اسماك مدخنة | G3: 0 | H3: =IFERROR(VLOOKUP($B3,'مخزن 111'!$D$7:$I$249,6,0),0) -> 0 | I3: =IFERROR(VLOOKUP($B3,'مخزن 138'!$C$5:$G$110,5,0),0) -> 0 | J3: =IFERROR(VLOOKUP($B3,'مخزن 139'!$E$7:$J$161,6,0),0) -> 0
A4: =+IF(B4="","",SUBTOTAL(3,B$2:B4)) -> 3 | B4: 111103324 | C4: فواجراة كبدبط حلال | D4: كبدبط حلل | E4: 0 | F4: فواجراة | G4: 0 | H4: =IFERROR(VLOOKUP($B4,'مخزن 111'!$D$7:$I$249,6,0),0) -> 0 | I4: =IFERROR(VLOOKUP($B4,'مخزن 138'!$C$5:$G$110,5,0),0) -> 0 | J4: =IFERROR(VLOOKUP($B4,'مخزن 139'!$E$7:$J$161,6,0),0) -> 0
A5: =+IF(B5="","",SUBTOTAL(3,B$2:B5)) -> 4 | B5: 111104101 | C5: كريمة مشروم | D5: SOUP | E5: شوربه | G5: EA. | H5: =IFERROR(VLOOKUP($B5,'مخزن 111'!$D$7:$I$249,6,0),0) -> 8988 | I5: =IFERROR(VLOOKUP($B5,'مخزن 138'!$C$5:$G$110,5,0),0) -> 0 | J5: =IFERROR(VLOOKUP($B5,'مخزن 139'!$E$7:$J$161,6,0),0) -> 0
A6: =+IF(B6="","",SUBTOTAL(3,B$2:B6)) -> 5 | B6: 111104102 | C6: خضروات | D6: SOUP | E6: شوربه | G6: EA. | H6: =IFERROR(VLOOKUP($B6,'مخزن 111'!$D$7:$I$249,6,0),0) -> 8988 | I6: =IFERROR(VLOOKUP($B6,'مخزن 138'!$C$5:$G$110,5,0),0) -> 0 | J6: =IFERROR(VLOOKUP($B6,'مخزن 139'!$E$7:$J$161,6,0),0) -> 0
A7: =+IF(B7="","",SUBTOTAL(3,B$2:B7)) -> 6 | B7: 111104103 | C7: طماطم | D7: SOUP | E7: شوربه | G7: EA. | H7: =IFERROR(VLOOKUP($B7,'مخزن 111'!$D$7:$I$249,6,0),0) -> 10416 | I7: =IFERROR(VLOOKUP($B7,'مخزن 138'!$C$5:$G$110,5,0),0) -> 0 | J7: =IFERROR(VLOOKUP($B7,'مخزن 139'!$E$7:$J$161,6,0),0) -> 0
A8: =+IF(B8="","",SUBTOTAL(3,B$2:B8)) -> 7 | B8: 111104104 | C8: كريمةطماطم | D8: SOUP | E8: شوربه | G8: EA. | H8: =IFERROR(VLOOKUP($B8,'مخزن 111'!$D$7:$I$249,6,0),0) -> 10080 | I8: =IFERROR(VLOOKUP($B8,'مخزن 138'!$C$5:$G$110,5,0),0) -> 0 | J8: =IFERROR(VLOOKUP($B8,'مخزن 139'!$E$7:$J$161,6,0),0) -> 0
A9: =+IF(B9="","",SUBTOTAL(3,B$2:B9)) -> 8 | B9: 111104105 | C9: طماطم توسك | D9: SOUP | E9: شوربه | G9: EA. | H9: =IFERROR(VLOOKUP($B9,'مخزن 111'!$D$7:$I$249,6,0),0) -> 10500 | I9: =IFERROR(VLOOKUP($B9,'مخزن 138'!$C$5:$G$110,5,0),0) -> 0 | J9: =IFERROR(VLOOKUP($B9,'مخزن 139'!$E$7:$J$161,6,0),0) -> 0
A10: =+IF(B10="","",SUBTOTAL(3,B$2:B10)) -> 9 | B10: 111105301 | C10: اكل يهود | D10: اكل يهودي | E10: KOSHER MEAL | F10: اكل يهودى | G10: EA. | H10: =IFERROR(VLOOKUP($B10,'مخزن 111'!$D$7:$I$249,6,0),0) -> 79 | I10: =IFERROR(VLOOKUP($B10,'مخزن 138'!$C$5:$G$110,5,0),0) -> 0 | J10: =IFERROR(VLOOKUP($B10,'مخزن 139'!$E$7:$J$161,6,0),0) -> 0
A11: =+IF(B11="","",SUBTOTAL(3,B$2:B11)) -> 10 | B11: 111105302 | C11: وجبات يهود ساخن | D11: غ و ع ساخن | E11: KOSHER MEAL | F11: اكل يهودى | G11: EA. | H11: =IFERROR(VLOOKUP($B11,'مخزن 111'!$D$7:$I$249,6,0),0) -> 206 | I11: =IFERROR(VLOOKUP($B11,'مخزن 138'!$C$5:$G$110,5,0),0) -> 0 | J11: =IFERROR(VLOOKUP($B11,'مخزن 139'!$E$7:$J$161,6,0),0) -> 0
A12: =+IF(B12="","",SUBTOTAL(3,B$2:B12)) -> 11 | B12: 111105304 | C12: افطار كونتينتال يهود | D12: اكل يهودى | E12: KOSHER MEAL | F12: T ECON | G12: EA. | H12: =IFERROR(VLOOKUP($B12,'مخزن 111'!$D$7:$I$249,6,0),0) -> 140 | I12: =IFERROR(VLOOKUP($B12,'مخزن 138'!$C$5:$G$110,5,0),0) -> 0 | J12: =IFERROR(VLOOKUP($B12,'مخزن 139'!$E$7:$J$161,6,0),0) -> 0
A13: =+IF(B13="","",SUBTOTAL(3,B$2:B13)) -> 12 | B13: 111401319 | C13: بسكويت بطعم الاورجانكووالبرابكيو | D13: أورجانووبا | E13: 0 | F13: بسكويت | G13: 0 | H13: =IFERROR(VLOOKUP($B13,'مخزن 111'!$D$7:$I$249,6,0),0) -> 0 | I13: =IFERROR(VLOOKUP($B13,'مخزن 138'!$C$5:$G$110,5,0),0) -> 0 | J13: =IFERROR(VLOOKUP($B13,'مخزن 139'!$E$7:$J$161,6,0),0) -> 0
A14: =+IF(B14="","",SUBTOTAL(3,B$2:B14)) -> 13 | B14: 111401320 | C14: بسكويت بطعم الكمون | D14: كمون | E14: 0 | F14: بسكويت | G14: 0 | H14: =IFERROR(VLOOKUP($B14,'مخزن 111'!$D$7:$I$249,6,0),0) -> 0 | I14: =IFERROR(VLOOKUP($B14,'مخزن 138'!$C$5:$G$110,5,0),0) -> 0 | J14: =IFERROR(VLOOKUP($B14,'مخزن 139'!$E$7:$J$161,6,0),0) -> 0
A15: =+IF(B15="","",SUBTOTAL(3,B$2:B15)) -> 14 | B15: 111401321 | C15: بسكويت بطعم الجبنة | D15: الجبنه | E15: 0 | F15: بسكويت | G15: 0 | H15: =IFERROR(VLOOKUP($B15,'مخزن 111'!$D$7:$I$249,6,0),0) -> 0 | I15: =IFERROR(VLOOKUP($B15,'مخزن 138'!$C$5:$G$110,5,0),0) -> 0 | J15: =IFERROR(VLOOKUP($B15,'مخزن 139'!$E$7:$J$161,6,0),0) -> 0
A16: =+IF(B16="","",SUBTOTAL(3,B$2:B16)) -> 15 | B16: 111401322 | C16: بسكويت بطعم الكمون والباربكيو | D16: كمون وبابر | E16: 0 | F16: بسكويت | G16: 0 | H16: =IFERROR(VLOOKUP($B16,'مخزن 111'!$D$7:$I$249,6,0),0) -> 0 | I16: =IFERROR(VLOOKUP($B16,'مخزن 138'!$C$5:$G$110,5,0),0) -> 0 | J16: =IFERROR(VLOOKUP($B16,'مخزن 139'!$E$7:$J$161,6,0),0) -> 0
A17: =+IF(B17="","",SUBTOTAL(3,B$2:B17)) -> 16 | B17: 111401323 | C17: بسكويت بطعم الجبنة والباربكيو | D17: جبنه وبابر | E17: 0 | F17: بسكويت | G17: 0 | H17: =IFERROR(VLOOKUP($B17,'مخزن 111'!$D$7:$I$249,6,0),0) -> 0 | I17: =IFERROR(VLOOKUP($B17,'مخزن 138'!$C$5:$G$110,5,0),0) -> 0 | J17: =IFERROR(VLOOKUP($B17,'مخزن 139'!$E$7:$J$161,6,0),0) -> 0
A18: =+IF(B18="","",SUBTOTAL(3,B$2:B18)) -> 17 | B18: 111401324 | C18: بسكويت بطعم الاورجانكو | D18: أورجانو | E18: 0 | F18: بسكويت | G18: 0 | H18: =IFERROR(VLOOKUP($B18,'مخزن 111'!$D$7:$I$249,6,0),0) -> 0 | I18: =IFERROR(VLOOKUP($B18,'مخزن 138'!$C$5:$G$110,5,0),0) -> 0 | J18: =IFERROR(VLOOKUP($B18,'مخزن 139'!$E$7:$J$161,6,0),0) -> 0
A19: =+IF(B19="","",SUBTOTAL(3,B$2:B19)) -> 18 | B19: 120101107 | C19: كبدة | D19: كبدة | E19: 0 | F19: بتلو | G19: 0 | H19: =IFERROR(VLOOKUP($B19,'مخزن 111'!$D$7:$I$249,6,0),0) -> 0 | I19: =IFERROR(VLOOKUP($B19,'مخزن 138'!$C$5:$G$110,5,0),0) -> 0 | J19: =IFERROR(VLOOKUP($B19,'مخزن 139'!$E$7:$J$161,6,0),0) -> 0
A20: =+IF(B20="","",SUBTOTAL(3,B$2:B20)) -> 19 | B20: 120101109 | C20: لحوم بتلو مشفاة لبانى مجمدة | D20: بتلومشفى | E20: 0 | F20: بتلو | G20: 0 | H20: =IFERROR(VLOOKUP($B20,'مخزن 111'!$D$7:$I$249,6,0),0) -> 0 | I20: =IFERROR(VLOOKUP($B20,'مخزن 138'!$C$5:$G$110,5,0),0) -> 0 | J20: =IFERROR(VLOOKUP($B20,'مخزن 139'!$E$7:$J$161,6,0),0) -> 0
A21: =+IF(B21="","",SUBTOTAL(3,B$2:B21)) -> 20 | B21: 120101115 | C21: لحوم فلتو بتلو مجمد | D21: فلتو بتلو | E21: 0 | F21: بتلو | G21: 0 | H21: =IFERROR(VLOOKUP($B21,'مخزن 111'!$D$7:$I$249,6,0),0) -> 0 | I21: =IFERROR(VLOOKUP($B21,'مخزن 138'!$C$5:$G$110,5,0),0) -> 0 | J21: =IFERROR(VLOOKUP($B21,'مخزن 139'!$E$7:$J$161,6,0),0) -> 0
A22: =+IF(B22="","",SUBTOTAL(3,B$2:B22)) -> 21 | B22: 120101116 | C22: لحوم موزة بتلو | D22: موزة بتلو | E22: 0 | F22: بتلو | G22: 0 | H22: =IFERROR(VLOOKUP($B22,'مخزن 111'!$D$7:$I$249,6,0),0) -> 0 | I22: =IFERROR(VLOOKUP($B22,'مخزن 138'!$C$5:$G$110,5,0),0) -> 0 | J22: =IFERROR(VLOOKUP($B22,'مخزن 139'!$E$7:$J$161,6,0),0) -> 0
A23: =+IF(B23="","",SUBTOTAL(3,B$2:B23)) -> 22 | B23: 120101119 | C23: لحوم بتلو 4 اجزاء امامى | D23: أجزاءأمام | E23: 0 | F23: بتلو4 | G23: 0 | H23: =IFERROR(VLOOKUP($B23,'مخزن 111'!$D$7:$I$249,6,0),0) -> 0 | I23: =IFERROR(VLOOKUP($B23,'مخزن 138'!$C$5:$G$110,5,0),0) -> 0 | J23: =IFERROR(VLOOKUP($B23,'مخزن 139'!$E$7:$J$161,6,0),0) -> 0
A24: =+IF(B24="","",SUBTOTAL(3,B$2:B24)) -> 23 | B24: 120101126 | C24: لحوم ريش بتلو مجمد بلدى | D24: ريش مجمدبل | E24: 0 | F24: بتلو | G24: 0 | H24: =IFERROR(VLOOKUP($B24,'مخزن 111'!$D$7:$I$249,6,0),0) -> 0 | I24: =IFERROR(VLOOKUP($B24,'مخزن 138'!$C$5:$G$110,5,0),0) -> 0 | J24: =IFERROR(VLOOKUP($B24,'مخزن 139'!$E$7:$J$161,6,0),0) -> 0
A25: =+IF(B25="","",SUBTOTAL(3,B$2:B25)) -> 24 | B25: 120101129 | C25: لحوم فخذة بتلو نيوزلاندى قطع | D25: ف/ب/نوزلند | E25: 0 | F25: بتلو | G25: 0 | H25: =IFERROR(VLOOKUP($B25,'مخزن 111'!$D$7:$I$249,6,0),0) -> 0 | I25: =IFERROR(VLOOKUP($B25,'مخزن 138'!$C$5:$G$110,5,0),0) -> 0 | J25: =IFERROR(VLOOKUP($B25,'مخزن 139'!$E$7:$J$161,6,0),0) -> 0
A26: =+IF(B26="","",SUBTOTAL(3,B$2:B26)) -> 25 | B26: 120101130 | C26: لحوم مفروم بتلو | D26: مفروم بتلو | E26: 0 | F26: بتلو | G26: 0 | H26: =IFERROR(VLOOKUP($B26,'مخزن 111'!$D$7:$I$249,6,0),0) -> 0 | I26: =IFERROR(VLOOKUP($B26,'مخزن 138'!$C$5:$G$110,5,0),0) -> 0 | J26: =IFERROR(VLOOKUP($B26,'مخزن 139'!$E$7:$J$161,6,0),0) -> 0
A27: =+IF(B27="","",SUBTOTAL(3,B$2:B27)) -> 26 | B27: 120102107 | C27: لحوم فخذة ضانى مشفى | D27: ف/ضا/مشفى | E27: 0 | F27: ضانى | G27: 0 | H27: =IFERROR(VLOOKUP($B27,'مخزن 111'!$D$7:$I$249,6,0),0) -> 0 | I27: =IFERROR(VLOOKUP($B27,'مخزن 138'!$C$5:$G$110,5,0),0) -> 0 | J27: =IFERROR(VLOOKUP($B27,'مخزن 139'!$E$7:$J$161,6,0),0) -> 0
A28: =+IF(B28="","",SUBTOTAL(3,B$2:B28)) -> 27 | B28: 120102111 | C28: لحوم ريش ضانى بلدى | D28: ريش ضانى/ب | E28: 0 | F28: ضانى | G28: 0 | H28: =IFERROR(VLOOKUP($B28,'مخزن 111'!$D$7:$I$249,6,0),0) -> 0 | I28: =IFERROR(VLOOKUP($B28,'مخزن 138'!$C$5:$G$110,5,0),0) -> 0 | J28: =IFERROR(VLOOKUP($B28,'مخزن 139'!$E$7:$J$161,6,0),0) -> 0
A29: =+IF(B29="","",SUBTOTAL(3,B$2:B29)) -> 28 | B29: 120102112 | C29: لحوم فخذة ضانى بالعظم مجمدة | D29: فخدضانى عظ | E29: 0 | F29: ضانى | G29: 0 | H29: =IFERROR(VLOOKUP($B29,'مخزن 111'!$D$7:$I$249,6,0),0) -> 0 | I29: =IFERROR(VLOOKUP($B29,'مخزن 138'!$C$5:$G$110,5,0),0) -> 0 | J29: =IFERROR(VLOOKUP($B29,'مخزن 139'!$E$7:$J$161,6,0),0) -> 0
A30: =+IF(B30="","",SUBTOTAL(3,B$2:B30)) -> 29 | B30: 120102113 | C30: لحوم ريش ضانى مستورد بالعظم | D30: ريش ضانى م | E30: 0 | F30: ضانى | G30: 0 | H30: =IFERROR(VLOOKUP($B30,'مخزن 111'!$D$7:$I$249,6,0),0) -> 0 | I30: =IFERROR(VLOOKUP($B30,'مخزن 138'!$C$5:$G$110,5,0),0) -> 0 | J30: =IFERROR(VLOOKUP($B30,'مخزن 139'!$E$7:$J$161,6,0),0) -> 0
A31: =+IF(B31="","",SUBTOTAL(3,B$2:B31)) -> 30 | B31: 120102115 | C31: ريش ضانى | D31: LAMB | E31: ضانى | G31: KGM | H31: =IFERROR(VLOOKUP($B31,'مخزن 111'!$D$7:$I$249,6,0),0) -> 127.12 | I31: =IFERROR(VLOOKUP($B31,'مخزن 138'!$C$5:$G$110,5,0),0) -> 0 | J31: =IFERROR(VLOOKUP($B31,'مخزن 139'!$E$7:$J$161,6,0),0) -> 0
A32: =+IF(B32="","",SUBTOTAL(3,B$2:B32)) -> 31 | B32: 120102117 | C32: لحوم لية ضانى | D32: ليه ضانى | E32: 0 | F32: ضانى | G32: 0 | H32: =IFERROR(VLOOKUP($B32,'مخزن 111'!$D$7:$I$249,6,0),0) -> 0 | I32: =IFERROR(VLOOKUP($B32,'مخزن 138'!$C$5:$G$110,5,0),0) -> 0 | J32: =IFERROR(VLOOKUP($B32,'مخزن 139'!$E$7:$J$161,6,0),0) -> 0
A33: =+IF(B33="","",SUBTOTAL(3,B$2:B33)) -> 32 | B33: 120102118 | C33: مصارين هنك سجق 12 سم | D33: هنك سجق12س | E33: 0 | F33: ضانى | G33: 0 | H33: =IFERROR(VLOOKUP($B33,'مخزن 111'!$D$7:$I$249,6,0),0) -> 0 | I33: =IFERROR(VLOOKUP($B33,'مخزن 138'!$C$5:$G$110,5,0),0) -> 0 | J33: =IFERROR(VLOOKUP($B33,'مخزن 139'!$E$7:$J$161,6,0),0) -> 0
A34: =+IF(B34="","",SUBTOTAL(3,B$2:B34)) -> 33 | B34: 120103103 | C34: لحوم عروق كندوز | D34: عروق | E34: 0 | F34: كندوز | G34: 0 | H34: =IFERROR(VLOOKUP($B34,'مخزن 111'!$D$7:$I$249,6,0),0) -> 0 | I34: =IFERROR(VLOOKUP($B34,'مخزن 138'!$C$5:$G$110,5,0),0) -> 0 | J34: =IFERROR(VLOOKUP($B34,'مخزن 139'!$E$7:$J$161,6,0),0) -> 0
A35: =+IF(B35="","",SUBTOTAL(3,B$2:B35)) -> 34 | B35: 120103111 | C35: لحوم كندوز روزبيف مستورد | D35: روزبيف | E35: 0 | F35: كندوز | G35: 0 | H35: =IFERROR(VLOOKUP($B35,'مخزن 111'!$D$7:$I$249,6,0),0) -> 0 | I35: =IFERROR(VLOOKUP($B35,'مخزن 138'!$C$5:$G$110,5,0),0) -> 0 | J35: =IFERROR(VLOOKUP($B35,'مخزن 139'!$E$7:$J$161,6,0),0) -> 0
A36: =+IF(B36="","",SUBTOTAL(3,B$2:B36)) -> 35 | B36: 120103203 | C36: لحوم فلتو كندوز مستورد برازيلى | D36: كندوز | E36: 0 | F36: Nفلتومستور | G36: 0 | H36: =IFERROR(VLOOKUP($B36,'مخزن 111'!$D$7:$I$249,6,0),0) -> 0 | I36: =IFERROR(VLOOKUP($B36,'مخزن 138'!$C$5:$G$110,5,0),0) -> 43 | J36: =IFERROR(VLOOKUP($B36,'مخزن 139'!$E$7:$J$161,6,0),0) -> 15.79
A37: =+IF(B37="","",SUBTOTAL(3,B$2:B37)) -> 36 | B37: 120103204 | C37: لحوم وش فخذة كندوز مستورد | D37: وش فخدة مس | E37: 0 | F37: كندوز | G37: 0 | H37: =IFERROR(VLOOKUP($B37,'مخزن 111'!$D$7:$I$249,6,0),0) -> 0 | I37: =IFERROR(VLOOKUP($B37,'مخزن 138'!$C$5:$G$110,5,0),0) -> 0 | J37: =IFERROR(VLOOKUP($B37,'مخزن 139'!$E$7:$J$161,6,0),0) -> 0
A38: =+IF(B38="","",SUBTOTAL(3,B$2:B38)) -> 37 | B38: 120103207 | C38: لحوم كباب حلة كندوز | D38: كباب حلة | E38: 0 | F38: كندوز | G38: 0 | H38: =IFERROR(VLOOKUP($B38,'مخزن 111'!$D$7:$I$249,6,0),0) -> 0 | I38: =IFERROR(VLOOKUP($B38,'مخزن 138'!$C$5:$G$110,5,0),0) -> 0 | J38: =IFERROR(VLOOKUP($B38,'مخزن 139'!$E$7:$J$161,6,0),0) -> 0
A39: =+IF(B39="","",SUBTOTAL(3,B$2:B39)) -> 38 | B39: 120103210 | C39: لحوم ظهر فخذة كندوز برازيلى | D39: ظهرفخدةبرا | E39: 0 | F39: كندوز | G39: 0 | H39: =IFERROR(VLOOKUP($B39,'مخزن 111'!$D$7:$I$249,6,0),0) -> 0 | I39: =IFERROR(VLOOKUP($B39,'مخزن 138'!$C$5:$G$110,5,0),0) -> 0 | J39: =IFERROR(VLOOKUP($B39,'مخزن 139'!$E$7:$J$161,6,0),0) -> 0
A40: =+IF(B40="","",SUBTOTAL(3,B$2:B40)) -> 39 | B40: 120103212 | C40: لحوم اجزاء امامية سن كندوز مستورد | D40: ج امامى سن | E40: 0 | F40: كندوز | G40: 0 | H40: =IFERROR(VLOOKUP($B40,'مخزن 111'!$D$7:$I$249,6,0),0) -> 0 | I40: =IFERROR(VLOOKUP($B40,'مخزن 138'!$C$5:$G$110,5,0),0) -> 0 | J40: =IFERROR(VLOOKUP($B40,'مخزن 139'!$E$7:$J$161,6,0),0) -> 0
A41: =+IF(B41="","",SUBTOTAL(3,B$2:B41)) -> 40 | B41: 120103214 | C41: لحوم كندوز وش فخذة برازيلى | D41: وش ف برزيل | E41: 0 | F41: كندوز | G41: 0 | H41: =IFERROR(VLOOKUP($B41,'مخزن 111'!$D$7:$I$249,6,0),0) -> 0 | I41: =IFERROR(VLOOKUP($B41,'مخزن 138'!$C$5:$G$110,5,0),0) -> 204 | J41: =IFERROR(VLOOKUP($B41,'مخزن 139'!$E$7:$J$161,6,0),0) -> 93.662
A42: =+IF(B42="","",SUBTOTAL(3,B$2:B42)) -> 41 | B42: 120103215 | C42: لحوم كندوز ظهر فخذة امريكى | D42: ك/ظهرفخدةأ | E42: 0 | F42: كندوز | G42: 0 | H42: =IFERROR(VLOOKUP($B42,'مخزن 111'!$D$7:$I$249,6,0),0) -> 0 | I42: =IFERROR(VLOOKUP($B42,'مخزن 138'!$C$5:$G$110,5,0),0) -> 0 | J42: =IFERROR(VLOOKUP($B42,'مخزن 139'!$E$7:$J$161,6,0),0) -> 0
A43: =+IF(B43="","",SUBTOTAL(3,B$2:B43)) -> 42 | B43: 120103216 | C43: لحوم كندوز مفروم | D43: لحم مفروم | E43: 0 | F43: كندوز | G43: 0 | H43: =IFERROR(VLOOKUP($B43,'مخزن 111'!$D$7:$I$249,6,0),0) -> 0 | I43: =IFERROR(VLOOKUP($B43,'مخزن 138'!$C$5:$G$110,5,0),0) -> 0 | J43: =IFERROR(VLOOKUP($B43,'مخزن 139'!$E$7:$J$161,6,0),0) -> 0
A44: =+IF(B44="","",SUBTOTAL(3,B$2:B44)) -> 43 | B44: 120103217 | C44: لحوم كتف كندوز مستورد برازيلى | D44: كتف كندوزم | E44: 0 | F44: كندوز | G44: 0 | H44: =IFERROR(VLOOKUP($B44,'مخزن 111'!$D$7:$I$249,6,0),0) -> 0 | I44: =IFERROR(VLOOKUP($B44,'مخزن 138'!$C$5:$G$110,5,0),0) -> 0 | J44: =IFERROR(VLOOKUP($B44,'مخزن 139'!$E$7:$J$161,6,0),0) -> 0
A45: =+IF(B45="","",SUBTOTAL(3,B$2:B45)) -> 44 | B45: 120103218 | C45: لحوم رقبة كندوز برازيلى | D45: رقبةكندزبر | E45: 0 | F45: كندوز | G45: 0 | H45: =IFERROR(VLOOKUP($B45,'مخزن 111'!$D$7:$I$249,6,0),0) -> 0 | I45: =IFERROR(VLOOKUP($B45,'مخزن 138'!$C$5:$G$110,5,0),0) -> 0 | J45: =IFERROR(VLOOKUP($B45,'مخزن 139'!$E$7:$J$161,6,0),0) -> 0
A46: =+IF(B46="","",SUBTOTAL(3,B$2:B46)) -> 45 | B46: 120103219 | C46: روزبيف كندوز | D46: كندوزبفتيك | E46: 0 | F46: كندوز | G46: 0 | H46: =IFERROR(VLOOKUP($B46,'مخزن 111'!$D$7:$I$249,6,0),0) -> 0 | I46: =IFERROR(VLOOKUP($B46,'مخزن 138'!$C$5:$G$110,5,0),0) -> 0 | J46: =IFERROR(VLOOKUP($B46,'مخزن 139'!$E$7:$J$161,6,0),0) -> 0
A47: =+IF(B47="","",SUBTOTAL(3,B$2:B47)) -> 46 | B47: 120103220 | C47: لحم كندوز قطع 1 كيلو بيع | D47: كندوزقطع1ك | E47: 0 | F47: كندوز | G47: 0 | H47: =IFERROR(VLOOKUP($B47,'مخزن 111'!$D$7:$I$249,6,0),0) -> 0 | I47: =IFERROR(VLOOKUP($B47,'مخزن 138'!$C$5:$G$110,5,0),0) -> 0 | J47: =IFERROR(VLOOKUP($B47,'مخزن 139'!$E$7:$J$161,6,0),0) -> 0
A48: =+IF(B48="","",SUBTOTAL(3,B$2:B48)) -> 47 | B48: 120103221 | C48: لحم كندوز مفروم 1 كيلو | D48: كندوزمفروم | E48: 0 | F48: كندوز | G48: 0 | H48: =IFERROR(VLOOKUP($B48,'مخزن 111'!$D$7:$I$249,6,0),0) -> 0 | I48: =IFERROR(VLOOKUP($B48,'مخزن 138'!$C$5:$G$110,5,0),0) -> 0 | J48: =IFERROR(VLOOKUP($B48,'مخزن 139'!$E$7:$J$161,6,0),0) -> 0
A49: =+IF(B49="","",SUBTOTAL(3,B$2:B49)) -> 48 | B49: 120103222 | C49: عجل كندوز كامل 4 قطع | D49: عجل4قطع كا | E49: 0 | F49: كندوز | G49: 0 | H49: =IFERROR(VLOOKUP($B49,'مخزن 111'!$D$7:$I$249,6,0),0) -> 0 | I49: =IFERROR(VLOOKUP($B49,'مخزن 138'!$C$5:$G$110,5,0),0) -> 0 | J49: =IFERROR(VLOOKUP($B49,'مخزن 139'!$E$7:$J$161,6,0),0) -> 0
A50: =+IF(B50="","",SUBTOTAL(3,B$2:B50)) -> 49 | B50: 120103223 | C50: لحمة موزة | D50: لحمةموزه | E50: 0 | F50: كندوز | G50: 0 | H50: =IFERROR(VLOOKUP($B50,'مخزن 111'!$D$7:$I$249,6,0),0) -> 0 | I50: =IFERROR(VLOOKUP($B50,'مخزن 138'!$C$5:$G$110,5,0),0) -> 0 | J50: =IFERROR(VLOOKUP($B50,'مخزن 139'!$E$7:$J$161,6,0),0) -> 0
A51: =+IF(B51="","",SUBTOTAL(3,B$2:B51)) -> 50 | B51: 120109103 | C51: سجق بقرى شرقى نصف مصنعة | D51: سجق شرقى | E51: 0 | F51: لحوم نصف مصنعة | G51: 0 | H51: =IFERROR(VLOOKUP($B51,'مخزن 111'!$D$7:$I$249,6,0),0) -> 0 | I51: =IFERROR(VLOOKUP($B51,'مخزن 138'!$C$5:$G$110,5,0),0) -> 0 | J51: =IFERROR(VLOOKUP($B51,'مخزن 139'!$E$7:$J$161,6,0),0) -> 0
A52: =+IF(B52="","",SUBTOTAL(3,B$2:B52)) -> 51 | B52: 120109105 | C52: سجق فراخ نصف مصنعة | D52: سجق فراخ | E52: 0 | F52: لحوم نصف مصنعة | G52: 0 | H52: =IFERROR(VLOOKUP($B52,'مخزن 111'!$D$7:$I$249,6,0),0) -> 0 | I52: =IFERROR(VLOOKUP($B52,'مخزن 138'!$C$5:$G$110,5,0),0) -> 0 | J52: =IFERROR(VLOOKUP($B52,'مخزن 139'!$E$7:$J$161,6,0),0) -> 0
A53: =+IF(B53="","",SUBTOTAL(3,B$2:B53)) -> 52 | B53: 120109106 | C53: سجق فرانكفورتر | D53: فرنك فورتر | E53: 0 | F53: لحوم نصف مصنعة | G53: 0 | H53: =IFERROR(VLOOKUP($B53,'مخزن 111'!$D$7:$I$249,6,0),0) -> 0 | I53: =IFERROR(VLOOKUP($B53,'مخزن 138'!$C$5:$G$110,5,0),0) -> 45 | J53: =IFERROR(VLOOKUP($B53,'مخزن 139'!$E$7:$J$161,6,0),0) -> 0
A54: =+IF(B54="","",SUBTOTAL(3,B$2:B54)) -> 53 | B54: 120109109 | C54: لحوم نصف مصنعة فرانكفورتر دجاج 10:12 سم | D54: فرنكفودجاج | E54: 0 | F54: لحوم نصف مصنعة | G54: 0 | H54: =IFERROR(VLOOKUP($B54,'مخزن 111'!$D$7:$I$249,6,0),0) -> 0 | I54: =IFERROR(VLOOKUP($B54,'مخزن 138'!$C$5:$G$110,5,0),0) -> 0 | J54: =IFERROR(VLOOKUP($B54,'مخزن 139'!$E$7:$J$161,6,0),0) -> 0
A55: =+IF(B55="","",SUBTOTAL(3,B$2:B55)) -> 54 | B55: 120109113 | C55: سجق فراخ نصف مصنعة | D55: سجق فراخ ل | E55: 0 | F55: لحوم نصف مصنعة | G55: 0 | H55: =IFERROR(VLOOKUP($B55,'مخزن 111'!$D$7:$I$249,6,0),0) -> 0 | I55: =IFERROR(VLOOKUP($B55,'مخزن 138'!$C$5:$G$110,5,0),0) -> 0 | J55: =IFERROR(VLOOKUP($B55,'مخزن 139'!$E$7:$J$161,6,0),0) -> 0
A56: =+IF(B56="","",SUBTOTAL(3,B$2:B56)) -> 55 | B56: 120109116 | C56: لحوم نصف مصنعة سوسيس 5:7 كوكتى | D56: سوسيس7:5سم | E56: 0 | F56: لحوم نصف مصنعة | G56: 0 | H56: =IFERROR(VLOOKUP($B56,'مخزن 111'!$D$7:$I$249,6,0),0) -> 0 | I56: =IFERROR(VLOOKUP($B56,'مخزن 138'!$C$5:$G$110,5,0),0) -> 0 | J56: =IFERROR(VLOOKUP($B56,'مخزن 139'!$E$7:$J$161,6,0),0) -> 0
A57: =+IF(B57="","",SUBTOTAL(3,B$2:B57)) -> 56 | B57: 120109117 | C57: لحوم نصف مصنعة فرنك بقرى عرض | D57: فرنك بقرىع | E57: 0 | F57: لحوم نصف مصنعة | G57: 0 | H57: =IFERROR(VLOOKUP($B57,'مخزن 111'!$D$7:$I$249,6,0),0) -> 0 | I57: =IFERROR(VLOOKUP($B57,'مخزن 138'!$C$5:$G$110,5,0),0) -> 0 | J57: =IFERROR(VLOOKUP($B57,'مخزن 139'!$E$7:$J$161,6,0),0) -> 0
A58: =+IF(B58="","",SUBTOTAL(3,B$2:B58)) -> 57 | B58: 120109118 | C58: لحوم نصف مصنعة سجق عائلى 900 جرام | D58: سجق عائ900 | E58: 0 | F58: لحوم نصف مصنعة | G58: 0 | H58: =IFERROR(VLOOKUP($B58,'مخزن 111'!$D$7:$I$249,6,0),0) -> 0 | I58: =IFERROR(VLOOKUP($B58,'مخزن 138'!$C$5:$G$110,5,0),0) -> 0 | J58: =IFERROR(VLOOKUP($B58,'مخزن 139'!$E$7:$J$161,6,0),0) -> 0
A59: =+IF(B59="","",SUBTOTAL(3,B$2:B59)) -> 58 | B59: 120109119 | C59: لحوم نصف مصنعة سجق شرقى 350 جرام | D59: سجق شرق350 | E59: 0 | F59: لحوم نصف مصنعة | G59: 0 | H59: =IFERROR(VLOOKUP($B59,'مخزن 111'!$D$7:$I$249,6,0),0) -> 0 | I59: =IFERROR(VLOOKUP($B59,'مخزن 138'!$C$5:$G$110,5,0),0) -> 0 | J59: =IFERROR(VLOOKUP($B59,'مخزن 139'!$E$7:$J$161,6,0),0) -> 0
A60: =+IF(B60="","",SUBTOTAL(3,B$2:B60)) -> 59 | B60: 120109120 | C60: لحوم نصف مصنعة "سوسيس 20قطعة "عرض | D60: سوسيس20عرض | E60: 0 | F60: لحوم نصف مصنعة | G60: 0 | H60: =IFERROR(VLOOKUP($B60,'مخزن 111'!$D$7:$I$249,6,0),0) -> 0 | I60: =IFERROR(VLOOKUP($B60,'مخزن 138'!$C$5:$G$110,5,0),0) -> 0 | J60: =IFERROR(VLOOKUP($B60,'مخزن 139'!$E$7:$J$161,6,0),0) -> 0
A61: =+IF(B61="","",SUBTOTAL(3,B$2:B61)) -> 60 | B61: 120109121 | C61: لحوم نصف مصنعة "بانية عادى "عرض | D61: بانيةعادىع | E61: 0 | F61: لحوم نصف مصنعة | G61: 0 | H61: =IFERROR(VLOOKUP($B61,'مخزن 111'!$D$7:$I$249,6,0),0) -> 0 | I61: =IFERROR(VLOOKUP($B61,'مخزن 138'!$C$5:$G$110,5,0),0) -> 0 | J61: =IFERROR(VLOOKUP($B61,'مخزن 139'!$E$7:$J$161,6,0),0) -> 0
A62: =+IF(B62="","",SUBTOTAL(3,B$2:B62)) -> 61 | B62: 120109122 | C62: لحوم نصف مصنعة بانية حار "عرض | D62: بانيةحار/ع | E62: 0 | F62: لحوم نصف مصنعة | G62: 0 | H62: =IFERROR(VLOOKUP($B62,'مخزن 111'!$D$7:$I$249,6,0),0) -> 0 | I62: =IFERROR(VLOOKUP($B62,'مخزن 138'!$C$5:$G$110,5,0),0) -> 0 | J62: =IFERROR(VLOOKUP($B62,'مخزن 139'!$E$7:$J$161,6,0),0) -> 0
A63: =+IF(B63="","",SUBTOTAL(3,B$2:B63)) -> 62 | B63: 120109123 | C63: شيش دجاج اكسترا نصف مصنعة | D63: شيش اكسترا | E63: 0 | F63: لحوم نصف مصنعة | G63: 0 | H63: =IFERROR(VLOOKUP($B63,'مخزن 111'!$D$7:$I$249,6,0),0) -> 0 | I63: =IFERROR(VLOOKUP($B63,'مخزن 138'!$C$5:$G$110,5,0),0) -> 0 | J63: =IFERROR(VLOOKUP($B63,'مخزن 139'!$E$7:$J$161,6,0),0) -> 0
A64: =+IF(B64="","",SUBTOTAL(3,B$2:B64)) -> 63 | B64: 120109124 | C64: استرس دجاج حار نصف مصنعة | D64: استرس حار | E64: 0 | F64: لحوم نصف مصنعة | G64: 0 | H64: =IFERROR(VLOOKUP($B64,'مخزن 111'!$D$7:$I$249,6,0),0) -> 0 | I64: =IFERROR(VLOOKUP($B64,'مخزن 138'!$C$5:$G$110,5,0),0) -> 0 | J64: =IFERROR(VLOOKUP($B64,'مخزن 139'!$E$7:$J$161,6,0),0) -> 0
A65: =+IF(B65="","",SUBTOTAL(3,B$2:B65)) -> 64 | B65: 120109125 | C65: لحوم نصف مصنعة استرس دجاج بارد | D65: استرس بارد | E65: 0 | F65: لحوم نصف مصنعة | G65: 0 | H65: =IFERROR(VLOOKUP($B65,'مخزن 111'!$D$7:$I$249,6,0),0) -> 0 | I65: =IFERROR(VLOOKUP($B65,'مخزن 138'!$C$5:$G$110,5,0),0) -> 0 | J65: =IFERROR(VLOOKUP($B65,'مخزن 139'!$E$7:$J$161,6,0),0) -> 0
A66: =+IF(B66="","",SUBTOTAL(3,B$2:B66)) -> 65 | B66: 120109126 | C66: لحوم نصف مصنعة فرخة كاملة حار | D66: فرخةك/حار | E66: 0 | F66: لحوم نصف مصنعة | G66: 0 | H66: =IFERROR(VLOOKUP($B66,'مخزن 111'!$D$7:$I$249,6,0),0) -> 0 | I66: =IFERROR(VLOOKUP($B66,'مخزن 138'!$C$5:$G$110,5,0),0) -> 0 | J66: =IFERROR(VLOOKUP($B66,'مخزن 139'!$E$7:$J$161,6,0),0) -> 0
A67: =+IF(B67="","",SUBTOTAL(3,B$2:B67)) -> 66 | B67: 120109127 | C67: لحوم نصف مصنعة فرخة كاملة بارد | D67: فرخةك/بارد | E67: 0 | F67: لحوم نصف مصنعة | G67: 0 | H67: =IFERROR(VLOOKUP($B67,'مخزن 111'!$D$7:$I$249,6,0),0) -> 0 | I67: =IFERROR(VLOOKUP($B67,'مخزن 138'!$C$5:$G$110,5,0),0) -> 0 | J67: =IFERROR(VLOOKUP($B67,'مخزن 139'!$E$7:$J$161,6,0),0) -> 0
A68: =+IF(B68="","",SUBTOTAL(3,B$2:B68)) -> 67 | B68: 120109128 | C68: لحوم نصف مصنعة دبوس دجاج حار | D68: دبوس حار | E68: 0 | F68: لحوم نصف مصنعة | G68: 0 | H68: =IFERROR(VLOOKUP($B68,'مخزن 111'!$D$7:$I$249,6,0),0) -> 0 | I68: =IFERROR(VLOOKUP($B68,'مخزن 138'!$C$5:$G$110,5,0),0) -> 0 | J68: =IFERROR(VLOOKUP($B68,'مخزن 139'!$E$7:$J$161,6,0),0) -> 0
A69: =+IF(B69="","",SUBTOTAL(3,B$2:B69)) -> 68 | B69: 120109129 | C69: دبوس دجاج بارد نصف مصنعة | D69: دبوس بارد | E69: 0 | F69: لحوم نصف مصنعة | G69: 0 | H69: =IFERROR(VLOOKUP($B69,'مخزن 111'!$D$7:$I$249,6,0),0) -> 0 | I69: =IFERROR(VLOOKUP($B69,'مخزن 138'!$C$5:$G$110,5,0),0) -> 0 | J69: =IFERROR(VLOOKUP($B69,'مخزن 139'!$E$7:$J$161,6,0),0) -> 0
A70: =+IF(B70="","",SUBTOTAL(3,B$2:B70)) -> 69 | B70: 120109130 | C70: لحوم نصف مصنعة جناح دجاج700جم عادى | D70: جناح700عاد | E70: 0 | F70: لحوم نصف مصنعة | G70: 0 | H70: =IFERROR(VLOOKUP($B70,'مخزن 111'!$D$7:$I$249,6,0),0) -> 0 | I70: =IFERROR(VLOOKUP($B70,'مخزن 138'!$C$5:$G$110,5,0),0) -> 0 | J70: =IFERROR(VLOOKUP($B70,'مخزن 139'!$E$7:$J$161,6,0),0) -> 0
A71: =+IF(B71="","",SUBTOTAL(3,B$2:B71)) -> 70 | B71: 120109131 | C71: جناح دجاج 700 جرام حار نصف مصنعة | D71: جناح700حار | E71: 0 | F71: لحوم نصف مصنعة | G71: 0 | H71: =IFERROR(VLOOKUP($B71,'مخزن 111'!$D$7:$I$249,6,0),0) -> 0 | I71: =IFERROR(VLOOKUP($B71,'مخزن 138'!$C$5:$G$110,5,0),0) -> 0 | J71: =IFERROR(VLOOKUP($B71,'مخزن 139'!$E$7:$J$161,6,0),0) -> 0
A72: =+IF(B72="","",SUBTOTAL(3,B$2:B72)) -> 71 | B72: 120109132 | C72: لحوم نصف مصنعة صدور دجاج+بطاطس عادى | D72: صدور+بطاطس | E72: 0 | F72: لحوم نصف مصنعة | G72: 0 | H72: =IFERROR(VLOOKUP($B72,'مخزن 111'!$D$7:$I$249,6,0),0) -> 0 | I72: =IFERROR(VLOOKUP($B72,'مخزن 138'!$C$5:$G$110,5,0),0) -> 0 | J72: =IFERROR(VLOOKUP($B72,'مخزن 139'!$E$7:$J$161,6,0),0) -> 0
A73: =+IF(B73="","",SUBTOTAL(3,B$2:B73)) -> 72 | B73: 120109133 | C73: لحوم نصف مصنعة صدور دجاج+بطاطس حار | D73: ص+بطاطس حا | E73: 0 | F73: لحوم نصف مصنعة | G73: 0 | H73: =IFERROR(VLOOKUP($B73,'مخزن 111'!$D$7:$I$249,6,0),0) -> 0 | I73: =IFERROR(VLOOKUP($B73,'مخزن 138'!$C$5:$G$110,5,0),0) -> 0 | J73: =IFERROR(VLOOKUP($B73,'مخزن 139'!$E$7:$J$161,6,0),0) -> 0
A74: =+IF(B74="","",SUBTOTAL(3,B$2:B74)) -> 73 | B74: 120109134 | C74: لحوم نصف مصنعة فرخة كاملة1ك+بطاطس | D74: فرخة1ك+بطا | E74: 0 | F74: لحوم نصف مصنعة | G74: 0 | H74: =IFERROR(VLOOKUP($B74,'مخزن 111'!$D$7:$I$249,6,0),0) -> 0 | I74: =IFERROR(VLOOKUP($B74,'مخزن 138'!$C$5:$G$110,5,0),0) -> 0 | J74: =IFERROR(VLOOKUP($B74,'مخزن 139'!$E$7:$J$161,6,0),0) -> 0
A75: =+IF(B75="","",SUBTOTAL(3,B$2:B75)) -> 74 | B75: 120109135 | C75: لحوم نصف مصنعة وراك دجاج مقلى عادى | D75: وراك مقلىع | E75: 0 | F75: لحوم نصف مصنعة | G75: 0 | H75: =IFERROR(VLOOKUP($B75,'مخزن 111'!$D$7:$I$249,6,0),0) -> 0 | I75: =IFERROR(VLOOKUP($B75,'مخزن 138'!$C$5:$G$110,5,0),0) -> 0 | J75: =IFERROR(VLOOKUP($B75,'مخزن 139'!$E$7:$J$161,6,0),0) -> 0
A76: =+IF(B76="","",SUBTOTAL(3,B$2:B76)) -> 75 | B76: 120109136 | C76: لحوم نصف مصنعة وراك دجاج مقلى حار | D76: وراك مقلىح | E76: 0 | F76: لحوم نصف مصنعة | G76: 0 | H76: =IFERROR(VLOOKUP($B76,'مخزن 111'!$D$7:$I$249,6,0),0) -> 0 | I76: =IFERROR(VLOOKUP($B76,'مخزن 138'!$C$5:$G$110,5,0),0) -> 0 | J76: =IFERROR(VLOOKUP($B76,'مخزن 139'!$E$7:$J$161,6,0),0) -> 0
A77: =+IF(B77="","",SUBTOTAL(3,B$2:B77)) -> 76 | B77: 120109137 | C77: لحوم نصف مصنعة بانية 1 كيلو عادى | D77: بانيه1ك عا | E77: 0 | F77: لحوم نصف مصنعة | G77: 0 | H77: =IFERROR(VLOOKUP($B77,'مخزن 111'!$D$7:$I$249,6,0),0) -> 0 | I77: =IFERROR(VLOOKUP($B77,'مخزن 138'!$C$5:$G$110,5,0),0) -> 0 | J77: =IFERROR(VLOOKUP($B77,'مخزن 139'!$E$7:$J$161,6,0),0) -> 0
A78: =+IF(B78="","",SUBTOTAL(3,B$2:B78)) -> 77 | B78: 120109138 | C78: لحوم نصف مصنعة بانية 1 كيلو حار | D78: بانية1ك حا | E78: 0 | F78: لحوم نصف مصنعة | G78: 0 | H78: =IFERROR(VLOOKUP($B78,'مخزن 111'!$D$7:$I$249,6,0),0) -> 0 | I78: =IFERROR(VLOOKUP($B78,'مخزن 138'!$C$5:$G$110,5,0),0) -> 0 | J78: =IFERROR(VLOOKUP($B78,'مخزن 139'!$E$7:$J$161,6,0),0) -> 0
A79: =+IF(B79="","",SUBTOTAL(3,B$2:B79)) -> 78 | B79: 120109139 | C79: لحوم نصف مصنعة فيلية متبل 2 كيلو | D79: فيلية متبل | E79: 0 | F79: لحوم نصف مصنعة | G79: 0 | H79: =IFERROR(VLOOKUP($B79,'مخزن 111'!$D$7:$I$249,6,0),0) -> 0 | I79: =IFERROR(VLOOKUP($B79,'مخزن 138'!$C$5:$G$110,5,0),0) -> 0 | J79: =IFERROR(VLOOKUP($B79,'مخزن 139'!$E$7:$J$161,6,0),0) -> 0
A80: =+IF(B80="","",SUBTOTAL(3,B$2:B80)) -> 79 | B80: 120109140 | C80: لحوم نصف مصنعة شيش 1 كيلو | D80: شيش 1 كيلو | E80: 0 | F80: لحوم نصف مصنعة | G80: 0 | H80: =IFERROR(VLOOKUP($B80,'مخزن 111'!$D$7:$I$249,6,0),0) -> 0 | I80: =IFERROR(VLOOKUP($B80,'مخزن 138'!$C$5:$G$110,5,0),0) -> 0 | J80: =IFERROR(VLOOKUP($B80,'مخزن 139'!$E$7:$J$161,6,0),0) -> 0
A81: =+IF(B81="","",SUBTOTAL(3,B$2:B81)) -> 80 | B81: 120109141 | C81: لحوم نصف مصنعة فرخة كاملة+بطاطس حار | D81: ف/بطاطس حا | E81: 0 | F81: لحوم نصف مصنعة | G81: 0 | H81: =IFERROR(VLOOKUP($B81,'مخزن 111'!$D$7:$I$249,6,0),0) -> 0 | I81: =IFERROR(VLOOKUP($B81,'مخزن 138'!$C$5:$G$110,5,0),0) -> 0 | J81: =IFERROR(VLOOKUP($B81,'مخزن 139'!$E$7:$J$161,6,0),0) -> 0
A82: =+IF(B82="","",SUBTOTAL(3,B$2:B82)) -> 81 | B82: 120109142 | C82: فرانك بقرى نصف مصنعة 25 قطعة | D82: ف/بقرى25قط | E82: 0 | F82: لحوم نصف مصنعة | G82: 0 | H82: =IFERROR(VLOOKUP($B82,'مخزن 111'!$D$7:$I$249,6,0),0) -> 0 | I82: =IFERROR(VLOOKUP($B82,'مخزن 138'!$C$5:$G$110,5,0),0) -> 0 | J82: =IFERROR(VLOOKUP($B82,'مخزن 139'!$E$7:$J$161,6,0),0) -> 0
A83: =+IF(B83="","",SUBTOTAL(3,B$2:B83)) -> 82 | B83: 120110005 | C83: لحوم مصنعه سندوتشات فراخ ناجتس عائلى | D83: فراخ ناجتس | E83: 0 | F83: لحوم مصنعه سندوتشات | G83: 0 | H83: =IFERROR(VLOOKUP($B83,'مخزن 111'!$D$7:$I$249,6,0),0) -> 0 | I83: =IFERROR(VLOOKUP($B83,'مخزن 138'!$C$5:$G$110,5,0),0) -> 0 | J83: =IFERROR(VLOOKUP($B83,'مخزن 139'!$E$7:$J$161,6,0),0) -> 0
A84: =+IF(B84="","",SUBTOTAL(3,B$2:B84)) -> 83 | B84: 120110007 | C84: لحوم مصنعة سندوتشات هوت دوج | D84: هوت دجاج | E84: 0 | F84: لحوم مصنعه سندوتشات | G84: 0 | H84: =IFERROR(VLOOKUP($B84,'مخزن 111'!$D$7:$I$249,6,0),0) -> 0 | I84: =IFERROR(VLOOKUP($B84,'مخزن 138'!$C$5:$G$110,5,0),0) -> 0 | J84: =IFERROR(VLOOKUP($B84,'مخزن 139'!$E$7:$J$161,6,0),0) -> 0
A85: =+IF(B85="","",SUBTOTAL(3,B$2:B85)) -> 84 | B85: 120110009 | C85: هوت دوج بقرى لحوم مصنعة | D85: هوت دوج | E85: 0 | F85: لحوم مصنعه سندوتشات | G85: 0 | H85: =IFERROR(VLOOKUP($B85,'مخزن 111'!$D$7:$I$249,6,0),0) -> 0 | I85: =IFERROR(VLOOKUP($B85,'مخزن 138'!$C$5:$G$110,5,0),0) -> 0 | J85: =IFERROR(VLOOKUP($B85,'مخزن 139'!$E$7:$J$161,6,0),0) -> 0
A86: =+IF(B86="","",SUBTOTAL(3,B$2:B86)) -> 85 | B86: 120110010 | C86: كبيبة مينى | D86: كبيبةمينى | E86: VEAL | F86: لحوم مصنعه سندوتشات | G86: KGM | H86: =IFERROR(VLOOKUP($B86,'مخزن 111'!$D$7:$I$249,6,0),0) -> 16 | I86: =IFERROR(VLOOKUP($B86,'مخزن 138'!$C$5:$G$110,5,0),0) -> 0 | J86: =IFERROR(VLOOKUP($B86,'مخزن 139'!$E$7:$J$161,6,0),0) -> 0
A87: =+IF(B87="","",SUBTOTAL(3,B$2:B87)) -> 86 | B87: 120110011 | C87: نصف مصنعة كبيبة شامى كبيرة | D87: كبيبةكبيرة | E87: 0 | F87: لحوم مصنعه سندوتشات | G87: 0 | H87: =IFERROR(VLOOKUP($B87,'مخزن 111'!$D$7:$I$249,6,0),0) -> 0 | I87: =IFERROR(VLOOKUP($B87,'مخزن 138'!$C$5:$G$110,5,0),0) -> 0 | J87: =IFERROR(VLOOKUP($B87,'مخزن 139'!$E$7:$J$161,6,0),0) -> 0
A88: =+IF(B88="","",SUBTOTAL(3,B$2:B88)) -> 87 | B88: 120110014 | C88: لحوم مصنعه سندوتشات هامبورجر عائلى20قطعة | D88: برجر عائلى | E88: 0 | F88: لحوم مصنعه سندوتشات | G88: 0 | H88: =IFERROR(VLOOKUP($B88,'مخزن 111'!$D$7:$I$249,6,0),0) -> 0 | I88: =IFERROR(VLOOKUP($B88,'مخزن 138'!$C$5:$G$110,5,0),0) -> 0 | J88: =IFERROR(VLOOKUP($B88,'مخزن 139'!$E$7:$J$161,6,0),0) -> 0
A89: =+IF(B89="","",SUBTOTAL(3,B$2:B89)) -> 88 | B89: 120110015 | C89: لحوم مصنعه سندوتشات كفتة حاتى شيف | D89: كفتةحاتى ش | E89: 0 | F89: لحوم مصنعه سندوتشات | G89: 0 | H89: =IFERROR(VLOOKUP($B89,'مخزن 111'!$D$7:$I$249,6,0),0) -> 0 | I89: =IFERROR(VLOOKUP($B89,'مخزن 138'!$C$5:$G$110,5,0),0) -> 0 | J89: =IFERROR(VLOOKUP($B89,'مخزن 139'!$E$7:$J$161,6,0),0) -> 0
A90: =+IF(B90="","",SUBTOTAL(3,B$2:B90)) -> 89 | B90: 120110016 | C90: لحوم مصنعه سندوتشات هوت دوج 23 سم | D90: هوت دوج23س | E90: 0 | F90: لحوم مصنعه سندوتشات | G90: 0 | H90: =IFERROR(VLOOKUP($B90,'مخزن 111'!$D$7:$I$249,6,0),0) -> 0 | I90: =IFERROR(VLOOKUP($B90,'مخزن 138'!$C$5:$G$110,5,0),0) -> 0 | J90: =IFERROR(VLOOKUP($B90,'مخزن 139'!$E$7:$J$161,6,0),0) -> 0
A91: =+IF(B91="","",SUBTOTAL(3,B$2:B91)) -> 90 | B91: 120110017 | C91: لحوم مصنعه سندوتشات هوت دوج 18 سم | D91: هوت دوج18س | E91: 0 | F91: لحوم مصنعه سندوتشات | G91: 0 | H91: =IFERROR(VLOOKUP($B91,'مخزن 111'!$D$7:$I$249,6,0),0) -> 0 | I91: =IFERROR(VLOOKUP($B91,'مخزن 138'!$C$5:$G$110,5,0),0) -> 0 | J91: =IFERROR(VLOOKUP($B91,'مخزن 139'!$E$7:$J$161,6,0),0) -> 0
A92: =+IF(B92="","",SUBTOTAL(3,B$2:B92)) -> 91 | B92: 120110018 | C92: لحوم مصنعه سندوتشات هامبورجر 400 جرام | D92: برجر400جم | E92: 0 | F92: لحوم مصنعه سندوتشات | G92: 0 | H92: =IFERROR(VLOOKUP($B92,'مخزن 111'!$D$7:$I$249,6,0),0) -> 0 | I92: =IFERROR(VLOOKUP($B92,'مخزن 138'!$C$5:$G$110,5,0),0) -> 0 | J92: =IFERROR(VLOOKUP($B92,'مخزن 139'!$E$7:$J$161,6,0),0) -> 0
A93: =+IF(B93="","",SUBTOTAL(3,B$2:B93)) -> 92 | B93: 120110019 | C93: لحوم مصنعه سندوتشات كفتة فيليه | D93: كفتة فيليه | E93: 0 | F93: لحوم مصنعه سندوتشات | G93: 0 | H93: =IFERROR(VLOOKUP($B93,'مخزن 111'!$D$7:$I$249,6,0),0) -> 0 | I93: =IFERROR(VLOOKUP($B93,'مخزن 138'!$C$5:$G$110,5,0),0) -> 0 | J93: =IFERROR(VLOOKUP($B93,'مخزن 139'!$E$7:$J$161,6,0),0) -> 0
A94: =+IF(B94="","",SUBTOTAL(3,B$2:B94)) -> 93 | B94: 120110020 | C94: لحوم مصنعه سندوتشات هوت دوج بقرى عرض | D94: هوت/د/عرض | E94: 0 | F94: لحوم مصنعه سندوتشات | G94: 0 | H94: =IFERROR(VLOOKUP($B94,'مخزن 111'!$D$7:$I$249,6,0),0) -> 0 | I94: =IFERROR(VLOOKUP($B94,'مخزن 138'!$C$5:$G$110,5,0),0) -> 0 | J94: =IFERROR(VLOOKUP($B94,'مخزن 139'!$E$7:$J$161,6,0),0) -> 0
A95: =+IF(B95="","",SUBTOTAL(3,B$2:B95)) -> 94 | B95: 120110021 | C95: لحوم مصنعه سندوتشات لانشون لحم 250 جرام | D95: لنشون250جم | E95: 0 | F95: لحوم مصنعه سندوتشات | G95: 0 | H95: =IFERROR(VLOOKUP($B95,'مخزن 111'!$D$7:$I$249,6,0),0) -> 0 | I95: =IFERROR(VLOOKUP($B95,'مخزن 138'!$C$5:$G$110,5,0),0) -> 0 | J95: =IFERROR(VLOOKUP($B95,'مخزن 139'!$E$7:$J$161,6,0),0) -> 0
A96: =+IF(B96="","",SUBTOTAL(3,B$2:B96)) -> 95 | B96: 120110022 | C96: لحوم مصنعه سندوتشات كفتة حاتى 350 جرام | D96: كفتةح350جم | E96: 0 | F96: لحوم مصنعه سندوتشات | G96: 0 | H96: =IFERROR(VLOOKUP($B96,'مخزن 111'!$D$7:$I$249,6,0),0) -> 0 | I96: =IFERROR(VLOOKUP($B96,'مخزن 138'!$C$5:$G$110,5,0),0) -> 0 | J96: =IFERROR(VLOOKUP($B96,'مخزن 139'!$E$7:$J$161,6,0),0) -> 0
A97: =+IF(B97="","",SUBTOTAL(3,B$2:B97)) -> 96 | B97: 120110023 | C97: برجر دجاج عادى نصف مصنعة | D97: برجر دجاج | E97: 0 | F97: لحوم مصنعه سندوتشات | G97: 0 | H97: =IFERROR(VLOOKUP($B97,'مخزن 111'!$D$7:$I$249,6,0),0) -> 0 | I97: =IFERROR(VLOOKUP($B97,'مخزن 138'!$C$5:$G$110,5,0),0) -> 0 | J97: =IFERROR(VLOOKUP($B97,'مخزن 139'!$E$7:$J$161,6,0),0) -> 0
A98: =+IF(B98="","",SUBTOTAL(3,B$2:B98)) -> 97 | B98: 120110024 | C98: برجر 1 كيلو نصف مصنعة | D98: برجر 1 كيل | E98: 0 | F98: لحوم مصنعه سندوتشات | G98: 0 | H98: =IFERROR(VLOOKUP($B98,'مخزن 111'!$D$7:$I$249,6,0),0) -> 0 | I98: =IFERROR(VLOOKUP($B98,'مخزن 138'!$C$5:$G$110,5,0),0) -> 0 | J98: =IFERROR(VLOOKUP($B98,'مخزن 139'!$E$7:$J$161,6,0),0) -> 0
A99: =+IF(B99="","",SUBTOTAL(3,B$2:B99)) -> 98 | B99: 120110025 | C99: لحوم مصنعه سندوتشات برجر جامبو1800جم | D99: برجر جامبو | E99: 0 | F99: لحوم مصنعه سندوتشات | G99: 0 | H99: =IFERROR(VLOOKUP($B99,'مخزن 111'!$D$7:$I$249,6,0),0) -> 0 | I99: =IFERROR(VLOOKUP($B99,'مخزن 138'!$C$5:$G$110,5,0),0) -> 0 | J99: =IFERROR(VLOOKUP($B99,'مخزن 139'!$E$7:$J$161,6,0),0) -> 0
A100: =+IF(B100="","",SUBTOTAL(3,B$2:B100)) -> 99 | B100: 120110026 | C100: هوت دوج كيلو نصف مصنعة | D100: هوت دوج 1ك | E100: 0 | F100: لحوم مصنعه سندوتشات | G100: 0 | H100: =IFERROR(VLOOKUP($B100,'مخزن 111'!$D$7:$I$249,6,0),0) -> 0 | I100: =IFERROR(VLOOKUP($B100,'مخزن 138'!$C$5:$G$110,5,0),0) -> 0 | J100: =IFERROR(VLOOKUP($B100,'مخزن 139'!$E$7:$J$161,6,0),0) -> 0
A101: =+IF(B101="","",SUBTOTAL(3,B$2:B101)) -> 100 | B101: 120110027 | C101: كفتة بقرى 1 كيلو نصف مصنعة | D101: كفتة ب 1ك | E101: 0 | F101: لحوم مصنعه سندوتشات | G101: 0 | H101: =IFERROR(VLOOKUP($B101,'مخزن 111'!$D$7:$I$249,6,0),0) -> 0 | I101: =IFERROR(VLOOKUP($B101,'مخزن 138'!$C$5:$G$110,5,0),0) -> 0 | J101: =IFERROR(VLOOKUP($B101,'مخزن 139'!$E$7:$J$161,6,0),0) -> 0
A102: =+IF(B102="","",SUBTOTAL(3,B$2:B102)) -> 101 | B102: 120110028 | C102: برجر 25 قطعة نصف مصنعة | D102: برجر25قطعه | E102: 0 | F102: لحوم مصنعه سندوتشات | G102: 0 | H102: =IFERROR(VLOOKUP($B102,'مخزن 111'!$D$7:$I$249,6,0),0) -> 0 | I102: =IFERROR(VLOOKUP($B102,'مخزن 138'!$C$5:$G$110,5,0),0) -> 0 | J102: =IFERROR(VLOOKUP($B102,'مخزن 139'!$E$7:$J$161,6,0),0) -> 0
A103: =+IF(B103="","",SUBTOTAL(3,B$2:B103)) -> 102 | B103: 120110029 | C103: دجاج حشو 2* طبق نصف مصنعة | D103: حشو2×طبق | E103: 0 | F103: لحوم مصنعه سندوتشات | G103: 0 | H103: =IFERROR(VLOOKUP($B103,'مخزن 111'!$D$7:$I$249,6,0),0) -> 0 | I103: =IFERROR(VLOOKUP($B103,'مخزن 138'!$C$5:$G$110,5,0),0) -> 0 | J103: =IFERROR(VLOOKUP($B103,'مخزن 139'!$E$7:$J$161,6,0),0) -> 0
A104: =+IF(B104="","",SUBTOTAL(3,B$2:B104)) -> 103 | B104: 120111101 | C104: كبدة بقرى مستوردة | D104: كبدبقرى/مس | E104: 0 | F104: كبدة | G104: 0 | H104: =IFERROR(VLOOKUP($B104,'مخزن 111'!$D$7:$I$249,6,0),0) -> 0 | I104: =IFERROR(VLOOKUP($B104,'مخزن 138'!$C$5:$G$110,5,0),0) -> 0 | J104: =IFERROR(VLOOKUP($B104,'مخزن 139'!$E$7:$J$161,6,0),0) -> 0
A105: =+IF(B105="","",SUBTOTAL(3,B$2:B105)) -> 104 | B105: 120111102 | C105: لحوم كبدة مجمدة كندوز مستورد | D105: كندوز مجمد | E105: 0 | F105: كبدة | G105: 0 | H105: =IFERROR(VLOOKUP($B105,'مخزن 111'!$D$7:$I$249,6,0),0) -> 0 | I105: =IFERROR(VLOOKUP($B105,'مخزن 138'!$C$5:$G$110,5,0),0) -> 0 | J105: =IFERROR(VLOOKUP($B105,'مخزن 139'!$E$7:$J$161,6,0),0) -> 0
A106: =+IF(B106="","",SUBTOTAL(3,B$2:B106)) -> 105 | B106: 120201201 | C106: ديك رومى مزارع سليم | D106: مزارع سليم | E106: 0 | F106: ديك رومى | G106: 0 | H106: =IFERROR(VLOOKUP($B106,'مخزن 111'!$D$7:$I$249,6,0),0) -> 0 | I106: =IFERROR(VLOOKUP($B106,'مخزن 138'!$C$5:$G$110,5,0),0) -> 0 | J106: =IFERROR(VLOOKUP($B106,'مخزن 139'!$E$7:$J$161,6,0),0) -> 0
A107: =+IF(B107="","",SUBTOTAL(3,B$2:B107)) -> 106 | B107: 120201202 | C107: صدور ديك رومى | D107: لحم صدر | E107: 0 | F107: ديك رومى | G107: 0 | H107: =IFERROR(VLOOKUP($B107,'مخزن 111'!$D$7:$I$249,6,0),0) -> 0 | I107: =IFERROR(VLOOKUP($B107,'مخزن 138'!$C$5:$G$110,5,0),0) -> 0 | J107: =IFERROR(VLOOKUP($B107,'مخزن 139'!$E$7:$J$161,6,0),0) -> 0
A108: =+IF(B108="","",SUBTOTAL(3,B$2:B108)) -> 107 | B108: 120202102 | C108: فراخ مجمدة من 1000:1200 كجم | D108: فراخ مجمدة | E108: 0 | F108: فراخ | G108: 0 | H108: =IFERROR(VLOOKUP($B108,'مخزن 111'!$D$7:$I$249,6,0),0) -> 0 | I108: =IFERROR(VLOOKUP($B108,'مخزن 138'!$C$5:$G$110,5,0),0) -> 0 | J108: =IFERROR(VLOOKUP($B108,'مخزن 139'!$E$7:$J$161,6,0),0) -> 0
A109: =+IF(B109="","",SUBTOTAL(3,B$2:B109)) -> 108 | B109: 120202201 | C109: صدور فراخ مشفى من 90:120 بدون عظم | D109: صدرمشفى | E109: 0 | F109: فراخ | G109: 0 | H109: =IFERROR(VLOOKUP($B109,'مخزن 111'!$D$7:$I$249,6,0),0) -> 0 | I109: =IFERROR(VLOOKUP($B109,'مخزن 138'!$C$5:$G$110,5,0),0) -> 0 | J109: =IFERROR(VLOOKUP($B109,'مخزن 139'!$E$7:$J$161,6,0),0) -> 0
A110: =+IF(B110="","",SUBTOTAL(3,B$2:B110)) -> 109 | B110: 120202204 | C110: كبدة وقوانص فراخ | D110: كبدة/قوانص | E110: 0 | F110: فراخ | G110: 0 | H110: =IFERROR(VLOOKUP($B110,'مخزن 111'!$D$7:$I$249,6,0),0) -> 0 | I110: =IFERROR(VLOOKUP($B110,'مخزن 138'!$C$5:$G$110,5,0),0) -> 0 | J110: =IFERROR(VLOOKUP($B110,'مخزن 139'!$E$7:$J$161,6,0),0) -> 0
A111: =+IF(B111="","",SUBTOTAL(3,B$2:B111)) -> 110 | B111: 120202206 | C111: وراك مخلية بدون جلد وعظم | D111: وراك مخلية | E111: CHICKENS | F111: فراخ | G111: KGM | H111: =IFERROR(VLOOKUP($B111,'مخزن 111'!$D$7:$I$249,6,0),0) -> 492.719 | I111: =IFERROR(VLOOKUP($B111,'مخزن 138'!$C$5:$G$110,5,0),0) -> 0 | J111: =IFERROR(VLOOKUP($B111,'مخزن 139'!$E$7:$J$161,6,0),0) -> 0
A112: =+IF(B112="","",SUBTOTAL(3,B$2:B112)) -> 111 | B112: 120202209 | C112: صدور فراخ متبل بالاعشاب | D112: صدر/ف/متبل | E112: 0 | F112: فراخ | G112: 0 | H112: =IFERROR(VLOOKUP($B112,'مخزن 111'!$D$7:$I$249,6,0),0) -> 0 | I112: =IFERROR(VLOOKUP($B112,'مخزن 138'!$C$5:$G$110,5,0),0) -> 0 | J112: =IFERROR(VLOOKUP($B112,'مخزن 139'!$E$7:$J$161,6,0),0) -> 0
A113: =+IF(B113="","",SUBTOTAL(3,B$2:B113)) -> 112 | B113: 120202211 | C113: فراخ بانية سابقة التجهيز | D113: د.بانيةسبق | E113: 0 | F113: فراخ | G113: 0 | H113: =IFERROR(VLOOKUP($B113,'مخزن 111'!$D$7:$I$249,6,0),0) -> 0 | I113: =IFERROR(VLOOKUP($B113,'مخزن 138'!$C$5:$G$110,5,0),0) -> 0 | J113: =IFERROR(VLOOKUP($B113,'مخزن 139'!$E$7:$J$161,6,0),0) -> 0
A114: =+IF(B114="","",SUBTOTAL(3,B$2:B114)) -> 113 | B114: 120202212 | C114: شيش فراخ متبل | D114: د.شيش متبل | E114: 0 | F114: فراخ | G114: 0 | H114: =IFERROR(VLOOKUP($B114,'مخزن 111'!$D$7:$I$249,6,0),0) -> 0 | I114: =IFERROR(VLOOKUP($B114,'مخزن 138'!$C$5:$G$110,5,0),0) -> 0 | J114: =IFERROR(VLOOKUP($B114,'مخزن 139'!$E$7:$J$161,6,0),0) -> 0
A115: =+IF(B115="","",SUBTOTAL(3,B$2:B115)) -> 114 | B115: 120202213 | C115: صدور فراخ مشفاه 130:150 جم | D115: صدرفراخ130 | E115: 0 | F115: فراخ | G115: 0 | H115: =IFERROR(VLOOKUP($B115,'مخزن 111'!$D$7:$I$249,6,0),0) -> 0 | I115: =IFERROR(VLOOKUP($B115,'مخزن 138'!$C$5:$G$110,5,0),0) -> 0 | J115: =IFERROR(VLOOKUP($B115,'مخزن 139'!$E$7:$J$161,6,0),0) -> 0
A116: =+IF(B116="","",SUBTOTAL(3,B$2:B116)) -> 115 | B116: 120202214 | C116: صدور فراخ من 100:120 جرام | D116: صدرفرخ100ج | E116: 0 | F116: فراخ | G116: 0 | H116: =IFERROR(VLOOKUP($B116,'مخزن 111'!$D$7:$I$249,6,0),0) -> 0 | I116: =IFERROR(VLOOKUP($B116,'مخزن 138'!$C$5:$G$110,5,0),0) -> 0 | J116: =IFERROR(VLOOKUP($B116,'مخزن 139'!$E$7:$J$161,6,0),0) -> 0
A117: =+IF(B117="","",SUBTOTAL(3,B$2:B117)) -> 116 | B117: 120202215 | C117: فراخ مجمدة من 1000:1100 جم | D117: فراخ مجمدة | E117: 0 | F117: فراخ | G117: 0 | H117: =IFERROR(VLOOKUP($B117,'مخزن 111'!$D$7:$I$249,6,0),0) -> 0 | I117: =IFERROR(VLOOKUP($B117,'مخزن 138'!$C$5:$G$110,5,0),0) -> 0 | J117: =IFERROR(VLOOKUP($B117,'مخزن 139'!$E$7:$J$161,6,0),0) -> 0
A118: =+IF(B118="","",SUBTOTAL(3,B$2:B118)) -> 117 | B118: 120202216 | C118: فراخ فيلية 1 كيلو بيع | D118: فراخ فيليه | E118: 0 | F118: فراخ | G118: 0 | H118: =IFERROR(VLOOKUP($B118,'مخزن 111'!$D$7:$I$249,6,0),0) -> 0 | I118: =IFERROR(VLOOKUP($B118,'مخزن 138'!$C$5:$G$110,5,0),0) -> 0 | J118: =IFERROR(VLOOKUP($B118,'مخزن 139'!$E$7:$J$161,6,0),0) -> 0
A119: =+IF(B119="","",SUBTOTAL(3,B$2:B119)) -> 118 | B119: 120202217 | C119: شيش طاووك 1كيلو بيع | D119: شيش طاوك1ك | E119: 0 | F119: فراخ | G119: 0 | H119: =IFERROR(VLOOKUP($B119,'مخزن 111'!$D$7:$I$249,6,0),0) -> 0 | I119: =IFERROR(VLOOKUP($B119,'مخزن 138'!$C$5:$G$110,5,0),0) -> 0 | J119: =IFERROR(VLOOKUP($B119,'مخزن 139'!$E$7:$J$161,6,0),0) -> 0
A120: =+IF(B120="","",SUBTOTAL(3,B$2:B120)) -> 119 | B120: 120202218 | C120: شيش فراخ 1 كيلو بيع | D120: شيش فراخ1ك | E120: 0 | F120: فراخ | G120: 0 | H120: =IFERROR(VLOOKUP($B120,'مخزن 111'!$D$7:$I$249,6,0),0) -> 0 | I120: =IFERROR(VLOOKUP($B120,'مخزن 138'!$C$5:$G$110,5,0),0) -> 0 | J120: =IFERROR(VLOOKUP($B120,'مخزن 139'!$E$7:$J$161,6,0),0) -> 0
A121: =+IF(B121="","",SUBTOTAL(3,B$2:B121)) -> 120 | B121: 120202219 | C121: دبوس 1 كيلو بيع | D121: دبوس 1كيلو | E121: 0 | F121: فراخ | G121: 0 | H121: =IFERROR(VLOOKUP($B121,'مخزن 111'!$D$7:$I$249,6,0),0) -> 0 | I121: =IFERROR(VLOOKUP($B121,'مخزن 138'!$C$5:$G$110,5,0),0) -> 0 | J121: =IFERROR(VLOOKUP($B121,'مخزن 139'!$E$7:$J$161,6,0),0) -> 0
A122: =+IF(B122="","",SUBTOTAL(3,B$2:B122)) -> 121 | B122: 120202220 | C122: كبد وقوانص 500جم بيع | D122: كبدقونص500 | E122: 0 | F122: فراخ | G122: 0 | H122: =IFERROR(VLOOKUP($B122,'مخزن 111'!$D$7:$I$249,6,0),0) -> 0 | I122: =IFERROR(VLOOKUP($B122,'مخزن 138'!$C$5:$G$110,5,0),0) -> 0 | J122: =IFERROR(VLOOKUP($B122,'مخزن 139'!$E$7:$J$161,6,0),0) -> 0
A123: =+IF(B123="","",SUBTOTAL(3,B$2:B123)) -> 122 | B123: 120202221 | C123: فرخه كاملة1000-1200جرام | D123: فرخةكاملة | E123: 0 | F123: فراخ | G123: 0 | H123: =IFERROR(VLOOKUP($B123,'مخزن 111'!$D$7:$I$249,6,0),0) -> 0 | I123: =IFERROR(VLOOKUP($B123,'مخزن 138'!$C$5:$G$110,5,0),0) -> 0 | J123: =IFERROR(VLOOKUP($B123,'مخزن 139'!$E$7:$J$161,6,0),0) -> 0
A124: =+IF(B124="","",SUBTOTAL(3,B$2:B124)) -> 123 | B124: 120202222 | C124: صدور فراخ فيليه منفذ | D124: ص/فراخ فيل | E124: 0 | F124: فراخ | G124: 0 | H124: =IFERROR(VLOOKUP($B124,'مخزن 111'!$D$7:$I$249,6,0),0) -> 0 | I124: =IFERROR(VLOOKUP($B124,'مخزن 138'!$C$5:$G$110,5,0),0) -> 0 | J124: =IFERROR(VLOOKUP($B124,'مخزن 139'!$E$7:$J$161,6,0),0) -> 0
A125: =+IF(B125="","",SUBTOTAL(3,B$2:B125)) -> 124 | B125: 120202223 | C125: شيش فراخ مخلية منفذ | D125: شيش فراخ م | E125: 0 | F125: فراخ | G125: 0 | H125: =IFERROR(VLOOKUP($B125,'مخزن 111'!$D$7:$I$249,6,0),0) -> 0 | I125: =IFERROR(VLOOKUP($B125,'مخزن 138'!$C$5:$G$110,5,0),0) -> 0 | J125: =IFERROR(VLOOKUP($B125,'مخزن 139'!$E$7:$J$161,6,0),0) -> 0
A126: =+IF(B126="","",SUBTOTAL(3,B$2:B126)) -> 125 | B126: 120202224 | C126: اجنحة فراخ حارة | D126: اجنحةد/حار | E126: 0 | F126: فراخ | G126: 0 | H126: =IFERROR(VLOOKUP($B126,'مخزن 111'!$D$7:$I$249,6,0),0) -> 0 | I126: =IFERROR(VLOOKUP($B126,'مخزن 138'!$C$5:$G$110,5,0),0) -> 0 | J126: =IFERROR(VLOOKUP($B126,'مخزن 139'!$E$7:$J$161,6,0),0) -> 0
A127: =+IF(B127="","",SUBTOTAL(3,B$2:B127)) -> 126 | B127: 120202229 | C127: كبدة صافى 500 جرام | D127: كبد500جرام | E127: 0 | F127: فراخ | G127: 0 | H127: =IFERROR(VLOOKUP($B127,'مخزن 111'!$D$7:$I$249,6,0),0) -> 0 | I127: =IFERROR(VLOOKUP($B127,'مخزن 138'!$C$5:$G$110,5,0),0) -> 0 | J127: =IFERROR(VLOOKUP($B127,'مخزن 139'!$E$7:$J$161,6,0),0) -> 0
A128: =+IF(B128="","",SUBTOTAL(3,B$2:B128)) -> 127 | B128: 120202231 | C128: فراخ برقبة من 1000:1100 جم | D128: فراخ برقبة | E128: 0 | F128: فراخ | G128: 0 | H128: =IFERROR(VLOOKUP($B128,'مخزن 111'!$D$7:$I$249,6,0),0) -> 0 | I128: =IFERROR(VLOOKUP($B128,'مخزن 138'!$C$5:$G$110,5,0),0) -> 0 | J128: =IFERROR(VLOOKUP($B128,'مخزن 139'!$E$7:$J$161,6,0),0) -> 0
A129: =+IF(B129="","",SUBTOTAL(3,B$2:B129)) -> 128 | B129: 120202232 | C129: صدور فراخ بانية من 160: 200 جرام | E129: 0 | G129: 0 | H129: =IFERROR(VLOOKUP($B129,'مخزن 111'!$D$7:$I$249,6,0),0) -> 0 | I129: =IFERROR(VLOOKUP($B129,'مخزن 138'!$C$5:$G$110,5,0),0) -> 0 | J129: =IFERROR(VLOOKUP($B129,'مخزن 139'!$E$7:$J$161,6,0),0) -> 0
A130: =+IF(B130="","",SUBTOTAL(3,B$2:B130)) -> 129 | B130: 120202238 | C130: ص/م200:165 | D130: CHICKENS | E130: فراخ | G130: KGM | H130: =IFERROR(VLOOKUP($B130,'مخزن 111'!$D$7:$I$249,6,0),0) -> 6103.138 | I130: =IFERROR(VLOOKUP($B130,'مخزن 138'!$C$5:$G$110,5,0),0) -> 262 | J130: =IFERROR(VLOOKUP($B130,'مخزن 139'!$E$7:$J$161,6,0),0) -> 292
A131: =+IF(B131="","",SUBTOTAL(3,B$2:B131)) -> 130 | B131: 120203101 | C131: بط بلدى | D131: بلدى | E131: 0 | F131: بط | G131: 0 | H131: =IFERROR(VLOOKUP($B131,'مخزن 111'!$D$7:$I$249,6,0),0) -> 0 | I131: =IFERROR(VLOOKUP($B131,'مخزن 138'!$C$5:$G$110,5,0),0) -> 0 | J131: =IFERROR(VLOOKUP($B131,'مخزن 139'!$E$7:$J$161,6,0),0) -> 0
A132: =+IF(B132="","",SUBTOTAL(3,B$2:B132)) -> 131 | B132: 120204101 | C132: حمام بلدى | D132: حمام بلدى | E132: 0 | F132: حمام/سمان | G132: 0 | H132: =IFERROR(VLOOKUP($B132,'مخزن 111'!$D$7:$I$249,6,0),0) -> 0 | I132: =IFERROR(VLOOKUP($B132,'مخزن 138'!$C$5:$G$110,5,0),0) -> 0 | J132: =IFERROR(VLOOKUP($B132,'مخزن 139'!$E$7:$J$161,6,0),0) -> 0
A133: =+IF(B133="","",SUBTOTAL(3,B$2:B133)) -> 132 | B133: 120204102 | C133: سمان محلى | D133: سمان محلى | E133: 0 | F133: حمام/سمان | G133: 0 | H133: =IFERROR(VLOOKUP($B133,'مخزن 111'!$D$7:$I$249,6,0),0) -> 0 | I133: =IFERROR(VLOOKUP($B133,'مخزن 138'!$C$5:$G$110,5,0),0) -> 0 | J133: =IFERROR(VLOOKUP($B133,'مخزن 139'!$E$7:$J$161,6,0),0) -> 0
A134: =+IF(B134="","",SUBTOTAL(3,B$2:B134)) -> 133 | B134: 120204103 | C134: حمام جامبو | D134: حمام جامبو | E134: 0 | F134: حمام/سمان | G134: 0 | H134: =IFERROR(VLOOKUP($B134,'مخزن 111'!$D$7:$I$249,6,0),0) -> 0 | I134: =IFERROR(VLOOKUP($B134,'مخزن 138'!$C$5:$G$110,5,0),0) -> 0 | J134: =IFERROR(VLOOKUP($B134,'مخزن 139'!$E$7:$J$161,6,0),0) -> 0
A135: =+IF(B135="","",SUBTOTAL(3,B$2:B135)) -> 134 | B135: 120205101 | C135: بيض ابيض | D135: بيض ابيض | E135: EGGS | F135: بيض | G135: EA. | H135: =IFERROR(VLOOKUP($B135,'مخزن 111'!$D$7:$I$249,6,0),0) -> 230 | I135: =IFERROR(VLOOKUP($B135,'مخزن 138'!$C$5:$G$110,5,0),0) -> 600 | J135: =IFERROR(VLOOKUP($B135,'مخزن 139'!$E$7:$J$161,6,0),0) -> 550
A136: =+IF(B136="","",SUBTOTAL(3,B$2:B136)) -> 135 | B136: 120205106 | C136: بيض ابيض وزن 50:60 جرام | D136: بيض60:50جم | E136: 0 | F136: بيض | G136: 0 | H136: =IFERROR(VLOOKUP($B136,'مخزن 111'!$D$7:$I$249,6,0),0) -> 0 | I136: =IFERROR(VLOOKUP($B136,'مخزن 138'!$C$5:$G$110,5,0),0) -> 0 | J136: =IFERROR(VLOOKUP($B136,'مخزن 139'!$E$7:$J$161,6,0),0) -> 0
A137: =+IF(B137="","",SUBTOTAL(3,B$2:B137)) -> 136 | B137: 120301201 | C137: سمك فيلية مستورد قشر بياض مجمد | D137: فيليه | E137: 0 | F137: سمك فيليه مستورد | G137: 0 | H137: =IFERROR(VLOOKUP($B137,'مخزن 111'!$D$7:$I$249,6,0),0) -> 0 | I137: =IFERROR(VLOOKUP($B137,'مخزن 138'!$C$5:$G$110,5,0),0) -> 0 | J137: =IFERROR(VLOOKUP($B137,'مخزن 139'!$E$7:$J$161,6,0),0) -> 0
A138: =+IF(B138="","",SUBTOTAL(3,B$2:B138)) -> 137 | B138: 120301208 | C138: سمك فيلية مستورد قشر بياض | D138: قشر بياض | E138: FISH | F138: سمك فيليه مستورد | G138: KGM | H138: =IFERROR(VLOOKUP($B138,'مخزن 111'!$D$7:$I$249,6,0),0) -> 132 | I138: =IFERROR(VLOOKUP($B138,'مخزن 138'!$C$5:$G$110,5,0),0) -> 0 | J138: =IFERROR(VLOOKUP($B138,'مخزن 139'!$E$7:$J$161,6,0),0) -> 0
A139: =+IF(B139="","",SUBTOTAL(3,B$2:B139)) -> 138 | B139: 120301211 | C139: سمك سالمون طازج نظيف | D139: طازج نظيف | E139: 0 | F139: سمك فيليه مستورد | G139: 0 | H139: =IFERROR(VLOOKUP($B139,'مخزن 111'!$D$7:$I$249,6,0),0) -> 0 | I139: =IFERROR(VLOOKUP($B139,'مخزن 138'!$C$5:$G$110,5,0),0) -> 0 | J139: =IFERROR(VLOOKUP($B139,'مخزن 139'!$E$7:$J$161,6,0),0) -> 0
A140: =+IF(B140="","",SUBTOTAL(3,B$2:B140)) -> 139 | B140: 120301215 | C140: سمك سالمون صحيح بالرأس والذيل | D140: سمك سالمون | E140: FISH | F140: سمك فيليه مستورد | G140: KGM | H140: =IFERROR(VLOOKUP($B140,'مخزن 111'!$D$7:$I$249,6,0),0) -> 86.4 | I140: =IFERROR(VLOOKUP($B140,'مخزن 138'!$C$5:$G$110,5,0),0) -> 0 | J140: =IFERROR(VLOOKUP($B140,'مخزن 139'!$E$7:$J$161,6,0),0) -> 0
A141: =+IF(B141="","",SUBTOTAL(3,B$2:B141)) -> 140 | B141: 120301217 | C141: سمك سبيط مجمد | D141: سبيط مجمد | E141: 0 | F141: سمك فيليه مستورد | G141: 0 | H141: =IFERROR(VLOOKUP($B141,'مخزن 111'!$D$7:$I$249,6,0),0) -> 0 | I141: =IFERROR(VLOOKUP($B141,'مخزن 138'!$C$5:$G$110,5,0),0) -> 0 | J141: =IFERROR(VLOOKUP($B141,'مخزن 139'!$E$7:$J$161,6,0),0) -> 0
A142: =+IF(B142="","",SUBTOTAL(3,B$2:B142)) -> 141 | B142: 120301218 | C142: سمك فيلية مستورد باسفيك | D142: سمك باسفيك | E142: 0 | F142: سمك فيليه مستورد | G142: 0 | H142: =IFERROR(VLOOKUP($B142,'مخزن 111'!$D$7:$I$249,6,0),0) -> 0 | I142: =IFERROR(VLOOKUP($B142,'مخزن 138'!$C$5:$G$110,5,0),0) -> 0 | J142: =IFERROR(VLOOKUP($B142,'مخزن 139'!$E$7:$J$161,6,0),0) -> 0
A143: =+IF(B143="","",SUBTOTAL(3,B$2:B143)) -> 142 | B143: 120301222 | C143: سمك فيلية باسا مستورد | D143: سمك باسا | E143: 0 | F143: سمك فيليه مستورد | G143: 0 | H143: =IFERROR(VLOOKUP($B143,'مخزن 111'!$D$7:$I$249,6,0),0) -> 0 | I143: =IFERROR(VLOOKUP($B143,'مخزن 138'!$C$5:$G$110,5,0),0) -> 0 | J143: =IFERROR(VLOOKUP($B143,'مخزن 139'!$E$7:$J$161,6,0),0) -> 0
A144: =+IF(B144="","",SUBTOTAL(3,B$2:B144)) -> 143 | B144: 120301305 | C144: سمك فيلية مستورد كود | D144: س فيلي كود | E144: 0 | F144: سمك فيليه مستورد | G144: 0 | H144: =IFERROR(VLOOKUP($B144,'مخزن 111'!$D$7:$I$249,6,0),0) -> 0 | I144: =IFERROR(VLOOKUP($B144,'مخزن 138'!$C$5:$G$110,5,0),0) -> 0 | J144: =IFERROR(VLOOKUP($B144,'مخزن 139'!$E$7:$J$161,6,0),0) -> 0
A145: =+IF(B145="","",SUBTOTAL(3,B$2:B145)) -> 144 | B145: 120301306 | C145: سمك بلطي | D145: اسماك | G145: كيلو جرام | H145: =IFERROR(VLOOKUP($B145,'مخزن 111'!$D$7:$I$249,6,0),0) -> 0 | I145: =IFERROR(VLOOKUP($B145,'مخزن 138'!$C$5:$G$110,5,0),0) -> 9 | J145: =IFERROR(VLOOKUP($B145,'مخزن 139'!$E$7:$J$161,6,0),0) -> 0
A146: =+IF(B146="","",SUBTOTAL(3,B$2:B146)) -> 145 | B146: 120302105 | C146: جمبرى جامبو | D146: جامبو | E146: 0 | F146: جمبرى | G146: 0 | H146: =IFERROR(VLOOKUP($B146,'مخزن 111'!$D$7:$I$249,6,0),0) -> 0 | I146: =IFERROR(VLOOKUP($B146,'مخزن 138'!$C$5:$G$110,5,0),0) -> 0 | J146: =IFERROR(VLOOKUP($B146,'مخزن 139'!$E$7:$J$161,6,0),0) -> 0
A147: =+IF(B147="","",SUBTOTAL(3,B$2:B147)) -> 146 | B147: 120302106 | C147: جمبرى جامبو مقشر | D147: جامبومقشر | E147: 0 | F147: جمبرى | G147: 0 | H147: =IFERROR(VLOOKUP($B147,'مخزن 111'!$D$7:$I$249,6,0),0) -> 0 | I147: =IFERROR(VLOOKUP($B147,'مخزن 138'!$C$5:$G$110,5,0),0) -> 0 | J147: =IFERROR(VLOOKUP($B147,'مخزن 139'!$E$7:$J$161,6,0),0) -> 0
A148: =+IF(B148="","",SUBTOTAL(3,B$2:B148)) -> 147 | B148: 120302108 | C148: جمبرى جامبو بقشرة من 20:25 حبه | D148: ج/بقشرةمتو | E148: 0 | F148: جمبرى | G148: 0 | H148: =IFERROR(VLOOKUP($B148,'مخزن 111'!$D$7:$I$249,6,0),0) -> 0 | I148: =IFERROR(VLOOKUP($B148,'مخزن 138'!$C$5:$G$110,5,0),0) -> 0 | J148: =IFERROR(VLOOKUP($B148,'مخزن 139'!$E$7:$J$161,6,0),0) -> 0
A149: =+IF(B149="","",SUBTOTAL(3,B$2:B149)) -> 148 | B149: 120302110 | C149: ج/زيل20:16 | D149: SHRIMPS | E149: جمبرى | G149: KGM | H149: =IFERROR(VLOOKUP($B149,'مخزن 111'!$D$7:$I$249,6,0),0) -> 77 | I149: =IFERROR(VLOOKUP($B149,'مخزن 138'!$C$5:$G$110,5,0),0) -> 0 | J149: =IFERROR(VLOOKUP($B149,'مخزن 139'!$E$7:$J$161,6,0),0) -> 0
A150: =+IF(B150="","",SUBTOTAL(3,B$2:B150)) -> 149 | B150: 120302202 | C150: جمبرى بقشر وسط من 30:40 حبه | D150: مجمد متوسط | E150: 0 | F150: جمبرى | G150: 0 | H150: =IFERROR(VLOOKUP($B150,'مخزن 111'!$D$7:$I$249,6,0),0) -> 0 | I150: =IFERROR(VLOOKUP($B150,'مخزن 138'!$C$5:$G$110,5,0),0) -> 0 | J150: =IFERROR(VLOOKUP($B150,'مخزن 139'!$E$7:$J$161,6,0),0) -> 0
A151: =+IF(B151="","",SUBTOTAL(3,B$2:B151)) -> 150 | B151: 120302203 | C151: جمبرى جامبو بقشر 15 حبه | D151: جمبو15كيلو | E151: 0 | F151: جمبرى | G151: 0 | H151: =IFERROR(VLOOKUP($B151,'مخزن 111'!$D$7:$I$249,6,0),0) -> 0 | I151: =IFERROR(VLOOKUP($B151,'مخزن 138'!$C$5:$G$110,5,0),0) -> 0 | J151: =IFERROR(VLOOKUP($B151,'مخزن 139'!$E$7:$J$161,6,0),0) -> 0
A152: =+IF(B152="","",SUBTOTAL(3,B$2:B152)) -> 151 | B152: 120302205 | C152: جمبرى جامبو | D152: جمبرىم/بدو | E152: 0 | F152: جمبرى | G152: 0 | H152: =IFERROR(VLOOKUP($B152,'مخزن 111'!$D$7:$I$249,6,0),0) -> 0 | I152: =IFERROR(VLOOKUP($B152,'مخزن 138'!$C$5:$G$110,5,0),0) -> 0 | J152: =IFERROR(VLOOKUP($B152,'مخزن 139'!$E$7:$J$161,6,0),0) -> 0
A153: =+IF(B153="","",SUBTOTAL(3,B$2:B153)) -> 152 | B153: 120302206 | C153: جمبرى متوسط بقشرة من 35:45 قطعة بالكيلو | D153: جمبرى42:35 | E153: 0 | F153: جمبرى | G153: 0 | H153: =IFERROR(VLOOKUP($B153,'مخزن 111'!$D$7:$I$249,6,0),0) -> 0 | I153: =IFERROR(VLOOKUP($B153,'مخزن 138'!$C$5:$G$110,5,0),0) -> 0 | J153: =IFERROR(VLOOKUP($B153,'مخزن 139'!$E$7:$J$161,6,0),0) -> 0
A154: =+IF(B154="","",SUBTOTAL(3,B$2:B154)) -> 153 | B154: 120302209 | C154: جمبرى صغير بدون قشر من100:120 حبه | D154: ج/صغيربدون | E154: 0 | F154: جمبرى | G154: 0 | H154: =IFERROR(VLOOKUP($B154,'مخزن 111'!$D$7:$I$249,6,0),0) -> 0 | I154: =IFERROR(VLOOKUP($B154,'مخزن 138'!$C$5:$G$110,5,0),0) -> 0 | J154: =IFERROR(VLOOKUP($B154,'مخزن 139'!$E$7:$J$161,6,0),0) -> 0
A155: =+IF(B155="","",SUBTOTAL(3,B$2:B155)) -> 154 | B155: 120302210 | C155: جمبرى صغير بدون قشر 100قطعة بالكيلو | D155: صغيربدو100 | E155: 0 | F155: جمبرى | G155: 0 | H155: =IFERROR(VLOOKUP($B155,'مخزن 111'!$D$7:$I$249,6,0),0) -> 0 | I155: =IFERROR(VLOOKUP($B155,'مخزن 138'!$C$5:$G$110,5,0),0) -> 0 | J155: =IFERROR(VLOOKUP($B155,'مخزن 139'!$E$7:$J$161,6,0),0) -> 0
A156: =+IF(B156="","",SUBTOTAL(3,B$2:B156)) -> 155 | B156: 120302211 | C156: جمبرى توسط 56 قطعة بالكيلو بدون قشر | D156: متوسط56بدو | E156: 0 | F156: جمبرى | G156: 0 | H156: =IFERROR(VLOOKUP($B156,'مخزن 111'!$D$7:$I$249,6,0),0) -> 0 | I156: =IFERROR(VLOOKUP($B156,'مخزن 138'!$C$5:$G$110,5,0),0) -> 0 | J156: =IFERROR(VLOOKUP($B156,'مخزن 139'!$E$7:$J$161,6,0),0) -> 0
A157: =+IF(B157="","",SUBTOTAL(3,B$2:B157)) -> 156 | B157: 120302212 | C157: جمبرىلحم100الى110بكي ج/100/110ب | D157: ج110/100/ب | E157: 0 | F157: جمبرى | G157: 0 | H157: =IFERROR(VLOOKUP($B157,'مخزن 111'!$D$7:$I$249,6,0),0) -> 0 | I157: =IFERROR(VLOOKUP($B157,'مخزن 138'!$C$5:$G$110,5,0),0) -> 0 | J157: =IFERROR(VLOOKUP($B157,'مخزن 139'!$E$7:$J$161,6,0),0) -> 0
A158: =+IF(B158="","",SUBTOTAL(3,B$2:B158)) -> 157 | B158: 120302213 | C158: ج/ص/88-115 | D158: SHRIMPS | E158: جمبرى | G158: KGM | H158: =IFERROR(VLOOKUP($B158,'مخزن 111'!$D$7:$I$249,6,0),0) -> 220 | I158: =IFERROR(VLOOKUP($B158,'مخزن 138'!$C$5:$G$110,5,0),0) -> 0 | J158: =IFERROR(VLOOKUP($B158,'مخزن 139'!$E$7:$J$161,6,0),0) -> 0
A159: =+IF(B159="","",SUBTOTAL(3,B$2:B159)) -> 158 | B159: 120303201 | C159: استاكوزا مجمدة | D159: مجمده | E159: 0 | F159: ستاكوزا | G159: 0 | H159: =IFERROR(VLOOKUP($B159,'مخزن 111'!$D$7:$I$249,6,0),0) -> 0 | I159: =IFERROR(VLOOKUP($B159,'مخزن 138'!$C$5:$G$110,5,0),0) -> 0 | J159: =IFERROR(VLOOKUP($B159,'مخزن 139'!$E$7:$J$161,6,0),0) -> 0
A160: =+IF(B160="","",SUBTOTAL(3,B$2:B160)) -> 159 | B160: 120304302 | C160: تونة علب 1715 جرام صافى | D160: علب 1715جم | E160: 0 | F160: تونةعلب | G160: 0 | H160: =IFERROR(VLOOKUP($B160,'مخزن 111'!$D$7:$I$249,6,0),0) -> 0 | I160: =IFERROR(VLOOKUP($B160,'مخزن 138'!$C$5:$G$110,5,0),0) -> 0 | J160: =IFERROR(VLOOKUP($B160,'مخزن 139'!$E$7:$J$161,6,0),0) -> 0
A161: =+IF(B161="","",SUBTOTAL(3,B$2:B161)) -> 160 | B161: 120304303 | C161: علبه تونه حوالى 170جرام | D161: ع/ تونه170 | E161: 0 | F161: تونةعلب | G161: 0 | H161: =IFERROR(VLOOKUP($B161,'مخزن 111'!$D$7:$I$249,6,0),0) -> 0 | I161: =IFERROR(VLOOKUP($B161,'مخزن 138'!$C$5:$G$110,5,0),0) -> 0 | J161: =IFERROR(VLOOKUP($B161,'مخزن 139'!$E$7:$J$161,6,0),0) -> 0
A162: =+IF(B162="","",SUBTOTAL(3,B$2:B162)) -> 161 | B162: 120304304 | C162: علبه تونه160جرام | D162: علبة 160جم | E162: 0 | F162: تونةعلب | G162: 0 | H162: =IFERROR(VLOOKUP($B162,'مخزن 111'!$D$7:$I$249,6,0),0) -> 0 | I162: =IFERROR(VLOOKUP($B162,'مخزن 138'!$C$5:$G$110,5,0),0) -> 0 | J162: =IFERROR(VLOOKUP($B162,'مخزن 139'!$E$7:$J$161,6,0),0) -> 0
A163: =+IF(B163="","",SUBTOTAL(3,B$2:B163)) -> 162 | B163: 120304310 | C163: تونة مستوردة 1700 جم | D163: تونة1700جم | E163: TUNA | F163: تونةعلب | G163: TIN | H163: =IFERROR(VLOOKUP($B163,'مخزن 111'!$D$7:$I$249,6,0),0) -> 228 | I163: =IFERROR(VLOOKUP($B163,'مخزن 138'!$C$5:$G$110,5,0),0) -> 0 | J163: =IFERROR(VLOOKUP($B163,'مخزن 139'!$E$7:$J$161,6,0),0) -> 0
A164: =+IF(B164="","",SUBTOTAL(3,B$2:B164)) -> 163 | B164: 120304314 | C164: تونة سهلة الفتح 185 جم صافى | D164: تونه185جم | E164: 0 | F164: تونةعلب | G164: 0 | H164: =IFERROR(VLOOKUP($B164,'مخزن 111'!$D$7:$I$249,6,0),0) -> 0 | I164: =IFERROR(VLOOKUP($B164,'مخزن 138'!$C$5:$G$110,5,0),0) -> 0 | J164: =IFERROR(VLOOKUP($B164,'مخزن 139'!$E$7:$J$161,6,0),0) -> 0
A165: =+IF(B165="","",SUBTOTAL(3,B$2:B165)) -> 164 | B165: 120304315 | C165: تونة 140 جرام مفتته | D165: تونة140جم | E165: 0 | F165: تونةعلب | G165: 0 | H165: =IFERROR(VLOOKUP($B165,'مخزن 111'!$D$7:$I$249,6,0),0) -> 0 | I165: =IFERROR(VLOOKUP($B165,'مخزن 138'!$C$5:$G$110,5,0),0) -> 0 | J165: =IFERROR(VLOOKUP($B165,'مخزن 139'!$E$7:$J$161,6,0),0) -> 0
A166: =+IF(B166="","",SUBTOTAL(3,B$2:B166)) -> 165 | B166: 120304316 | C166: تونة 185جرام مفتته | D166: تونة185جم | E166: 0 | F166: تونةعلب | G166: 0 | H166: =IFERROR(VLOOKUP($B166,'مخزن 111'!$D$7:$I$249,6,0),0) -> 0 | I166: =IFERROR(VLOOKUP($B166,'مخزن 138'!$C$5:$G$110,5,0),0) -> 0 | J166: =IFERROR(VLOOKUP($B166,'مخزن 139'!$E$7:$J$161,6,0),0) -> 0
A167: =+IF(B167="","",SUBTOTAL(3,B$2:B167)) -> 166 | B167: 120304317 | C167: سردين 125 جرام | D167: سردين125جم | E167: 0 | F167: تونةعلب | G167: 0 | H167: =IFERROR(VLOOKUP($B167,'مخزن 111'!$D$7:$I$249,6,0),0) -> 0 | I167: =IFERROR(VLOOKUP($B167,'مخزن 138'!$C$5:$G$110,5,0),0) -> 0 | J167: =IFERROR(VLOOKUP($B167,'مخزن 139'!$E$7:$J$161,6,0),0) -> 0
A168: =+IF(B168="","",SUBTOTAL(3,B$2:B168)) -> 167 | B168: 120304318 | C168: تونة قطع140جرام | D168: تونةقطع140 | E168: 0 | F168: تونةعلب | G168: 0 | H168: =IFERROR(VLOOKUP($B168,'مخزن 111'!$D$7:$I$249,6,0),0) -> 0 | I168: =IFERROR(VLOOKUP($B168,'مخزن 138'!$C$5:$G$110,5,0),0) -> 0 | J168: =IFERROR(VLOOKUP($B168,'مخزن 139'!$E$7:$J$161,6,0),0) -> 0
A169: =+IF(B169="","",SUBTOTAL(3,B$2:B169)) -> 168 | B169: 120304319 | C169: تونةقطع185جرام | D169: تونةقطع185 | E169: 0 | F169: تونةعلب | G169: 0 | H169: =IFERROR(VLOOKUP($B169,'مخزن 111'!$D$7:$I$249,6,0),0) -> 0 | I169: =IFERROR(VLOOKUP($B169,'مخزن 138'!$C$5:$G$110,5,0),0) -> 179 | J169: =IFERROR(VLOOKUP($B169,'مخزن 139'!$E$7:$J$161,6,0),0) -> 37
A170: =+IF(B170="","",SUBTOTAL(3,B$2:B170)) -> 169 | B170: 120304320 | C170: تونة قطع200جرام | D170: ت/قطع200جم | E170: 0 | F170: تونةعلب | G170: 0 | H170: =IFERROR(VLOOKUP($B170,'مخزن 111'!$D$7:$I$249,6,0),0) -> 0 | I170: =IFERROR(VLOOKUP($B170,'مخزن 138'!$C$5:$G$110,5,0),0) -> 0 | J170: =IFERROR(VLOOKUP($B170,'مخزن 139'!$E$7:$J$161,6,0),0) -> 0
A171: =+IF(B171="","",SUBTOTAL(3,B$2:B171)) -> 170 | B171: 120304321 | C171: تونةقطعةواحدة185جم | D171: قطعة185جم | E171: 0 | F171: تونةعلب | G171: 0 | H171: =IFERROR(VLOOKUP($B171,'مخزن 111'!$D$7:$I$249,6,0),0) -> 0 | I171: =IFERROR(VLOOKUP($B171,'مخزن 138'!$C$5:$G$110,5,0),0) -> 0 | J171: =IFERROR(VLOOKUP($B171,'مخزن 139'!$E$7:$J$161,6,0),0) -> 0
A172: =+IF(B172="","",SUBTOTAL(3,B$2:B172)) -> 171 | B172: 120304322 | C172: تونةمفتتةحارة140جرام | D172: ت/مفت/ح140 | E172: 0 | F172: تونةعلب | G172: 0 | H172: =IFERROR(VLOOKUP($B172,'مخزن 111'!$D$7:$I$249,6,0),0) -> 0 | I172: =IFERROR(VLOOKUP($B172,'مخزن 138'!$C$5:$G$110,5,0),0) -> 0 | J172: =IFERROR(VLOOKUP($B172,'مخزن 139'!$E$7:$J$161,6,0),0) -> 0
A173: =+IF(B173="","",SUBTOTAL(3,B$2:B173)) -> 172 | B173: 120304323 | C173: تونة قطع170جرام | D173: تونةقطع170 | E173: 0 | F173: تونةعلب | G173: 0 | H173: =IFERROR(VLOOKUP($B173,'مخزن 111'!$D$7:$I$249,6,0),0) -> 0 | I173: =IFERROR(VLOOKUP($B173,'مخزن 138'!$C$5:$G$110,5,0),0) -> 0 | J173: =IFERROR(VLOOKUP($B173,'مخزن 139'!$E$7:$J$161,6,0),0) -> 0
A174: =+IF(B174="","",SUBTOTAL(3,B$2:B174)) -> 173 | B174: 120304324 | C174: تونة فى زيت عباد 1715 جرام | D174: ت/عباد1715 | E174: 0 | F174: تونةعلب | G174: 0 | H174: =IFERROR(VLOOKUP($B174,'مخزن 111'!$D$7:$I$249,6,0),0) -> 0 | I174: =IFERROR(VLOOKUP($B174,'مخزن 138'!$C$5:$G$110,5,0),0) -> 0 | J174: =IFERROR(VLOOKUP($B174,'مخزن 139'!$E$7:$J$161,6,0),0) -> 0
A175: =+IF(B175="","",SUBTOTAL(3,B$2:B175)) -> 174 | B175: 120305301 | C175: كافيار اسود 100 جم | D175: كفياراسود | E175: 0 | F175: كافيار | G175: 0 | H175: =IFERROR(VLOOKUP($B175,'مخزن 111'!$D$7:$I$249,6,0),0) -> 0 | I175: =IFERROR(VLOOKUP($B175,'مخزن 138'!$C$5:$G$110,5,0),0) -> 0 | J175: =IFERROR(VLOOKUP($B175,'مخزن 139'!$E$7:$J$161,6,0),0) -> 0
A176: =+IF(B176="","",SUBTOTAL(3,B$2:B176)) -> 175 | B176: 120305303 | C176: كافبار اسود 50جم | D176: كفيار100جم | E176: 0 | F176: كافيار | G176: 0 | H176: =IFERROR(VLOOKUP($B176,'مخزن 111'!$D$7:$I$249,6,0),0) -> 0 | I176: =IFERROR(VLOOKUP($B176,'مخزن 138'!$C$5:$G$110,5,0),0) -> 0 | J176: =IFERROR(VLOOKUP($B176,'مخزن 139'!$E$7:$J$161,6,0),0) -> 0
A177: =+IF(B177="","",SUBTOTAL(3,B$2:B177)) -> 176 | B177: 120307301 | C177: انشوجة بالزيت 50 جم | D177: علبة50جرام | E177: 0 | F177: انشوجةبالزيت | G177: 0 | H177: =IFERROR(VLOOKUP($B177,'مخزن 111'!$D$7:$I$249,6,0),0) -> 0 | I177: =IFERROR(VLOOKUP($B177,'مخزن 138'!$C$5:$G$110,5,0),0) -> 0 | J177: =IFERROR(VLOOKUP($B177,'مخزن 139'!$E$7:$J$161,6,0),0) -> 0
A178: =+IF(B178="","",SUBTOTAL(3,B$2:B178)) -> 177 | B178: 120309108 | C178: اسماك رنجة مدخنة فيلية | D178: رنجةمدخنه | E178: 0 | F178: اسماك مدخنة | G178: 0 | H178: =IFERROR(VLOOKUP($B178,'مخزن 111'!$D$7:$I$249,6,0),0) -> 0 | I178: =IFERROR(VLOOKUP($B178,'مخزن 138'!$C$5:$G$110,5,0),0) -> 0 | J178: =IFERROR(VLOOKUP($B178,'مخزن 139'!$E$7:$J$161,6,0),0) -> 0
A179: =+IF(B179="","",SUBTOTAL(3,B$2:B179)) -> 178 | B179: 120309303 | C179: اسماك سيمون مدخنة | D179: سيمون | E179: SMOKED FISH | F179: اسماك مدخنة | G179: KGM | H179: =IFERROR(VLOOKUP($B179,'مخزن 111'!$D$7:$I$249,6,0),0) -> 89 | I179: =IFERROR(VLOOKUP($B179,'مخزن 138'!$C$5:$G$110,5,0),0) -> 17 | J179: =IFERROR(VLOOKUP($B179,'مخزن 139'!$E$7:$J$161,6,0),0) -> 2
A180: =+IF(B180="","",SUBTOTAL(3,B$2:B180)) -> 179 | B180: 120309305 | C180: اسماك مدخنة | D180: تراوت مدخن | E180: 0 | F180: اسماك مدخنة | G180: 0 | H180: =IFERROR(VLOOKUP($B180,'مخزن 111'!$D$7:$I$249,6,0),0) -> 0 | I180: =IFERROR(VLOOKUP($B180,'مخزن 138'!$C$5:$G$110,5,0),0) -> 0 | J180: =IFERROR(VLOOKUP($B180,'مخزن 139'!$E$7:$J$161,6,0),0) -> 0
A181: =+IF(B181="","",SUBTOTAL(3,B$2:B181)) -> 180 | B181: 120309307 | C181: سمك سيمون مدخن متيل شرائح | D181: سيمون شرئح | E181: 0 | F181: اسماك مدخنة | G181: 0 | H181: =IFERROR(VLOOKUP($B181,'مخزن 111'!$D$7:$I$249,6,0),0) -> 0 | I181: =IFERROR(VLOOKUP($B181,'مخزن 138'!$C$5:$G$110,5,0),0) -> 0 | J181: =IFERROR(VLOOKUP($B181,'مخزن 139'!$E$7:$J$161,6,0),0) -> 0
A182: =+IF(B182="","",SUBTOTAL(3,B$2:B182)) -> 181 | B182: 120310202 | C182: اصابع كابوريا | D182: كا/صـوابع | E182: CABORIA | F182: كابوريا | G182: KGM | H182: =IFERROR(VLOOKUP($B182,'مخزن 111'!$D$7:$I$249,6,0),0) -> 50 | I182: =IFERROR(VLOOKUP($B182,'مخزن 138'!$C$5:$G$110,5,0),0) -> 3.5 | J182: =IFERROR(VLOOKUP($B182,'مخزن 139'!$E$7:$J$161,6,0),0) -> 0
A183: =+IF(B183="","",SUBTOTAL(3,B$2:B183)) -> 182 | B183: 120311100 | C183: لحوم بقرى مدخن | D183: بقرى مدخن | E183: 0 | F183: لحوم مدخنة | G183: 0 | H183: =IFERROR(VLOOKUP($B183,'مخزن 111'!$D$7:$I$249,6,0),0) -> 0 | I183: =IFERROR(VLOOKUP($B183,'مخزن 138'!$C$5:$G$110,5,0),0) -> 45 | J183: =IFERROR(VLOOKUP($B183,'مخزن 139'!$E$7:$J$161,6,0),0) -> 11
A184: =+IF(B184="","",SUBTOTAL(3,B$2:B184)) -> 183 | B184: 120311101 | C184: لحوم رومى مدخن | D184: رومى مدخن | E184: 0 | F184: لحوم مدخنة | G184: 0 | H184: =IFERROR(VLOOKUP($B184,'مخزن 111'!$D$7:$I$249,6,0),0) -> 0 | I184: =IFERROR(VLOOKUP($B184,'مخزن 138'!$C$5:$G$110,5,0),0) -> 12 | J184: =IFERROR(VLOOKUP($B184,'مخزن 139'!$E$7:$J$161,6,0),0) -> 23.8
A185: =+IF(B185="","",SUBTOTAL(3,B$2:B185)) -> 184 | B185: 120311102 | C185: لحوم مدخنة بسطرمة شرائح بالكيلو | D185: بسطرمةشريح | E185: 0 | F185: لحوم مدخنة | G185: 0 | H185: =IFERROR(VLOOKUP($B185,'مخزن 111'!$D$7:$I$249,6,0),0) -> 0 | I185: =IFERROR(VLOOKUP($B185,'مخزن 138'!$C$5:$G$110,5,0),0) -> 0 | J185: =IFERROR(VLOOKUP($B185,'مخزن 139'!$E$7:$J$161,6,0),0) -> 0
A186: =+IF(B186="","",SUBTOTAL(3,B$2:B186)) -> 185 | B186: 120311103 | C186: فراخ مدخنة | D186: فراخ مدخنة | E186: 0 | F186: لحوم مدخنة | G186: 0 | H186: =IFERROR(VLOOKUP($B186,'مخزن 111'!$D$7:$I$249,6,0),0) -> 0 | I186: =IFERROR(VLOOKUP($B186,'مخزن 138'!$C$5:$G$110,5,0),0) -> 0 | J186: =IFERROR(VLOOKUP($B186,'مخزن 139'!$E$7:$J$161,6,0),0) -> 0
A187: =+IF(B187="","",SUBTOTAL(3,B$2:B187)) -> 186 | B187: 120311105 | C187: ترين دندى بخضار وفراخ مدخن | D187: تيرين دندى | E187: 0 | F187: لحوم مدخنة | G187: 0 | H187: =IFERROR(VLOOKUP($B187,'مخزن 111'!$D$7:$I$249,6,0),0) -> 0 | I187: =IFERROR(VLOOKUP($B187,'مخزن 138'!$C$5:$G$110,5,0),0) -> 0 | J187: =IFERROR(VLOOKUP($B187,'مخزن 139'!$E$7:$J$161,6,0),0) -> 0
A188: =+IF(B188="","",SUBTOTAL(3,B$2:B188)) -> 187 | B188: 120311109 | C188: ترين فراخ مدخن | D188: تيرين فراخ | E188: 0 | F188: لحوم مدخنة | G188: 0 | H188: =IFERROR(VLOOKUP($B188,'مخزن 111'!$D$7:$I$249,6,0),0) -> 0 | I188: =IFERROR(VLOOKUP($B188,'مخزن 138'!$C$5:$G$110,5,0),0) -> 0 | J188: =IFERROR(VLOOKUP($B188,'مخزن 139'!$E$7:$J$161,6,0),0) -> 0
A189: =+IF(B189="","",SUBTOTAL(3,B$2:B189)) -> 188 | B189: 120311110 | C189: صدور بط مدخنة | D189: ص بط مدخن | E189: 0 | F189: لحوم مدخنة | G189: 0 | H189: =IFERROR(VLOOKUP($B189,'مخزن 111'!$D$7:$I$249,6,0),0) -> 0 | I189: =IFERROR(VLOOKUP($B189,'مخزن 138'!$C$5:$G$110,5,0),0) -> 0 | J189: =IFERROR(VLOOKUP($B189,'مخزن 139'!$E$7:$J$161,6,0),0) -> 0
A190: =+IF(B190="","",SUBTOTAL(3,B$2:B190)) -> 189 | B190: 120311111 | C190: لحوم سلامى مطهى | D190: سلمى مطهى | E190: 0 | F190: لحوم مدخنة | G190: 0 | H190: =IFERROR(VLOOKUP($B190,'مخزن 111'!$D$7:$I$249,6,0),0) -> 0 | I190: =IFERROR(VLOOKUP($B190,'مخزن 138'!$C$5:$G$110,5,0),0) -> 0 | J190: =IFERROR(VLOOKUP($B190,'مخزن 139'!$E$7:$J$161,6,0),0) -> 0
A191: =+IF(B191="","",SUBTOTAL(3,B$2:B191)) -> 190 | B191: 120311112 | C191: لحم رستو بقرى مدخن | D191: روستو بقرى | E191: 0 | F191: لحوم مدخنة | G191: 0 | H191: =IFERROR(VLOOKUP($B191,'مخزن 111'!$D$7:$I$249,6,0),0) -> 0 | I191: =IFERROR(VLOOKUP($B191,'مخزن 138'!$C$5:$G$110,5,0),0) -> 0 | J191: =IFERROR(VLOOKUP($B191,'مخزن 139'!$E$7:$J$161,6,0),0) -> 0
A192: =+IF(B192="","",SUBTOTAL(3,B$2:B192)) -> 191 | B192: 120311114 | C192: لحوم مدخنة فراخ روستو | D192: فراخ روستو | E192: 0 | F192: لحوم مدخنة | G192: 0 | H192: =IFERROR(VLOOKUP($B192,'مخزن 111'!$D$7:$I$249,6,0),0) -> 0 | I192: =IFERROR(VLOOKUP($B192,'مخزن 138'!$C$5:$G$110,5,0),0) -> 0 | J192: =IFERROR(VLOOKUP($B192,'مخزن 139'!$E$7:$J$161,6,0),0) -> 0
A193: =+IF(B193="","",SUBTOTAL(3,B$2:B193)) -> 192 | B193: 120311115 | C193: لحوم مدخنة بقرى مجفف | D193: بقرى مجفف | E193: 0 | F193: لحوم مدخنة | G193: 0 | H193: =IFERROR(VLOOKUP($B193,'مخزن 111'!$D$7:$I$249,6,0),0) -> 0 | I193: =IFERROR(VLOOKUP($B193,'مخزن 138'!$C$5:$G$110,5,0),0) -> 0 | J193: =IFERROR(VLOOKUP($B193,'مخزن 139'!$E$7:$J$161,6,0),0) -> 0
A194: =+IF(B194="","",SUBTOTAL(3,B$2:B194)) -> 193 | B194: 120311117 | C194: تليبينكو مدخن بلدى | D194: تلبينكو مد | E194: 0 | F194: لحوم مدخنة | G194: 0 | H194: =IFERROR(VLOOKUP($B194,'مخزن 111'!$D$7:$I$249,6,0),0) -> 0 | I194: =IFERROR(VLOOKUP($B194,'مخزن 138'!$C$5:$G$110,5,0),0) -> 0 | J194: =IFERROR(VLOOKUP($B194,'مخزن 139'!$E$7:$J$161,6,0),0) -> 0
A195: =+IF(B195="","",SUBTOTAL(3,B$2:B195)) -> 194 | B195: 120311118 | C195: لحوم مدخنة ترين سالمون | D195: ترين سلمون | E195: 0 | F195: لحوم مدخنة | G195: 0 | H195: =IFERROR(VLOOKUP($B195,'مخزن 111'!$D$7:$I$249,6,0),0) -> 0 | I195: =IFERROR(VLOOKUP($B195,'مخزن 138'!$C$5:$G$110,5,0),0) -> 0 | J195: =IFERROR(VLOOKUP($B195,'مخزن 139'!$E$7:$J$161,6,0),0) -> 0
A196: =+IF(B196="","",SUBTOTAL(3,B$2:B196)) -> 195 | B196: 120311122 | C196: تريين بط | D196: ترين بط | E196: 0 | F196: لحوم مدخنة | G196: 0 | H196: =IFERROR(VLOOKUP($B196,'مخزن 111'!$D$7:$I$249,6,0),0) -> 0 | I196: =IFERROR(VLOOKUP($B196,'مخزن 138'!$C$5:$G$110,5,0),0) -> 0 | J196: =IFERROR(VLOOKUP($B196,'مخزن 139'!$E$7:$J$161,6,0),0) -> 0
A197: =+IF(B197="","",SUBTOTAL(3,B$2:B197)) -> 196 | B197: 120311123 | C197: بسطرمة بالكيلو مدخنة | D197: بسطرمةكيلو | E197: 0 | F197: لحوم مدخنة | G197: 0 | H197: =IFERROR(VLOOKUP($B197,'مخزن 111'!$D$7:$I$249,6,0),0) -> 0 | I197: =IFERROR(VLOOKUP($B197,'مخزن 138'!$C$5:$G$110,5,0),0) -> 0 | J197: =IFERROR(VLOOKUP($B197,'مخزن 139'!$E$7:$J$161,6,0),0) -> 0
A198: =+IF(B198="","",SUBTOTAL(3,B$2:B198)) -> 197 | B198: 120311129 | C198: لحوم مدخنة ترين كبدة فراخ | D198: ترين كبدةف | E198: 0 | F198: لحوم مدخنة | G198: 0 | H198: =IFERROR(VLOOKUP($B198,'مخزن 111'!$D$7:$I$249,6,0),0) -> 0 | I198: =IFERROR(VLOOKUP($B198,'مخزن 138'!$C$5:$G$110,5,0),0) -> 0 | J198: =IFERROR(VLOOKUP($B198,'مخزن 139'!$E$7:$J$161,6,0),0) -> 0
A199: =+IF(B199="","",SUBTOTAL(3,B$2:B199)) -> 198 | B199: 120311130 | C199: لحوم مدخنة شاورما فراخ شرائح | D199: شورمةفراخ | E199: 0 | F199: لحوم مدخنة | G199: 0 | H199: =IFERROR(VLOOKUP($B199,'مخزن 111'!$D$7:$I$249,6,0),0) -> 0 | I199: =IFERROR(VLOOKUP($B199,'مخزن 138'!$C$5:$G$110,5,0),0) -> 0 | J199: =IFERROR(VLOOKUP($B199,'مخزن 139'!$E$7:$J$161,6,0),0) -> 0
A200: =+IF(B200="","",SUBTOTAL(3,B$2:B200)) -> 199 | B200: 120311131 | C200: لحوم مدخنة بيرونى بقري | D200: بيرونىبقرى | E200: 0 | F200: لحوم مدخنة | G200: 0 | H200: =IFERROR(VLOOKUP($B200,'مخزن 111'!$D$7:$I$249,6,0),0) -> 0 | I200: =IFERROR(VLOOKUP($B200,'مخزن 138'!$C$5:$G$110,5,0),0) -> 0 | J200: =IFERROR(VLOOKUP($B200,'مخزن 139'!$E$7:$J$161,6,0),0) -> 0
... 5598 more rows

Sheet البيان
B7: م | C7: رقم الصنف | D7: الصنف | E7: المجموعه | F7: الوحده | G7: كميه مخزن القاهره | H7: كميه مخزن شرم الشيخ | I7: كميه مخزن الغردقه

Sheet مخزن 111
E2: مخزن 111
C6: م | D6: رقم الصنف | E6: الصنف | F6: المجموعه | G6: المجموعه 2 | H6: الوحده | I6: كميه /111
C7: 1 | D7: 111104101 | E7: كريمة مشروم | F7: SOUP | G7: شوربه | H7: EA. | I7: 8988
C8: 2 | D8: 111104102 | E8: خضروات | F8: SOUP | G8: شوربه | H8: EA. | I8: 8988
C9: 3 | D9: 111104103 | E9: طماطم | F9: SOUP | G9: شوربه | H9: EA. | I9: 10416
C10: 4 | D10: 111104104 | E10: كريمةطماطم | F10: SOUP | G10: شوربه | H10: EA. | I10: 10080
C11: 5 | D11: 111104105 | E11: طماطم توسك | F11: SOUP | G11: شوربه | H11: EA. | I11: 10500
C12: 6 | D12: 111105301 | E12: اكل يهودي | F12: KOSHER MEAL | G12: اكل يهودى | H12: EA. | I12: 79
C13: 7 | D13: 111105302 | E13: غ و ع ساخن | F13: KOSHER MEAL | G13: اكل يهودى | H13: EA. | I13: 206
C14: 8 | D14: 111105304 | E14: T ECON | F14: KOSHER MEAL | G14: اكل يهودى | H14: EA. | I14: 140
C15: 9 | D15: 120102115 | E15: ريش ضانى | F15: LAMB | G15: ضانى | H15: KGM | I15: 127.12
C16: 10 | D16: 120110010 | E16: كبيبةمينى | F16: VEAL | G16: لحوم مصنعه سندوتشات | H16: KGM | I16: 16
C17: 11 | D17: 120202206 | E17: وراك مخلية | F17: CHICKENS | G17: فراخ | H17: KGM | I17: 492.719
C18: 12 | D18: 120202238 | E18: ص/م200:165 | F18: CHICKENS | G18: فراخ | H18: KGM | I18: 6103.138
C19: 13 | D19: 120205101 | E19: بيض ابيض | F19: EGGS | G19: بيض | H19: EA. | I19: 230
C20: 14 | D20: 120301208 | E20: قشربياض في | F20: FISH | G20: سمك فيليةمحلى ومستور | H20: KGM | I20: 132
C21: 15 | D21: 120301215 | E21: سمك سالمون | F21: FISH | G21: سمك فيليةمحلى ومستور | H21: KGM | I21: 86.4
C22: 16 | D22: 120302110 | E22: ج/زيل20:16 | F22: SHRIMPS | G22: جمبرى | H22: KGM | I22: 77
C23: 17 | D23: 120302213 | E23: ج/ص/88-115 | F23: SHRIMPS | G23: جمبرى | H23: KGM | I23: 220
C24: 18 | D24: 120304310 | E24: تونة1700جم | F24: TUNA | G24: تونةعلب | H24: TIN | I24: 228
C25: 19 | D25: 120309303 | E25: سيمون | F25: SMOKED FISH | G25: اسماك مدخنة | H25: KGM | I25: 89
C26: 20 | D26: 120310202 | E26: كا/صـوابع | F26: CABORIA | G26: كابوريا | H26: KGM | I26: 50
C27: 21 | D27: 120311138 | E27: جيريزون10ج | F27: SMOKMEAT | G27: لحوم مدخنة | H27: KGM | I27: 30
C28: 22 | D28: 120401307 | E28: بسله بجزر | F28: GREEN PEAS | G28: بسلة خضراء | H28: KGM | I28: 1850
C29: 23 | D29: 120403202 | E29: مجمدة كجم | F29: GREEN BEANS | G29: فاصوليا خضراء | H29: KGM | I29: 280
C30: 24 | D30: 120405110 | E30: بطا/روندال | F30: POTATOES | G30: بطاطس | H30: KGM | I30: 42
C31: 25 | D31: 120405306 | E31: بطاطس بودر | F31: POTATOES | G31: بطاطس | H31: KGM | I31: 2
C32: 26 | D32: 120405307 | E32: كروكيت | F32: POTATOES | G32: بطاطس | H32: KGM | I32: 28
C33: 27 | D33: 120406103 | E33: بودرةكجم | F33: GARLIC | G33: ثوم | H33: KGM | I33: 4
C34: 28 | D34: 120407308 | E34: صلصة3كيلو | F34: TOMATOES | G34: طماطم | H34: TIN | I34: 76
C35: 29 | D35: 120407326 | E35: ط/مجفف280 | F35: TOMATOES | G35: طماطم | H35: JAR | I35: 372
C36: 30 | D36: 120409202 | E36: مجمدة كجم | F36: SPINACH | G36: سبانخ | H36: KGM | I36: 48
C37: 31 | D37: 120416328 | E37: 800ص/425م | F37: MUSHROOM | G37: مشروم | H37: TIN | I37: 804
C38: 32 | D38: 120416331 | E38: م/ش 800صاف | F38: MUSHROOM | G38: مشروم | H38: TIN | I38: 672
C39: 33 | D39: 120427102 | E39: بروكلىمجمد | F39: BROKLY | G39: بروكلى | H39: KGM | I39: 258
C40: 34 | D40: 120502103 | E40: كم/خوخ810 | F40: PEACHES | G40: خوخ | H40: TIN | I40: 300
C41: 35 | D41: 120502306 | E41: كمبوت820جم | F41: PEACHES | G41: خوخ | H41: TIN | I41: 12
C42: 36 | D42: 120504302 | E42: كمبوت850جم | F42: PINEAPPLE | G42: كمبوت اناناس | H42: TIN | I42: 672
C43: 37 | D43: 120506305 | E43: كريز كيلو | F43: CHERRY | G43: كريز | H43: KGM | I43: 4.5
C44: 38 | D44: 120601103 | E44: شعرية كجم | F44: MACARONI | G44: مكرونةوسمبوسه | H44: KGM | I44: 160
C45: 39 | D45: 120601104 | E45: شريط كجم | F45: MACARONI | G45: مكرونةوسمبوسه | H45: KGM | I45: 160
C46: 40 | D46: 120601106 | E46: بنة كجم | F46: MACARONI | G46: مكرونةوسمبوسه | H46: KGM | I46: 1260
C47: 41 | D47: 120601125 | E47: سمبوسةجبنة | F47: MACARONI | G47: مكرونةوسمبوسه | H47: KGM | I47: 15
C48: 42 | D48: 120603103 | E48: دقيق سميد | F48: FLOWER | G48: دقيق بانواعه | H48: KGM | I48: 99.72
C49: 43 | D49: 120603106 | E49: محلى 50كجم | F49: FLOWER | G49: دقيق بانواعه | H49: KGM | I49: 2893.04
C50: 44 | D50: 120603137 | E50: برونيز ميك | F50: FLOWER | G50: دقيق بانواعه | H50: KGM | I50: 90
C51: 45 | D51: 120603173 | E51: ترت سكر5ر3 | F51: FLOWER | G51: دقيق بانواعه | H51: EA. | I51: 8640
C52: 46 | D52: 120603174 | E52: ترت سكر7سم | F52: FLOWER | G52: دقيق بانواعه | H52: EA. | I52: 9360
C53: 47 | D53: 120603177 | E53: فوتين كرسب | F53: FLOWER | G53: دقيق بانواعه | H53: KGM | I53: 4
C54: 48 | D54: 120603178 | E54: ت/ملح مربع | F54: FLOWER | G54: دقيق بانواعه | H54: EA. | I54: 2304
C55: 49 | D55: 120603385 | E55: كينوا | F55: FLOWER | G55: دقيق بانواعه | H55: KGM | I55: 7
C56: 50 | D56: 120604405 | E56: كورن فليكس | F56: CORN FLACKES | G56: كورن فليكس | H56: BOX | I56: 288
C57: 51 | D57: 120605101 | E57: بالكيلو | F57: RICE | G57: ارز سياحى | H57: KGM | I57: 950
C58: 52 | D58: 120605105 | E58: بسمتى مغلى | F58: RICE | G58: ارز سياحى | H58: KGM | I58: 2840
C59: 53 | D59: 120606315 | E59: نشا ذرة | F59: STARCH | G59: نشا | H59: KGM | I59: 225
C60: 54 | D60: 120609303 | E60: ناعم | F60: SUGAR | G60: سكر | H60: KGM | I60: 1550
C61: 55 | D61: 120609401 | E61: بودره | F61: SUGAR | G61: سكر | H61: KGM | I61: 360
C62: 56 | D62: 120701301 | E62: اسود حصى | F62: PEPPER | G62: فلفل | H62: KGM | I62: 1
C63: 57 | D63: 120701302 | E63: ابيض كجم | F63: PEPPER | G63: فلفل | H63: KGM | I63: 2.5
C64: 58 | D64: 120701308 | E64: فلفل اسود | F64: PEPPER | G64: فلفل | H64: KGM | I64: 15
C65: 59 | D65: 120702301 | E65: فلفل احمرك | F65: PAPRICA | G65: فلفل احمر | H65: KGM | I65: 20
C66: 60 | D66: 120703301 | E66: ناعمة كجم | F66: CHILI | G66: شطة | H66: KGM | I66: 0.5
C67: 61 | D67: 120704301 | E67: ناعمة كجم | F67: CORIANDER | G67: كسبرة | H67: KGM | I67: 16
C68: 62 | D68: 120705101 | E68: حصى كم | F68: CUMIN | G68: كمون | H68: KGM | I68: 9
C69: 63 | D69: 120705301 | E69: بلدى كجم | F69: CUMIN | G69: كمون | H69: KGM | I69: 6
C70: 64 | D70: 120706101 | E70: حبهان مطحن | F70: ETARA-HPAHAN | G70: عطارة-حبهان | H70: KGM | I70: 1.9
C71: 65 | D71: 120707102 | E71: مسحوق | F71: BOWDER | G71: جوزة الطيب | H71: KGM | I71: 1
C72: 66 | D72: 120709309 | E72: كارى بودرة | F72: KARE | G72: كارى | H72: KGM | I72: 8.4
C73: 67 | D73: 120710301 | E73: ناعم كجم | F73: CURCUMA | G73: كركم | H73: KGM | I73: 1
C74: 68 | D74: 120711302 | E74: بصل بودرة | F74: SEASONING | G74: خلطة بهارات | H74: KGM | I74: 5
C75: 69 | D75: 120711303 | E75: كبة صينى | F75: SEASONING | G75: خلطة بهارات | H75: KGM | I75: 19
C76: 70 | D76: 120713301 | E76: ناعمة كجم | F76: CINNAMON | G76: قرفة | H76: KGM | I76: 8
C77: 71 | D77: 120717302 | E77: سايب كجم | F77: GINGER | G77: جنزبيل | H77: KGM | I77: 12.5
C78: 72 | D78: 120718312 | E78: ملح300جم | F78: SALT | G78: ملح | H78: PKT | I78: 1440
C79: 73 | D79: 120719112 | E79: توبل شو900 | F79: SPICES | G79: توابل | H79: TIN | I79: 18
C80: 74 | D80: 120719114 | E80: توابل800شر | F80: SPICES | G80: توابل | H80: TIN | I80: 6
C81: 75 | D81: 120722301 | E81: بالكيلو | F81: BLACK SEED | G81: حبة البركه | H81: KGM | I81: 14.5
C82: 76 | D82: 120737103 | E82: نعناع5.2:1 | F82: MINT | G82: النعناع | H82: BOX | I82: 1152
C83: 77 | D83: 120740102 | E83: قرفة5.2:1ج | F83: SACHETTES | G83: عبوات | H83: TIN | I83: 864
C84: 78 | D84: 120740109 | E84: كركدية2جم | F84: SACHETTES | G84: عبوات | H84: TIN | I84: 432
C85: 79 | D85: 120740111 | E85: كاموميل5ز1 | F85: SACHETTES | G85: عبوات | H85: PKT | I85: 3456
C86: 80 | D86: 120740114 | E86: تليو5.2:1ج | F86: SACHETTES | G86: عبوات | H86: TIN | I86: 576
C87: 81 | D87: 120740115 | E87: ينسون5.2:1 | F87: SACHETTES | G87: عبوات | H87: TIN | I87: 576
C88: 82 | D88: 120801107 | E88: ملح خفيف | F88: WHITE CHEESE | G88: جبنة بيضاء | H88: KGM | I88: 72
C89: 83 | D89: 120801111 | E89: فيتايونانى | F89: WHITE CHEESE | G89: جبنة بيضاء | H89: KGM | I89: 38.35
C90: 84 | D90: 120802101 | E90: صحيح كجم | F90: BALKAN CHEESE | G90: جبنة رومى | H90: KGM | I90: 12.15
C91: 85 | D91: 120803306 | E91: ريكفورد مح | F91: غ | G91: جبن روكفور | H91: KGM | I91: 27.6
C92: 86 | D92: 120803307 | E92: ريكفورد25ج | F92: DANISH BLUE | G92: جبن روكفور | H92: EA. | I92: 672
C93: 87 | D93: 120804109 | E93: ج/شيدركمون | F93: SHEDER CHEESE | G93: جبنة شيدر | H93: KGM | I93: 223.88
C94: 88 | D94: 120805101 | E94: ايدام | F94: CHEESE | G94: جبن مطبوخ | H94: KGM | I94: 22.457
C95: 89 | D95: 120805103 | E95: جودة | F95: CHEESE | G95: جبن مطبوخ | H95: KGM | I95: 1853.01
C96: 90 | D96: 120805111 | E96: ج موتزاريلا | F96: CHEESE | G96: جبن مطبوخ | H96: KGM | I96: 144
C97: 91 | D97: 120805125 | E97: ج/برفلونى | F97: CHEESE | G97: جبن مطبوخ | H97: KGM | I97: 17.5
C98: 92 | D98: 120807304 | E98: ج/مطبوخةمث | F98: TRIANGLE CHEESE | G98: جبنة مطبوخة | H98: EA. | I98: 100800
C99: 93 | D99: 120807307 | E99: ج/بقشطة20ج | F99: TRIANGLE CHEESE | G99: جبنة مطبوخة | H99: EA. | I99: 6900
C100: 94 | D100: 120903106 | E100: لبن شكولاته | F100: L/L FRESH MILK | G100: لبن طويل العمر | H100: PKT | I100: 4
C101: 95 | D101: 120903317 | E101: لبن 200ملى | F101: L/L FRESH MILK | G101: لبن طويل العمر | H101: TIN | I101: 81
C102: 96 | D102: 120903318 | E102: لبن0منزوع0 | F102: L/L FRESH MILK | G102: لبن طويل العمر | H102: PKT | I102: 276
C103: 97 | D103: 120903332 | E103: كامل الدسم | F103: L/L FRESH MILK | G103: لبن طويل العمر | H103: LTR | I103: 2568
C104: 98 | D104: 120903333 | E104: نصف دسم | F104: L/L FRESH MILK | G104: لبن طويل العمر | H104: LTR | I104: 2172
C105: 99 | D105: 120903335 | E105: لبن بودر-ك | F105: L/L FRESH MILK | G105: لبن طويل العمر | H105: KGM | I105: 108
C106: 100 | D106: 120904322 | E106: زبادى105جم | F106: YOUGHURT | G106: زبادى | H106: EA. | I106: 1392
C107: 101 | D107: 120904324 | E107: زدايت105جم | F107: YOUGHURT | G107: زبادى | H107: EA. | I107: 96
C108: 102 | D108: 120905304 | E108: شانتييه | F108: CREAM | G108: كريمه | H108: KGM | I108: 675
C109: 103 | D109: 120905306 | E109: باتيسيرى ك | F109: CREAM | G109: كريمه | H109: KGM | I109: 70
C110: 104 | D110: 120905324 | E110: كريمةنباتى | F110: CREAM | G110: كريمه | H110: LTR | I110: 396
C111: 105 | D111: 120905365 | E111: ك/تشيزبودر | F111: CREAM | G111: كريمه | H111: KGM | I111: 160
C112: 106 | D112: 121001306 | E112: طبيعى | F112: BUTTER | G112: مسلى طبيعى | H112: KGM | I112: 15
C113: 107 | D113: 121001308 | E113: زبدة 25كجم | F113: BUTTER | G113: مسلى طبيعى | H113: KGM | I113: 6000
C114: 108 | D114: 121003313 | E114: زيت1لترزرة | F114: CORN OIL | G114: زيت ذرة | H114: TIN | I114: 1272
C115: 109 | D115: 121004318 | E115: ز/من8ألى1 | F115: VARIED OIL | G115: زيوت متنوعة | H115: BOT | I115: 36
C116: 110 | D116: 121007107 | E116: زيت قلى لت | F116: PLANT OIL | G116: زيت نباتى للتحمير | H116: LTR | I116: 1060
C117: 111 | D117: 121101306 | E117: خضار120جم | F117: BABY FOOD | G117: اكل طفل | H117: JAR | I117: 1308
C118: 112 | D118: 121101307 | E118: فاكهه125جم | F118: BABY FOOD | G118: اكل طفل | H118: JAR | I118: 2580
C119: 113 | D119: 121104310 | E119: مرقةدج1100 | F119: SOUP | G119: شوربه | H119: TIN | I119: 108
C120: 114 | D120: 121204309 | E120: فول م3كيلو | F120: BROWN BEANS | G120: فول مدمس | H120: TIN | I120: 452
C121: 115 | D121: 121205102 | E121: أبيض كم | F121: SESAME | G121: سمسم | H121: KGM | I121: 40
C122: 116 | D122: 121206306 | E122: 425ص | F122: CORN | G122: (ذرة(بيبى كورن | H122: TIN | I122: 576
C123: 117 | D123: 121207309 | E123: حمص مسل400 | F123: HOMMOS | G123: حمص | H123: TIN | I123: 480
C124: 118 | D124: 121301310 | E124: طبيعىمحلى | F124: OLIVES | G124: زيتون | H124: KGM | I124: 250
C125: 119 | D125: 121301315 | E125: ز/م1450م/س | F125: OLIVES | G125: زيتون | H125: TIN | I125: 36
C126: 120 | D126: 121301316 | E126: ز/م/خ1450م | F126: OLIVES | G126: زيتون | H126: TIN | I126: 167
C127: 121 | D127: 121302307 | E127: مشكل كيلو | F127: PICKLES | G127: مخلل | H127: KGM | I127: 200
C128: 122 | D128: 121302314 | E128: خيارقشةمخل | F128: PICKLES | G128: مخلل | H128: KGM | I128: 50
C129: 123 | D129: 121303311 | E129: حبوب كاري | F129: CAPRY | G129: كاري بالخل | H129: JAR | I129: 18
C130: 124 | D130: 121304001 | E130: كتشب ح28ج | F130: KETCHUP | G130: كاتشب | H130: EA. | I130: 1890
C131: 125 | D131: 121304002 | E131: ك/حار ح28ج | F131: KETCHUP | G131: كاتشب | H131: EA. | I131: 1530
C132: 126 | D132: 121304506 | E132: كاتشب200جم | F132: KETCHUP | G132: كاتشب | H132: JAR | I132: 936
C133: 127 | D133: 121304511 | E133: كتشب ظرف7ج | F133: KETCHUP | G133: كاتشب | H133: PKT | I133: 8000
C134: 128 | D134: 121305003 | E134: ص/درسنج20ج | F134: SAUCE | G134: صوص | H134: EA. | I134: 500
C135: 129 | D135: 121305347 | E135: هوت صوص165 | F135: SAUCE | G135: صوص | H135: BOT | I135: 984
C136: 130 | D136: 121306001 | E136: ميونيز ح28 | F136: MUSTARD | G136: مستردةومايونيز | H136: EA. | I136: 1620
C137: 131 | D137: 121306002 | E137: مسترد ح28ج | F137: MUSTARD | G137: مستردةومايونيز | H137: EA. | I137: 1170
C138: 132 | D138: 121306003 | E138: مستردة235ج | F138: MUSTARD | G138: مستردةومايونيز | H138: BOT | I138: 72
C139: 133 | D139: 121306323 | E139: م /السحرى | F139: MUSTARD | G139: مستردةومايونيز | H139: JRK | I139: 49
C140: 134 | D140: 121306332 | E140: مسترده محل | F140: MUSTARD | G140: مستردةومايونيز | H140: TIN | I140: 8
C141: 135 | D141: 121307101 | E141: سايبه كجم | F141: SESAME PASTE | G141: طحينة | H141: KGM | I141: 90
C142: 136 | D142: 121401419 | E142: 50جم6قطع | F142: VARIED BISCUIT | G142: بسكويت انواع | H142: PKT | I142: 30500
C143: 137 | D143: 121402105 | E143: ش/ شيبس | F143: CHOCOLATE | G143: شيكولاتة | H143: KGM | I143: 10
C144: 138 | D144: 121402106 | E144: ريترسبورتج | F144: CHOCOLATE | G144: شيكولاتة | H144: EA. | I144: 80740
C145: 139 | D145: 121402325 | E145: ش/مبشورةسا | F145: CHOCOLATE | G145: شيكولاتة | H145: KGM | I145: 25
C146: 140 | D146: 121402330 | E146: كفرتور2500 | F146: CHOCOLATE | G146: شيكولاتة | H146: PKT | I146: 48
C147: 141 | D147: 121402341 | E147: ش/كفر2500ج | F147: CHOCOLATE | G147: شيكولاتة | H147: PKT | I147: 24
C148: 142 | D148: 121402433 | E148: شكولاتةفلتس | F148: CHOCOLATE | G148: شيكولاتة | H148: PKT | I148: 1404
C149: 143 | D149: 121402455 | E149: ش.برلز بني | F149: CHOCOLATE | G149: شيكولاتة | H149: KGM | I149: 20
C150: 144 | D150: 121402472 | E150: ش/بيل سادة | F150: CHOCOLATE | G150: شيكولاتة | H150: KGM | I150: 20
C151: 145 | D151: 121402473 | E151: ش/بيل حليب | F151: CHOCOLATE | G151: شيكولاتة | H151: KGM | I151: 20
C152: 146 | D152: 121403303 | E152: ب0أاخرى | F152: COCOA | G152: كاكاو | H152: KGM | I152: 25
C153: 147 | D153: 121501324 | E153: مشمش ك | F153: JAM | G153: مربى | H153: KGM | I153: 270
C154: 148 | D154: 121601301 | E154: مشمشية1كج | F154: DEHYDRATED FRUITS | G154: فواكه جافة/مسكرة | H154: KGM | I154: 100
C155: 149 | D155: 121601303 | E155: زبيب مستور | F155: DEHYDRATED FRUITS | G155: فواكه جافة/مسكرة | H155: KGM | I155: 230
C156: 150 | D156: 121601305 | E156: قراصيا كج | F156: DEHYDRATED FRUITS | G156: فواكه جافة/مسكرة | H156: KGM | I156: 110
C157: 151 | D157: 121601307 | E157: قشرةمسكرة | F157: DEHYDRATED FRUITS | G157: فواكه جافة/مسكرة | H157: KGM | I157: 144
C158: 152 | D158: 121603301 | E158: مبشور كج | F158: COCONUTS | G158: جوز هند | H158: KGM | I158: 25
C159: 153 | D159: 121604303 | E159: فستق مقشرك | F159: SHELLED NUTS | G159: مكسرات | H159: KGM | I159: 10
C160: 154 | D160: 121604307 | E160: لوزشرائح | F160: SHELLED NUTS | G160: مكسرات | H160: KGM | I160: 25
C161: 155 | D161: 121604315 | E161: لوز بودرة | F161: SHELLED NUTS | G161: مكسرات | H161: KGM | I161: 5
C162: 156 | D162: 121604316 | E162: ف/مجفف35جم | F162: SHELLED NUTS | G162: مكسرات | H162: PKT | I162: 38300
C163: 157 | D163: 121604317 | E163: مكسرات30جم | F163: SHELLED NUTS | G163: مكسرات | H163: PKT | I163: 31100
C164: 158 | D164: 121702102 | E164: أسانس 1كجم | F164: ESSANCES | G164: ايسانس | H164: KGM | I164: 2
C165: 159 | D165: 121702106 | E165: اسانس موز | F165: ESSANCES | G165: ايسانس | H165: KGM | I165: 1
C166: 160 | D166: 121702108 | E166: اسنس أنانس | F166: ESSANCES | G166: ايسانس | H166: KGM | I166: 1
C167: 161 | D167: 121706310 | E167: خل1لترأبيض | F167: VENIGAR | G167: خل | H167: BOT | I167: 132
C168: 162 | D168: 121707321 | E168: جيلاتينا | F168: GILATTIN | G168: جيلاتينا | H168: KGM | I168: 10
C169: 163 | D169: 121707326 | E169: بابنج كرمل | F169: GILATTIN | G169: جيلاتينا | H169: KGM | I169: 13.5
C170: 164 | D170: 121707331 | E170: جيلى ساخن | F170: GILATTIN | G170: جيلاتينا | H170: KGM | I170: 36
C171: 165 | D171: 121707333 | E171: ببينج شيكو | F171: GILATTIN | G171: جيلاتينا | H171: KGM | I171: 157.5
C172: 166 | D172: 121707334 | E172: جيل ع بارد | F172: GILATTIN | G172: جيلاتينا | H172: KGM | I172: 243
C173: 167 | D173: 121708101 | E173: بالكيلو | F173: VANILIA | G173: فانيليا | H173: KGM | I173: 2.5
C174: 168 | D174: 121710102 | E174: لون اصفر | F174: COLOUR | G174: لون | H174: KGM | I174: 10
C175: 169 | D175: 121710103 | E175: لون أخضر | F175: COLOUR | G175: لون | H175: KGM | I175: 1
C176: 170 | D176: 121711307 | E176: مسحوق خبيز | F176: YEAST/BAKING POWDER | G176: مسحوق خبيز;خميرة/بيكينجبودر | H176: KGM | I176: 100
C177: 171 | D177: 121711311 | E177: خ.محلى450ج | F177: YEAST/BAKING POWDER | G177: خ.محلى450ج;خميرة/بيكينجبودر | H177: PKT | I177: 300
C178: 172 | D178: 121712104 | E178: كيك اسفنجى | F178: ADDITIVES | G178: كيك اسفنجى;محسنات خبزوكيك | H178: KGM | I178: 2060
C179: 173 | D179: 121712110 | E179: بلاك فورست | F179: ADDITIVES | G179: بلاك فورست;محسنات خبزوكيك | H179: KGM | I179: 1360
C180: 174 | D180: 121712112 | E180: عجينةبندق | F180: ADDITIVES | G180: عجينةبندق ;محسنات خبزوكيك | H180: KGM | I180: 48
C181: 175 | D181: 121712114 | E181: موس فانيلي | F181: ADDITIVES | G181: موس فانيلي;محسنات خبزوكيك | H181: KGM | I181: 130
C182: 176 | D182: 121712115 | E182: موس شكولاته | F182: ADDITIVES | G182: موس شكولاته;محسنات خبزوكيك | H182: KGM | I182: 30
C183: 177 | D183: 121712120 | E183: شكو تيرامي | F183: ADDITIVES | G183: شكو تيرامي;محسنات خبزوكيك | H183: KGM | I183: 280
C184: 178 | D184: 121805319 | E184: حشوتفاح4كي | F184: PIE FILLING | G184: حشوتفاح4كي;حشو تورتة | H184: JRK | I184: 1
C185: 179 | D185: 121805329 | E185: حشوكريز4ك | F185: PIE FILLING | G185: حشوكريز4ك ;حشو تورتة | H185: TIN | I185: 10
C186: 180 | D186: 320102332 | E186: كولالايت330م | F186: SOFT DRINK BIG | G186: كولالايت330م;مياه غازيه كبيره | H186: TIN | I186: 624
C187: 181 | D187: 320102340 | E187: ل/دايت330م | F187: SOFT DRINK BIG | G187: ل/دايت330م;مياه غازيه كبيره | H187: CRT | I187: 50
C188: 182 | D188: 320102376 | E188: برتقال250م | F188: SOFT DRINK BIG | G188: برتقال250م;مياه غازيه كبيره | H188: TIN | I188: 3192
C189: 183 | D189: 320102378 | E189: ليمون250مل | F189: SOFT DRINK BIG | G189: ليمون250مل;مياه غازيه كبيره | H189: TIN | I189: 3600
C190: 184 | D190: 320102385 | E190: كولا250مللى | F190: SOFT DRINK BIG | G190: كولا250مللى;مياه غازيه كبيره | H190: TIN | I190: 4416
C191: 185 | D191: 320104306 | E191: اناناس 330 | F191: .ON ALCOH. BEER | G191: اناناس 330;مشروب شعير بدون كحول | H191: TIN | I191: 1968
C192: 186 | D192: 320104314 | E192: خوخ330ملى | F192: .ON ALCOH. BEER | G192: خوخ330ملى ;مشروب شعير بدون كحول | H192: TIN | I192: 1296
C193: 187 | D193: 320105006 | E193: كولا970مم | F193: SOFT DRINKS 1 LITER | G193: كولا970مم ;مشروبات غازية حوالى1 | H193: BOT | I193: 2550
C194: 188 | D194: 320105007 | E194: كولالايت970م | F194: SOFT DRINKS 1 LITER | G194: كولالايت970م;مشروبات غازية حوالى1 | H194: BOT | I194: 594
C195: 189 | D195: 320105008 | E195: ليمون970مم | F195: SOFT DRINKS 1 LITER | G195: مشروبات غازية حوالى1 | H195: BOT | I195: 3510
C196: 190 | D196: 320105009 | E196: ل/لايت970مم | F196: SOFT DRINKS 1 LITER | G196: مشروبات غازية حوالى1 | H196: BOT | I196: 1800
C197: 191 | D197: 320105010 | E197: برتقال970م | F197: SOFT DRINKS 1 LITER | G197: مشروبات غازية حوالى1 | H197: BOT | I197: 1200
C198: 192 | D198: 320106001 | E198: صوداوتر250 | F198: WATR COLL | G198: مياة غازية عبوات | H198: BOT | I198: 2232
C199: 193 | D199: 320106002 | E199: تونيك250مم | F199: WATR COLL | G199: مياة غازية عبوات | H199: BOT | I199: 1752
C200: 194 | D200: 320201328 | E200: ش/أخ/نع5را | F200: TEA | G200: شاى | H200: PKT | I200: 12160
C201: 195 | D201: 320201329 | E201: ش/نكهات2جم | F201: TEA | G201: شاى | H201: PKT | I201: 22560
C202: 196 | D202: 320201616 | E202: ش ايرلى جر | F202: TEA | G202: شاى | H202: PKT | I202: 4560
C203: 197 | D203: 320201633 | E203: أحمر2جم ظر | F203: TEA | G203: شاى | H203: PKT | I203: 101440
C204: 198 | D204: 320201634 | E204: ش احمر2بدو | F204: TEA | G204: شاى | H204: PKT | I204: 153360
... 45 more rows

Sheet مخزن 138
D1: مخزن 138
C4: رقم الصنف | D4: الصنف | E4: المجموعه | F4: الوحده | G4: الكميه | H4: يوم | I4: شهر | J4: سنة | K4: تاريخ الانتاج | L4: تاريخ الانتهاء | M4: الوقت المتبقى من تاريخ الجرد
C5: 120109106 | D5: سوسيس بقري | E5: لحوم | F5: كيلو جرام | G5: 45 | I5: 3 | K5: 2020-01-13 | L5: =IF(K5="","",K5+DATE(J5,I5+1,H5)) -> 2020-04-13 | M5: =IF(L5="","",L5-TODAY()) -> 2
C6: 120311101 | D6: رومي مدخن | E6: لحوم مدخن | F6: كيلو جرام | G6: 12 | I6: 3 | K6: 2020-01-15 | L6: 2020-04-15 | M6: 4
C7: 120205101 | D7: بيض | E7: مأكولات ومشروبات | F7: عدد | G7: 600 | H7: 21 | K7: 2020-03-25 | L7: 2020-04-15 | M7: 4
C8: 120311100 | D8: بيف بقري مدخن | E8: لحوم مدخن | F8: كيلو جرام | G8: 45 | I8: 3 | K8: 2020-01-16 | L8: 2020-04-16 | M8: 5
C9: 121707331 | D9: جيلي ساخن | E9: مأكولات ومشروبات | F9: كيلو جرام | G9: 4.5 | J9: 1 | K9: 2019-05-05 | L9: 2020-05-05 | M9: 24
C10: 121401419 | D10: بسكويت بالذبدة 5.6قطع | E10: مأكولات ومشروبات | F10: باكت | G10: 3498 | I10: 9 | K10: 2019-08-06 | L10: 2020-05-06 | M10: 25
C11: 120301306 | D11: سمك بلطي | E11: اسماك | F11: كيلو جرام | G11: 9 | I11: 6 | K11: 2019-11-18 | L11: 2020-05-18 | M11: 37
C12: 120309303 | D12: سيمون مدخن | E12: اسماك | F12: كيلو جرام | G12: 17 | I12: 5 | K12: 2020-01-21 | L12: 2020-06-21 | M12: 71
C13: 320203603 | D13: زبدة 10جم | E13: البان وجبن | F13: عدد | G13: 2200 | J13: 1 | K13: 2019-06-22 | L13: 2020-06-22 | M13: 72
C14: 121401462 | D14: تونكيز كيك | E14: مأكولات ومشروبات | F14: باكت | G14: 900 | I14: 5 | K14: 2020-01-28 | L14: 2020-06-28 | M14: 78
C15: 120405306 | D15: بطاطس بودرة | E15: مأكولات ومشروبات | F15: كيلو جرام | G15: 4 | I15: 6 | K15: 2019-12-30 | L15: 2020-06-29 | M15: 79
C16: 120807304 | D16: جبنة مثلثات | E16: البان وجبن | F16: عدد | G16: 10368 | I16: 6 | K16: 2019-12-30 | L16: 2020-06-29 | M16: 79
C17: 120903332 | D17: لبن كامل الدسم 1 لتر | E17: البان وجبن | F17: لتر | G17: 377 | I17: 6 | K17: 2020-01-01 | L17: 2020-07-01 | M17: 81
C18: 320102385 | D18: كولا كانز250ملي | E18: مشروبات غازيه | F18: عدد | G18: 62 | I18: 9 | K18: 2019-10-01 | L18: 2020-07-01 | M18: 81
C19: 320105007 | D19: كولا دايت 970مللي | E19: مشروبات غازيه | F19: زجاجة | G19: 63 | I19: 6 | K19: 2020-01-11 | L19: 2020-07-11 | M19: 91
C20: 320102376 | D20: ميرندا برتقال كانز250م | E20: مشروبات غازيه | F20: عدد | G20: 16 | I20: 9 | K20: 2019-10-15 | L20: 2020-07-15 | M20: 95
C21: 320106002 | D21: تونك 250مللي | E21: مشروبات غازيه | F21: زجاجة | G21: 47 | J21: 1 | K21: 2019-07-15 | L21: 2020-07-15 | M21: 95
C22: 320105009 | D22: سفن دايت 970مللي | E22: مشروبات غازيه | F22: زجاجة | G22: 54 | I22: 6 | K22: 2020-01-17 | L22: 2020-07-17 | M22: 97
C23: 320105008 | D23: سفن 970ملي | E23: مشروبات غازيه | F23: زجاجة | G23: 368 | I23: 6 | K23: 2020-01-24 | L23: 2020-07-24 | M23: 104
C24: 120805103 | D24: جبنة جودة | E24: البان وجبن | F24: كيلو جرام | G24: 108 | I24: 9 | K24: 2019-10-28 | L24: 2020-07-28 | M24: 108
C25: 120103214 | D25: لحم وش فخدة | E25: لحوم | F25: كيلو جرام | G25: 204 | J25: 1 | K25: 2019-07-30 | L25: 2020-07-30 | M25: 110
C26: 120710301 | D26: كركم | E26: مأكولات ومشروبات | F26: جرام | G26: 250 | J26: 1 | K26: 2019-07-30 | L26: 2020-07-30 | M26: 110
C27: 320204601 | D27: درسنج 10جم | E27: مأكولات ومشروبات | F27: باكو | G27: 9000 | I27: 6 | K27: 2020-01-30 | L27: 2020-07-30 | M27: 110
C28: 120903318 | D28: لبن خالي الدسم 1 لتر | E28: البان وجبن | F28: لتر | G28: 35 | I28: 6 | K28: 2020-02-02 | L28: 2020-08-02 | M28: 113
C29: 120805107 | D29: جبنة شيدر احمر | E29: البان وجبن | F29: كيلو جرام | G29: 3 | I29: 6 | K29: 2020-02-03 | L29: 2020-08-03 | M29: 114
C30: 320105010 | D30: ميرندا برتقال 970 ملي | E30: مشروبات غازيه | F30: زجاجة | G30: 290 | I30: 6 | K30: 2020-02-04 | L30: 2020-08-04 | M30: 115
C31: 121101306 | D31: اكل طفل خضار | E31: مأكولات ومشروبات | F31: برطمان | G31: 26 | J31: 1 | K31: 2019-08-08 | L31: 2020-08-08 | M31: 119
C32: 320105006 | D32: كولا 970مللي | E32: مشروبات غازيه | F32: زجاجة | G32: 418 | I32: 6 | K32: 2020-02-16 | L32: 2020-08-16 | M32: 127
C33: 320304317 | D33: عصير اناناس بيور 1 لتر | E33: عصائر | F33: لتر | G33: 96 | I33: 10 | K33: 2019-10-29 | L33: 2020-08-29 | M33: 140
C34: 120407308 | D34: صلصة طماطم | E34: مأكولات ومشروبات | F34: علبة | G34: 2 | J34: 1 | K34: 2019-08-30 | L34: 2020-08-30 | M34: 141
C35: 120416318 | D35: مشروم شراءح 850جم | E35: مأكولات ومشروبات | F35: علبة | G35: 268 | J35: 2 | K35: 2018-08-30 | L35: 2020-08-30 | M35: 141
C36: 120502306 | D36: كمبوت خوخ 820جم | E36: مأكولات ومشروبات | F36: علبه | G36: 108 | J36: 1 | K36: 2019-08-30 | L36: 2020-08-30 | M36: 141
C37: 121402458 | D37: توفي جامي | E37: مأكولات ومشروبات | F37: كيلو جرام | G37: 11 | J37: 1 | K37: 2019-08-30 | L37: 2020-08-30 | M37: 141
C38: 121712114 | D38: موس فانيلي | E38: مأكولات ومشروبات | F38: كيلو جرام | G38: 100 | J38: 1 | K38: 2019-08-30 | L38: 2020-08-30 | M38: 141
C39: 320304306 | D39: عصير تفاح بيور 1 لتر | E39: عصائر | F39: لتر | G39: 88 | I39: 10 | K39: 2019-11-24 | L39: 2020-09-24 | M39: 166
C40: 320206603 | D40: كريمر | E40: مأكولات ومشروبات | F40: عدد | G40: 14300 | J40: 1 | K40: 2019-09-25 | L40: 2020-09-25 | M40: 167
C41: 520508119 | D41: كوفير9*1 بدون شعار | E41: بلاستيكات | F41: عدد | G41: 25000 | J41: 1 | K41: 2019-10-13 | L41: 2020-10-13 | M41: 185
C42: 121402341 | D42: شيكولاتة كفرتورة بيضاء | E42: مأكولات ومشروبات | F42: باكت | G42: 8 | J42: 1 | K42: 2019-10-14 | L42: 2020-10-14 | M42: 186
C43: 520508112 | D43: كوفير 1 * 11 بالشعار | E43: بلاستيكات | F43: عدد | G43: 450 | J43: 1 | K43: 2019-10-18 | L43: 2020-10-18 | M43: 190
C44: 120603106 | D44: دقيق | E44: مأكولات ومشروبات | F44: كيلو جرام | G44: 250 | I44: 9 | K44: 2020-01-22 | L44: 2020-10-22 | M44: 194
C45: 320104306 | D45: اناناس كانز 330ملي | E45: مشروبات غازيه | F45: عدد | G45: 15 | J45: 1 | K45: 2019-10-24 | L45: 2020-10-24 | M45: 196
C46: 320104314 | D46: خوخ كانز 330ملي | E46: مشروبات غازيه | F46: عدد | G46: 25 | J46: 1 | K46: 2019-10-24 | L46: 2020-10-24 | M46: 196
C47: 320106001 | D47: صودا 250مللي | E47: مشروبات غازيه | F47: زجاجة | G47: 36 | J47: 1 | K47: 2019-10-25 | L47: 2020-10-25 | M47: 197
C48: 120310202 | D48: صوابع كابوريا | E48: اسماك | F48: كيلو جرام | G48: 3.5 | I48: 18 | K48: 2019-04-30 | L48: 2020-10-28 | M48: 200
C49: 121206305 | D49: ذرة حب 2950جم | E49: مأكولات ومشروبات | F49: علبة | G49: 12 | J49: 2 | K49: 2018-11-01 | L49: 2020-11-01 | M49: 204
C50: 320204636 | D50: ديمي جلاس 750جم | E50: مأكولات ومشروبات | F50: علبة | G50: 41 | J50: 1 | K50: 2019-11-01 | L50: 2020-11-01 | M50: 204
C51: 121001308 | D51: زبدة بلوك | E51: البان وجبن | F51: كيلو جرام | G51: 25 | J51: 1 | K51: 2019-11-06 | L51: 2020-11-06 | M51: 209
C52: 120601106 | D52: مكرونة بنة | E52: مأكولات ومشروبات | F52: كيلو جرام | G52: 180 | J52: 1 | K52: 2019-11-11 | L52: 2020-11-11 | M52: 214
C53: 121101307 | D53: اكل طفل فاكهة | E53: مأكولات ومشروبات | F53: برطمان | G53: 24 | J53: 1 | K53: 2019-11-13 | L53: 2020-11-13 | M53: 216
C54: 320208624 | D54: مربي بورشين 20جم | E54: مأكولات ومشروبات | F54: عدد | G54: 5376 | J54: 1 | K54: 2019-11-14 | L54: 2020-11-14 | M54: 217
C55: 121306322 | D55: مستردة محلي | E55: مأكولات ومشروبات | F55: جركن | G55: 3 | J55: 1 | K55: 2019-11-18 | L55: 2020-11-18 | M55: 221
C56: 320305430 | D56: عصير برتقال 235مللي | E56: عصائر | F56: عدد | G56: 3269 | J56: 1 | K56: 2019-11-20 | L56: 2020-11-20 | M56: 223
C57: 120601104 | D57: مكرونة شريط | E57: مأكولات ومشروبات | F57: كيلو جرام | G57: 5 | J57: 1 | K57: 2019-11-28 | L57: 2020-11-28 | M57: 231
C58: 120103203 | D58: لحم فلتوا مستورد | E58: لحوم | F58: كيلو جرام | G58: 43 | J58: 1 | K58: 2019-11-30 | L58: 2020-11-30 | M58: 233
C59: 120403202 | D59: فاصوليا خضراء | E59: خضروات مجمده | F59: كيلو جرام | G59: 30 | J59: 1 | K59: 2019-11-30 | L59: 2020-11-30 | M59: 233
C60: 121207309 | D60: حمص 400جم | E60: مأكولات ومشروبات | F60: علبة | G60: 72 | J60: 1 | K60: 2019-11-30 | L60: 2020-11-30 | M60: 233
C61: 120801113 | D61: جبنة فيتا 125 جم | E61: البان وجبن | F61: علبه | G61: 130 | J61: 1 | K61: 2019-12-01 | L61: 2020-12-01 | M61: 234
C62: 320304303 | D62: عصير ملنجو 1 لتر | E62: عصائر | F62: لتر | G62: 413 | J62: 1 | K62: 2019-12-01 | L62: 2020-12-01 | M62: 234
C63: 121304511 | D63: كاتشب ظرف 7جم | E63: مأكولات ومشروبات | F63: باكت | G63: 2000 | J63: 1 | K63: 2019-12-02 | L63: 2020-12-02 | M63: 235
C64: 320304301 | D64: عصير برتقال 1 لتر | E64: عصائر | F64: لتر | G64: 717 | J64: 1 | K64: 2019-12-03 | L64: 2020-12-03 | M64: 236
C65: 320305428 | D65: عصير جوافة 235مللي | E65: عصائر | F65: عدد | G65: 1555 | J65: 1 | K65: 2019-12-03 | L65: 2020-12-03 | M65: 236
C66: 320401502 | D66: مياة 1.5 لتر | E66: مياه معدنيه | F66: زجاجة | G66: 3465 | J66: 1 | K66: 2019-12-05 | L66: 2020-12-05 | M66: 238
C67: 320305427 | D67: عصير تفاح 235ملي | E67: عصائر | F67: عدد | G67: 3240 | J67: 1 | K67: 2019-12-10 | L67: 2020-12-10 | M67: 243
C68: 121707326 | D68: بابينج كرمل | E68: مأكولات ومشروبات | F68: كيلو جرام | G68: 13.5 | J68: 1 | K68: 2019-12-12 | L68: 2020-12-12 | M68: 245
C69: 320304322 | D69: عصير طماطم 1 لتر | E69: عصائر | F69: لتر | G69: 33 | J69: 1 | K69: 2019-12-12 | L69: =IF(K69="","",K69+DATE(J69,I69+1,H69)) -> 2020-12-12 | M69: =IF(L69="","",L69-TODAY()) -> 245
C70: 121402330 | D70: شيكولاتة كفرتورة بني | E70: مأكولات ومشروبات | F70: باكت | G70: 5 | J70: 1 | K70: 2019-12-16 | L70: 2020-12-16 | M70: 249
C71: 320305429 | D71: عصير مانجو 235مللي | E71: عصائر | F71: عدد | G71: 1382 | J71: 1 | K71: 2019-12-18 | L71: 2020-12-18 | M71: 251
C72: 320304302 | D72: عصير تفاح 1 لتر | E72: عصائر | F72: لتر | G72: 370 | J72: 1 | K72: 2019-12-22 | L72: 2020-12-22 | M72: 255
C73: 320304305 | D73: عصير جوافة 1لتر | E73: عصائر | F73: لتر | G73: 368 | J73: 1 | K73: 2019-12-23 | L73: 2020-12-23 | M73: 256
C74: 120202238 | D74: صدور فراخ مجمدة | E74: فراخ | F74: كيلو جرام | G74: 262 | J74: 1 | K74: 2019-12-30 | L74: 2020-12-30 | M74: 263
C75: 120401307 | D75: بسلة بالجزر | E75: خضروات مجمده | F75: كيلو جرام | G75: 10 | J75: 1 | K75: 2020-01-01 | L75: 2021-01-01 | M75: 265
C76: 121707333 | D76: باببنج شيكولاتة | E76: مأكولات ومشروبات | F76: كيلو جرام | G76: 9 | J76: 1 | K76: 2020-01-01 | L76: 2021-01-01 | M76: 265
C77: 121708101 | D77: فانليا | E77: مأكولات ومشروبات | F77: كيلو جرام | G77: 0.5 | J77: 2 | K77: 2019-01-01 | L77: 2021-01-01 | M77: 265
C78: 121712110 | D78: بلاك فورست | E78: مأكولات ومشروبات | F78: كيلو جرام | G78: 20 | J78: 1 | K78: 2020-01-01 | L78: 2021-01-01 | M78: 265
C79: 121706310 | D79: خل ابيض | E79: مأكولات ومشروبات | F79: زجاجة | G79: 44 | J79: 1 | K79: 2020-01-03 | L79: 2021-01-03 | M79: 267
C80: 121301315 | D80: زيتون اسود مخلي 1450جم | E80: مأكولات ومشروبات | F80: علبة | G80: 16 | I80: 18 | K80: 2019-07-07 | L80: 2021-01-04 | M80: 268
C81: 121304506 | D81: كاشب 200جم | E81: مأكولات ومشروبات | F81: زجاجة | G81: 1 | I81: 18 | K81: 2019-07-07 | L81: 2021-01-04 | M81: 268
C82: 121104310 | D82: مرقة دجاج | E82: مأكولات ومشروبات | F82: علبة | G82: 12 | J82: 1 | K82: 2020-01-20 | L82: 2021-01-20 | M82: 284
C83: 320201634 | D83: شاي احمر 2جم بدون ظرف | E83: مأكولات ومشروبات | F83: باكت | G83: 1440 | J83: 2 | K83: 2019-01-29 | L83: 2021-01-29 | M83: 293
C84: 121007107 | D84: زيت للقلي | E84: مأكولات ومشروبات | F84: لتر | G84: 40 | J84: 1 | K84: 2020-01-30 | L84: 2021-01-30 | M84: 294
C85: 121712104 | D85: اسبونج ابيض | E85: مأكولات ومشروبات | F85: كيلو جرام | G85: 120 | J85: 1 | K85: 2020-02-01 | L85: 2021-02-01 | M85: 296
C86: 120740115 | D86: يانسون 1.5جم | E86: مأكولات ومشروبات | F86: علبه | G86: 6 | J86: 2 | K86: 2019-02-02 | L86: 2021-02-02 | M86: 297
C87: 320401509 | D87: مياة 600مللي | E87: مياه معدنيه | F87: زجاجة | G87: 1932 | J87: 1 | K87: 2020-02-22 | L87: 2021-02-22 | M87: 317
C88: 121603301 | D88: جوز هند مبشور | E88: مأكولات ومشروبات | F88: كيلو جرام | G88: 25 | J88: 2 | K88: 2019-03-30 | L88: 2021-03-30 | M88: 353
C89: 320202637 | D89: نسكافية جولد 50جم | E89: مأكولات ومشروبات | F89: برطمان | G89: 98 | J89: 2 | K89: 2019-03-30 | L89: 2021-03-30 | M89: 353
C90: 320201633 | D90: شاي احمر 2جم | E90: مأكولات ومشروبات | F90: باكت | G90: 3800 | J90: 2 | K90: 2019-04-23 | L90: 2021-04-23 | M90: 377
C91: 320201616 | D91: شاي ايرلي | E91: مأكولات ومشروبات | F91: باكت | G91: 160 | J91: 2 | K91: 2019-04-24 | L91: 2021-04-24 | M91: 378
C92: 120504302 | D92: كمبوت اناناس 850جم | E92: مأكولات ومشروبات | F92: علبة | G92: 181 | J92: 2 | K92: 2019-05-21 | L92: 2021-05-21 | M92: 405
C93: 120304319 | D93: تونة قطع 185جم | E93: مأكولات ومشروبات | F93: عدد | G93: 179 | J93: 2 | K93: 2019-05-30 | L93: 2021-05-30 | M93: 414
C94: 320207603 | D94: سكر دايت | E94: مأكولات ومشروبات | F94: عدد | G94: 475 | J94: 2 | K94: 2019-05-30 | L94: 2021-05-30 | M94: 414
C95: 320202609 | D95: نسكافية كلاسك | E95: مأكولات ومشروبات | F95: برطمان | G95: 78 | J95: 2 | K95: 2019-06-01 | L95: 2021-06-01 | M95: 416
C96: 121304316 | D96: زيتون اخضر مخلي 1450جم | E96: مأكولات ومشروبات | F96: علبة | G96: 17 | I96: 18 | K96: 2020-01-01 | L96: 2021-07-01 | M96: 446
C97: 121004318 | D97: زيت زيتون 1لتر | E97: مأكولات ومشروبات | F97: زجاجة | G97: 1 | J97: 2 | K97: 2019-07-07 | L97: 2021-07-07 | M97: 452
C98: 320201328 | D98: شاي اخضر | E98: مأكولات ومشروبات | F98: باكت | G98: 340 | J98: 2 | K98: 2019-07-30 | L98: 2021-07-30 | M98: 475
C99: 120605105 | D99: ارز بسمتي | E99: مأكولات ومشروبات | F99: كيلو جرام | G99: 65 | J99: 3 | K99: 2018-08-18 | L99: 2021-08-18 | M99: 494
C100: 120718312 | D100: ملح 300جم | E100: مأكولات ومشروبات | F100: باكت | G100: 60 | J100: 2 | K100: 2019-08-30 | L100: 2021-08-30 | M100: 506
C101: 320209612 | D101: عسل بورشين 20جم | E101: مأكولات ومشروبات | F101: عدد | G101: 448 | J101: 2 | K101: 2019-09-02 | L101: 2021-09-02 | M101: 509
C102: 320207617 | D102: سكر مغلف | E102: مأكولات ومشروبات | F102: عدد | G102: 17300 | J102: 2 | K102: 2019-09-28 | L102: 2021-09-28 | M102: 535
C103: 120427102 | D103: بروكلي | E103: خضروات مجمده | F103: كيلو جرام | G103: 13 | J103: 2 | K103: 2019-09-30 | L103: 2021-09-30 | M103: 537
C104: 121204309 | D104: فول مدمس 3كجم | E104: مأكولات ومشروبات | F104: علبة | G104: 17 | J104: 2 | K104: 2019-09-30 | L104: 2021-09-30 | M104: 537
C105: 120605101 | D105: ارز سياحي | E105: مأكولات ومشروبات | F105: كيلو جرام | G105: 75 | J105: 2 | K105: 2019-10-30 | L105: 2021-10-30 | M105: 567
C106: 121003313 | D106: زيت ذرى 1 لتر | E106: مأكولات ومشروبات | F106: زجاجة | G106: 192 | J106: 2 | K106: 2019-11-19 | L106: 2021-11-19 | M106: 587
C107: 121711310 | D107: خميرة باكت 450جم | E107: مأكولات ومشروبات | F107: باكت | G107: 60 | J107: 2 | K107: 2020-01-01 | L107: 2022-01-01 | M107: 630
C108: 121501324 | D108: مربي مشمش 5كجم | E108: مأكولات ومشروبات | F108: كيلو جرام | G108: 40 | J108: 2 | K108: 2020-01-03 | L108: 2022-01-03 | M108: 632
C109: 120609401 | D109: سكر بودرة | E109: مأكولات ومشروبات | F109: كيلو جرام | G109: 14 | J109: 3 | K109: 2019-02-25 | L109: 2022-02-25 | M109: 685
C110: 120609303 | D110: سكر ناعم | E110: مأكولات ومشروبات | F110: كيلو جرام | G110: 100 | J110: 3 | K110: 2019-05-03 | L110: 2022-05-03 | M110: 752

Sheet مخزن 139
D2: مخزن 139
D6: م | E6: رقم الصنف | F6: الصنف | G6: المجموعه | H6: المجموعه بالعربى | I6: الوحده | J6: كميه
D7: 155 | E7: 120103203 | F7: =VLOOKAnyCol(القاهره!A1:C5793,E7,2,3) -> لحوم فلتو كندوز مستورد برازيلى | G7: BEEF | H7: كندوز | I7: KGM | J7: 15.79
D8: 154 | E8: 120103214 | F8: =VLOOKAnyCol(القاهره!A2:C5794,E8,2,3) -> لحوم كندوز وش فخذة برازيلى | G8: BEEF | H8: كندوز | I8: KGM | J8: 93.662
D9: 153 | E9: 120202238 | F9: صدور فراخ مجمدة | G9: CHICKENS | H9: فراخ | I9: KGM | J9: 292
D10: 152 | E10: 120205101 | F10: =VLOOKAnyCol(القاهره!A4:C5796,E10,2,3) -> بيض ابيض | G10: EGGS | H10: بيض | I10: EA. | J10: 550
D11: 151 | E11: 120304319 | F11: =VLOOKAnyCol(القاهره!A5:C5797,E11,2,3) -> تونةقطع185جرام | G11: TUNA | H11: تونةعلب | I11: TIN | J11: 37
D12: 150 | E12: 120309303 | F12: =VLOOKAnyCol(القاهره!A6:C5798,E12,2,3) -> اسماك سيمون مدخنة | G12: SMOKED FISH | H12: اسماك مدخنة | I12: KGM | J12: 2
D13: 149 | E13: 120311100 | F13: =VLOOKAnyCol(القاهره!A7:C5799,E13,2,3) -> لحوم بقرى مدخن | G13: SMOKMEAT | H13: لحوم مدخنة | I13: KGM | J13: 11
D14: 148 | E14: 120311101 | F14: =VLOOKAnyCol(القاهره!A8:C5800,E14,2,3) -> لحوم رومى مدخن | G14: SMOKMEAT | H14: لحوم مدخنة | I14: KGM | J14: 23.8
D15: 147 | E15: 120401307 | F15: =VLOOKAnyCol(القاهره!A9:C5801,E15,2,3) -> بسلة بالجزر | G15: GREEN PEAS | H15: بسلة خضراء | I15: KGM | J15: 560
D16: 146 | E16: 120403202 | F16: =VLOOKAnyCol(القاهره!A10:C5802,E16,2,3) -> فاصوليا خضراء مجمدة | G16: GREEN BEANS | H16: فاصوليا خضراء | I16: KGM | J16: 36
D17: 145 | E17: 120405102 | F17: =VLOOKAnyCol(القاهره!A11:C5803,E17,2,3) -> بطاطس بوم فريتس فارم فريتس | G17: POTATOES | H17: بطاطس | I17: KGM | J17: 37.5
D18: 144 | E18: 120405306 | F18: =VLOOKAnyCol(القاهره!A12:C5804,E18,2,3) -> بطاطس بودر | G18: POTATOES | H18: بطاطس | I18: KGM | J18: 2
D19: 143 | E19: 120407308 | F19: =VLOOKAnyCol(القاهره!A13:C5805,E19,2,3) -> صلصة طماطم 3 كيلو | G19: TOMATOES | H19: طماطم | I19: TIN | J19: 8
D20: 142 | E20: 120416318 | F20: =VLOOKAnyCol(القاهره!A14:C5806,E20,2,3) -> مشروم شرائح مستورد 850 جرام | G20: MUSHROOM | H20: مشروم | I20: TIN | J20: 132
D21: 141 | E21: 120502306 | F21: =VLOOKAnyCol(القاهره!A15:C5807,E21,2,3) -> كمبوت خوخ 820 جرام | G21: PEACHES | H21: خوخ | I21: TIN | J21: 11
D22: 140 | E22: 120504302 | F22: =VLOOKAnyCol(القاهره!A16:C5808,E22,2,3) -> كمبوت اناناس 850 جرام | G22: PINEAPPLE | H22: كمبوت اناناس | I22: TIN | J22: 30
D23: 139 | E23: 120506305 | F23: =VLOOKAnyCol(القاهره!A17:C5809,E23,2,3) -> كريز كيلو | G23: CHERRY | H23: كريز | I23: KGM | J23: 4.5
D24: 138 | E24: 120601104 | F24: =VLOOKAnyCol(القاهره!A18:C5810,E24,2,3) -> مكرونة شريط | G24: MACARONI | H24: مكرونةوسمبوسه | I24: KGM | J24: 8
D25: 137 | E25: 120601106 | F25: =VLOOKAnyCol(القاهره!A19:C5811,E25,2,3) -> مكرونة بنة | G25: MACARONI | H25: مكرونةوسمبوسه | I25: KGM | J25: 45
D26: 136 | E26: 120603106 | F26: =VLOOKAnyCol(القاهره!A20:C5812,E26,2,3) -> دقيق محلى | G26: FLOWER | H26: دقيق بانواعه | I26: KGM | J26: 150
D27: 135 | E27: 120603169 | F27: =VLOOKAnyCol(القاهره!A21:C5813,E27,2,3) -> مولتى بنى سوبرارومالت | G27: FLOWER | H27: دقيق بانواعه | I27: KGM | J27: 10
D28: 134 | E28: 120605101 | F28: =VLOOKAnyCol(القاهره!A22:C5814,E28,2,3) -> ارز سياحى | G28: RICE | H28: ارز سياحى | I28: KGM | J28: 125
D29: 133 | E29: 120605105 | F29: =VLOOKAnyCol(القاهره!A23:C5815,E29,2,3) -> ارز بسمتى مغلى | G29: RICE | H29: ارز سياحى | I29: KGM | J29: 10
D30: 132 | E30: 120609303 | F30: =VLOOKAnyCol(القاهره!A24:C5816,E30,2,3) -> سكر ناعم | G30: SUGAR | H30: سكر | I30: KGM | J30: 100
D31: 131 | E31: 120609401 | F31: =VLOOKAnyCol(القاهره!A25:C5817,E31,2,3) -> سكر بودرة | G31: SUGAR | H31: سكر | I31: KGM | J31: 10
D32: 130 | E32: 120713301 | F32: =VLOOKAnyCol(القاهره!A26:C5818,E32,2,3) -> قرفة ناعمة | G32: CINNAMON | H32: قرفة | I32: KGM | J32: 0.75
D33: 129 | E33: 120718312 | F33: =VLOOKAnyCol(القاهره!A27:C5819,E33,2,3) -> ملح طعام 300 جرام | G33: SALT | H33: ملح | I33: PKT | J33: 40
D34: 128 | E34: 120722301 | F34: =VLOOKAnyCol(القاهره!A28:C5820,E34,2,3) -> حبة البركة | G34: BLACK SEED | H34: حبة البركه | I34: KGM | J34: 2.75
D35: 127 | E35: 120740115 | F35: =VLOOKAnyCol(القاهره!A29:C5821,E35,2,3) -> ينسون 1.5:2 جم 12 فتلة | G35: SACHETTES | H35: عبوا | I35: TIN | J35: 118
D36: 126 | E36: 120801111 | F36: =VLOOKAnyCol(القاهره!A30:C5822,E36,2,3) -> جبنة بيضاء فيتا يونانى | G36: WHITE CHEESE | H36: جبنة بيضاء | I36: KGM | J36: 1.3
D37: 125 | E37: 120801113 | F37: =VLOOKAnyCol(القاهره!A31:C5823,E37,2,3) -> جبنة فيتا نباتى 125 جرام | G37: WHITE CHEESE | H37: جبنة بيضاء | I37: TIN | J37: 924
D38: 124 | E38: 120804107 | F38: =VLOOKAnyCol(القاهره!A32:C5824,E38,2,3) -> جبنة شيدر حمراء | G38: SHEDER CHEESE | H38: جبنة شيدر | I38: KGM | J38: 7.5
D39: 123 | E39: 120805101 | F39: =VLOOKAnyCol(القاهره!A33:C5825,E39,2,3) -> جبن مطبوخ ايدام | G39: CHEESE | H39: جبن مطبوخ | I39: KGM | J39: 13.3
D40: 122 | E40: 120805103 | F40: =VLOOKAnyCol(القاهره!A34:C5826,E40,2,3) -> جبنة مطبوخ جودة | G40: CHEESE | H40: جبن مطبوخ | I40: KGM | J40: 144
D41: 121 | E41: 120805111 | F41: =VLOOKAnyCol(القاهره!A35:C5827,E41,2,3) -> جبنة مطبوخة موتزاريلا | G41: CHEESE | H41: جبن مطبوخ | I41: KGM | J41: 14
D42: 120 | E42: 120807304 | F42: =VLOOKAnyCol(القاهره!A36:C5828,E42,2,3) -> جبنة مطبوخة مثلثات نستو | G42: TRIANGLE CHEESE | H42: جبنة مطبوخة | I42: EA. | J42: 2304
D43: 119 | E43: 120903318 | F43: =VLOOKAnyCol(القاهره!A37:C5829,E43,2,3) -> لبن منزوع الدسم 1 لتر | G43: L/L FRESH MILK | H43: لبن طويل العم | I43: PKT | J43: 7
D44: 118 | E44: 120903332 | F44: =VLOOKAnyCol(القاهره!A38:C5830,E44,2,3) -> لبن كامل الدسم 1 لتر | G44: L/L FRESH MILK | H44: لبن طويل العمر | I44: LTR | J44: 232
D45: 117 | E45: 120905304 | F45: =VLOOKAnyCol(القاهره!A39:C5831,E45,2,3) -> كريمة بالسكر شانتية | G45: CREAM | H45: كريمه | I45: KGM | J45: 25
D46: 116 | E46: 120905366 | F46: =VLOOKAnyCol(القاهره!A40:C5832,E46,2,3) ->  | G46: CREAM | H46: كريمه | I46: LTR | J46: 2
D47: 115 | E47: 121001308 | F47: =VLOOKAnyCol(القاهره!A41:C5833,E47,2,3) -> زبدة طبيعى بلوكات | G47: BUTTER | H47: مسلى طبيعى | I47: KGM | J47: 25
D48: 114 | E48: 121003313 | F48: =VLOOKAnyCol(القاهره!A42:C5834,E48,2,3) -> زيت ذرة 1 لتر | G48: CORN OIL | H48: زيت ذرة | I48: TIN | J48: 78
D49: 113 | E49: 121004314 | F49: =VLOOKAnyCol(القاهره!A43:C5835,E49,2,3) -> زيت زيتون 500 مللى | G49: VARIED OIL | H49: زيوت متنوعة | I49: BOT | J49: 7
D50: 112 | E50: 121007107 | F50: =VLOOKAnyCol(القاهره!A44:C5836,E50,2,3) -> زيت للقلى 1 لتر | G50: PLANT OIL | H50: زيت نباتى للتحمير | I50: LTR | J50: 60
D51: 111 | E51: 121104310 | F51: =VLOOKAnyCol(القاهره!A45:C5837,E51,2,3) -> مرقة دجاج 1100 جرام | G51: SOUP | H51: شوربه | I51: TIN | J51: 7
D52: 110 | E52: 121204331 | F52: =VLOOKAnyCol(القاهره!A46:C5838,E52,2,3) -> فول مدمس سهل الفتح 400جم | G52: BROWN BEANS | H52: فول مدمس | I52: TIN | J52: 48
D53: 109 | E53: 121205102 | F53: =VLOOKAnyCol(القاهره!A47:C5839,E53,2,3) -> سمسم ابيض | G53: SESAME | H53: سمسم | I53: KGM | J53: 3.5
D54: 108 | E54: 121206305 | F54: =VLOOKAnyCol(القاهره!A48:C5840,E54,2,3) -> ذرة حلوة 2950جرام | G54: CORN | H54: (ذرة(بيبى كورن | I54: TIN | J54: 3
D55: 107 | E55: 121206321 | F55: =VLOOKAnyCol(القاهره!A49:C5841,E55,2,3) ->  | G55: CORN | H55: (ذرة(بيبى كورن | I55: TIN | J55: 6
D56: 106 | E56: 121207309 | F56: =VLOOKAnyCol(القاهره!A50:C5842,E56,2,3) -> حمص شام مسلوق 400 جرام | G56: HOMMOS | H56: حمص | I56: TIN | J56: 4
D57: 105 | E57: 121301315 | F57: =VLOOKAnyCol(القاهره!A51:C5843,E57,2,3) -> زيتون اسود مخلى 1450 جم مصفى | G57: OLIVES | H57: زيتون | I57: TIN | J57: 137
D58: 104 | E58: 121301316 | F58: =VLOOKAnyCol(القاهره!A52:C5844,E58,2,3) -> زيتون اسود شرائح 1560 جرام | G58: OLIVES | H58: زيتون | I58: TIN | J58: 3
D59: 103 | E59: 121304511 | F59: =VLOOKAnyCol(القاهره!A53:C5845,E59,2,3) -> كتشب ظرف7ج | G59: KETCHUP | H59: كاتشب | I59: PKT | J59: 2000
D60: 102 | E60: 121306323 | F60: =VLOOKAnyCol(القاهره!A54:C5846,E60,2,3) -> صوص صويا 1.89 لتر | G60: MUSTARD | H60: مستردةومايونيز | I60: JRK | J60: 3
D61: 101 | E61: 121306337 | F61: =VLOOKAnyCol(القاهره!A55:C5847,E61,2,3) ->  | G61: MUSTARD | H61: مستردةومايونيز | I61: EA. | J61: 200
D62: 100 | E62: 121401419 | F62: =VLOOKAnyCol(القاهره!A56:C5848,E62,2,3) -> بسكويت بالزبدة 6 قطع كلاسيك | G62: VARIED BISCUIT | H62: بسكويت انواع | I62: PKT | J62: 2402
D63: 99 | E63: 121401462 | F63: =VLOOKAnyCol(القاهره!A57:C5849,E63,2,3) -> توينكيز | G63: VARIED BISCUIT | H63: بسكويت انواع | I63: EA. | J63: 680
D64: 98 | E64: 121401657 | F64: =VLOOKAnyCol(القاهره!A58:C5850,E64,2,3) -> بطاطس شيبسى28:25جم | G64: VARIED BISCUIT | H64: بسكويت انواع | I64: PKT | J64: 139
D65: 97 | E65: 121401681 | F65: =VLOOKAnyCol(القاهره!A59:C5851,E65,2,3) ->  | G65: VARIED BISCUIT | H65: بسكويت انواع | I65: TIN | J65: 32
D66: 96 | E66: 121402330 | F66: =VLOOKAnyCol(القاهره!A60:C5852,E66,2,3) -> شيكولاتة كفرتورة محلى 2500 جرام | G66: CHOCOLATE | H66: شيكولاتة | I66: PKT | J66: 4
D67: 95 | E67: 121402341 | F67: =VLOOKAnyCol(القاهره!A61:C5853,E67,2,3) -> شيكولاتة كفرتورة بيضاء 2500جرام | G67: CHOCOLATE | H67: شيكولاتة | I67: PKT | J67: 10
D68: 94 | E68: 121501324 | F68: =VLOOKAnyCol(القاهره!A62:C5854,E68,2,3) -> مربى مشمش بالكيلو | G68: JAM | H68: مربى | I68: KGM | J68: 30
D69: 93 | E69: 121601304 | F69: =VLOOKAnyCol(القاهره!A63:C5855,E69,2,3) ->  | G69: DEHYDRATED FRUITS | H69: فواكه جافة/مسكرة | I69: KGM | J69: 26.4
D70: 92 | E70: 121706310 | F70: =VLOOKAnyCol(القاهره!A64:C5856,E70,2,3) -> خل أبيض 1لتر | G70: VENIGAR | H70: خل | I70: BOT | J70: 21
D71: 91 | E71: 121707334 | F71: =VLOOKAnyCol(القاهره!A65:C5857,E71,2,3) -> جيلاتينا بودرة | G71: GILATTIN | H71: جيلاتينا | I71: KGM | J71: 4.5
D72: 90 | E72: 121707335 | F72: =VLOOKAnyCol(القاهره!A66:C5858,E72,2,3) -> جيلي فراوله | G72: GILATTIN | H72: جيلاتينا | I72: KGM | J72: 9
D73: 89 | E73: 121711307 | F73: =VLOOKAnyCol(القاهره!A67:C5859,E73,2,3) -> بيكنج بودر | G73: YEAST/BAKING POWDER | H73: خميرة/بيكينجبودر | I73: KGM | J73: 10
D74: 88 | E74: 121711311 | F74: =VLOOKAnyCol(القاهره!A68:C5860,E74,2,3) -> خميرة جافة محلى 450جم | G74: YEAST/BAKING POWDER | H74: خميرة/بيكينجبودر | I74: PKT | J74: 36
D75: 87 | E75: 121712104 | F75: =VLOOKAnyCol(القاهره!A69:C5861,E75,2,3) -> محسانات خبز كيك اسفنجى | G75: ADDITIVES | H75: محسنات خبزوكيك | I75: KGM | J75: 20
D76: 86 | E76: 121712107 | F76: =VLOOKAnyCol(القاهره!A70:C5862,E76,2,3) -> محسنات خبز كيك ميكس | G76: ADDITIVES | H76: محسنات خبزوكيك | I76: KGM | J76: 110
D77: 85 | E77: 320102326 | F77: =VLOOKAnyCol(القاهره!A71:C5863,E77,2,3) -> مياة غازية كوكا كولا 330 مللى محلى | G77: SOFT DRINK BIG | H77: مياه غازيه كبيره | I77: CRT | J77: 0.583
D78: 84 | E78: 320102328 | F78: =VLOOKAnyCol(القاهره!A72:C5864,E78,2,3) -> مياة غازية اسبرايت 330 مللى محلى | G78: SOFT DRINK BIG | H78: مياه غازيه كبيره | I78: CRT | J78: 2
D79: 83 | E79: 320102333 | F79: =VLOOKAnyCol(القاهره!A73:C5865,E79,2,3) -> مياة غازية بيبسي 330 مللى | G79: SOFT DRINK BIG | H79: مياه غازيه كبيره | I79: CRT | J79: 35
D80: 82 | E80: 320102340 | F80: =VLOOKAnyCol(القاهره!A74:C5866,E80,2,3) -> مياة غازية ليمون دايت 330مللى | G80: SOFT DRINK BIG | H80: مياه غازيه كبيره | I80: CRT | J80: 3
D81: 81 | E81: 320102361 | F81: =VLOOKAnyCol(القاهره!A75:C5867,E81,2,3) -> مياه غازيه سفن اب330 مللى | G81: SOFT DRINK BIG | H81: مياه غازيه كبيره | I81: CRT | J81: 27
D82: 80 | E82: 320102362 | F82: =VLOOKAnyCol(القاهره!A76:C5868,E82,2,3) -> مياة غازيه ميرندا330مللى | G82: SOFT DRINK BIG | H82: مياه غازيه كبيره | I82: CRT | J82: 12
D83: 79 | E83: 320105006 | F83: =VLOOKAnyCol(القاهره!A77:C5869,E83,2,3) -> مياة غازية 970 لتر كولا | G83: SOFT DRINKS 1 LITER | H83: مشروبات غازية حوالى | I83: BOT | J83: 156
D84: 78 | E84: 320105007 | F84: =VLOOKAnyCol(القاهره!A78:C5870,E84,2,3) -> مياة غازية كولا لايت 970 مللى | G84: SOFT DRINKS 1 LITER | H84: مشروبات غازية حوالى1 | I84: BOT | J84: 27
D85: 77 | E85: 320201608 | F85: =VLOOKAnyCol(القاهره!A79:C5871,E85,2,3) -> شاى اخضر بالنعناع 2 جم | G85: TEA | H85: شاى | I85: PKT | J85: 3220
D86: 76 | E86: 320201633 | F86: =VLOOKAnyCol(القاهره!A80:C5872,E86,2,3) -> شاى أحمر2جم أفطارظرف | G86: TEA | H86: شاى | I86: PKT | J86: 9200
D87: 75 | E87: 320202609 | F87: =VLOOKAnyCol(القاهره!A81:C5873,E87,2,3) -> نسكافية 50 جرام | G87: COFFEE | H87: بن | I87: JAR | J87: 432
D88: 74 | E88: 320202637 | F88: =VLOOKAnyCol(القاهره!A82:C5874,E88,2,3) -> بن نسكافيةجولد50جرام | G88: COFFEE | H88: بن | I88: JAR | J88: 24
D89: 73 | E89: 320203603 | F89: =VLOOKAnyCol(القاهره!A83:C5875,E89,2,3) -> زبدة بلاستيك 10 جرام | G89: BUTTER PATS | H89: زبدة بالقطعة | I89: THN | J89: 1.9
D90: 72 | E90: 320204601 | F90: =VLOOKAnyCol(القاهره!A84:C5876,E90,2,3) -> سلاد دريسنج 10جرام | G90: SALAD DRESSING | H90: سلاطةدريسنج | I90: THN | J90: 1
D91: 71 | E91: 320204636 | F91: =VLOOKAnyCol(القاهره!A85:C5877,E91,2,3) -> مسحوق ديمى جلاس 750 جرام | G91: SALAD DRESSING | H91: سلاطةدريسنج | I91: TIN | J91: 6
D92: 70 | E92: 320204639 | F92: =VLOOKAnyCol(القاهره!A86:C5878,E92,2,3) ->  | G92: SALAD DRESSING | H92: سلاطةدريسنج | I92: KGM | J92: 3
D93: 69 | E93: 320206603 | F93: =VLOOKAnyCol(القاهره!A87:C5879,E93,2,3) -> كريمر 3 جرام بون ممتاز | G93: DRY MILK | H93: لبن جاف باكو | I93: THN | J93: 30
D94: 68 | E94: 320207617 | F94: =VLOOKAnyCol(القاهره!A88:C5880,E94,2,3) -> سكر مغلف 7 جرام بدون شعار | G94: SUGAR | H94: سكر ناعم | I94: THN | J94: 18
D95: 67 | E95: 320208624 | F95: =VLOOKAnyCol(القاهره!A89:C5881,E95,2,3) -> مربى م/بلاستك فاكهه20جم بدون شعار | G95: JAM PORTION | H95: مربى | I95: EA. | J95: 672
D96: 66 | E96: 320209612 | F96: =VLOOKAnyCol(القاهره!A90:C5882,E96,2,3) -> عسل نحل بلاستيك 20جم بدون اسم وشعار | G96: HONEY PORTION | H96: عسل نحل | I96: EA. | J96: 1120
D97: 65 | E97: 320304301 | F97: =VLOOKAnyCol(القاهره!A91:C5883,E97,2,3) -> عصير برتقال كرتون 1 لتر | G97: UICE CARTON 1 LTR | H97: عصير علب كرتون 1لتر | I97: CRT | J97: 15.083
D98: 64 | E98: 320304302 | F98: =VLOOKAnyCol(القاهره!A92:C5884,E98,2,3) -> عصير تفاح علب كرتون 1 لتر | G98: UICE CARTON 1 LTR | H98: عصير علب كرتون 1لتر | I98: CRT | J98: 12.583
D99: 63 | E99: 320304303 | F99: =VLOOKAnyCol(القاهره!A93:C5885,E99,2,3) -> عصير مانجو علب كرتون 1 لتر | G99: UICE CARTON 1 LTR | H99: عصير علب كرتون 1لتر | I99: CRT | J99: 20
D100: 62 | E100: 320304305 | F100: =VLOOKAnyCol(القاهره!A94:C5886,E100,2,3) -> عصير جوافة علب كرتون 1 لتر | G100: UICE CARTON 1 LTR | H100: عصير علب كرتون 1لتر | I100: CRT | J100: 13
D101: 61 | E101: 320304306 | F101: =VLOOKAnyCol(القاهره!A95:C5887,E101,2,3) -> عصير تفاح غير محلى 1 لتر | G101: UICE CARTON 1 LTR | H101: عصير علب كرتون 1لتر | I101: CRT | J101: 10.916
D102: 60 | E102: 320304318 | F102: =VLOOKAnyCol(القاهره!A96:C5888,E102,2,3) -> عصير برتقال بالجرز 1 لتر | G102: UICE CARTON 1 LTR | H102: عصير علب كرتون 1لتر | I102: CRT | J102: 11
D103: 59 | E103: 320305427 | F103: =VLOOKAnyCol(القاهره!A97:C5889,E103,2,3) -> عصير تفاح محلى 235 مللى | G103: VARIED JUICE | H103: عصير انواع | I103: TIN | J103: 1552
D104: 58 | E104: 320305428 | F104: =VLOOKAnyCol(القاهره!A98:C5890,E104,2,3) -> عصير جوافة 235 مللى | G104: VARIED JUICE | H104: عصير انواع | I104: TIN | J104: 2734
D105: 57 | E105: 320305429 | F105: =VLOOKAnyCol(القاهره!A99:C5891,E105,2,3) -> عصير مانجو 235 مللى | G105: VARIED JUICE | H105: عصير انواع | I105: TIN | J105: 485
D106: 56 | E106: 320305430 | F106: =VLOOKAnyCol(القاهره!A100:C5892,E106,2,3) -> عصير برتقال 200مللى غير محلى | G106: VARIED JUICE | H106: عصير انواع | I106: TIN | J106: 767
D107: 55 | E107: 320401502 | F107: =VLOOKAnyCol(القاهره!A101:C5893,E107,2,3) -> مياة معدنية 1.5 لتر | G107: MINERAL WATER | H107: مياه معدنية | I107: BOX | J107: 87.75
D108: 54 | E108: 320401509 | F108: =VLOOKAnyCol(القاهره!A102:C5894,E108,2,3) -> مياة معدنية 600 مللى | G108: MINERAL WATER | H108: مياه معدنية | I108: CRT | J108: 100
D109: 53 | E109: 410104128 | F109: =VLOOKAnyCol(القاهره!A103:C5895,E109,2,3) -> ايروسول | G109: INSECTSIDE | H109: مبيد | I109: EA. | J109: 3
D110: 52 | E110: 420102170 | F110: =VLOOKAnyCol(القاهره!A104:C5896,E110,2,3) -> ديتول سائل 125 مللى | G110: DETERGENTS | H110: منظف/مطهرمطبخ | I110: BOT | J110: 288
D111: 51 | E111: 420102174 | F111: =VLOOKAnyCol(القاهره!A105:C5897,E111,2,3) ->  | G111: DETERGENTS | H111: منظف/مطهرمطبخ | I111: TIN | J111: 1140
D112: 50 | E112: 420103178 | F112: =VLOOKAnyCol(القاهره!A106:C5898,E112,2,3) -> ورق رول للايدى | G112: DETERGENTS | H112: :مغسلة/وغلايات | I112: ROL | J112: 24
D113: 49 | E113: 420201103 | F113: =VLOOKAnyCol(القاهره!A107:C5899,E113,2,3) -> بكر 1500*30 سم 14 ميكرون 4 كجم | G113: PLASTIC WARE | H113: بلاستيك للمطبخ | I113: ROL | J113: 20
D114: 48 | E114: 420201104 | F114: =VLOOKAnyCol(القاهره!A108:C5900,E114,2,3) -> جوانتى بلاستيك | G114: PLASTIC WARE | H114: بلاستيك للمطبخ | I114: THN | J114: 7
D115: 47 | E115: 420201106 | F115: =VLOOKAnyCol(القاهره!A109:C5901,E115,2,3) -> زجاجة عصير فارغة | G115: PLASTIC WARE | H115: بلاستيك للمطبخ | I115: BOT | J115: 55
D116: 46 | E116: 420201112 | F116: =VLOOKAnyCol(القاهره!A110:C5902,E116,2,3) -> بكر تغليف 1500*45 سم 6 كجم | G116: PLASTIC WARE | H116: بلاستيك للمطبخ | I116: ROL | J116: 1
D117: 45 | E117: 420201114 | F117: =VLOOKAnyCol(القاهره!A111:C5903,E117,2,3) -> جوانتى فنيل | G117: PLASTIC WARE | H117: بلاستيك للمطبخ | I117: EA. | J117: 300
D118: 44 | E118: 420202203 | F118: =VLOOKAnyCol(القاهره!A112:C5904,E118,2,3) -> كيس بلاستيك للثلج | G118: PLASTIC BAGS | H118: كيس بلاستيك | I118: KGM | J118: 40
D119: 43 | E119: 420202226 | F119: =VLOOKAnyCol(القاهره!A113:C5905,E119,2,3) ->  | G119: PLASTIC BAGS | H119: كيس بلاستيك | I119: EA. | J119: 1100
D120: 42 | E120: 420301113 | F120: =VLOOKAnyCol(القاهره!A114:C5906,E120,2,3) -> صابون غيرم | G120: TOILETTE MAT | H120: موادتواليت | I120: EA. | J120: 720
D121: 41 | E121: 420301144 | F121: =VLOOKAnyCol(القاهره!A115:C5907,E121,2,3) ->  | G121: TOILETTE MAT | H121: موادتواليت | I121: BOT | J121: 42
D122: 40 | E122: 420401113 | F122: =VLOOKAnyCol(القاهره!A116:C5908,E122,2,3) -> مناديل 2 طبقة بدون شعار | G122: NAPKINS | H122: فوط و مفارش | I122: PKT | J122: 60
D123: 39 | E123: 420401134 | F123: =VLOOKAnyCol(القاهره!A117:C5909,E123,2,3) -> رول مناشف مطبخ 20:23 سم | G123: NAPKINS | H123: فوط و مفارش | I123: ROL | J123: 264
D124: 38 | E124: 420401137 | F124: =VLOOKAnyCol(القاهره!A118:C5910,E124,2,3) -> فوط ورقية بدون الاسم والشعار 2 طبقة | G124: NAPKINS | H124: فوط و مفارش | I124: BOX | J124: 120
D125: 37 | E125: 420401146 | F125: =VLOOKAnyCol(القاهره!A119:C5911,E125,2,3) -> رول تواليت بدون شعار | G125: NAPKINS | H125: فوط و مفارش | I125: ROL | J125: 760
D126: 36 | E126: 420401150 | F126: =VLOOKAnyCol(القاهره!A120:C5912,E126,2,3) -> مناديل سناكس سادة بدون الاسم | G126: NAPKINS | H126: فوط و مفارش | I126: PKT | J126: 300
D127: 35 | E127: 420403109 | F127: =VLOOKAnyCol(القاهره!A121:C5913,E127,2,3) -> حافظة ورق بالخطابات | G127: PAPER WARE | H127: ورقيات | I127: EA. | J127: 1600
D128: 34 | E128: 420404111 | F128: =VLOOKAnyCol(القاهره!A122:C5914,E128,2,3) -> علبة دوبلكس 30*30*10 | G128: CARTOONS | H128: كرتون | I128: EA. | J128: 1700
D129: 33 | E129: 420404122 | F129: =VLOOKAnyCol(القاهره!A123:C5915,E129,2,3) -> قاعدة تورتة مفضضة 36 سم | G129: CARTOONS | H129: كرتون | I129: KGM | J129: 5
D130: 32 | E130: 420405101 | F130: =VLOOKAnyCol(القاهره!A124:C5916,E130,2,3) -> ورق زبدة 500 فرخ | G130: PAPER SHEETS | H130: ورق خام | I130: EA. | J130: 3
D131: 31 | E131: 420901103 | F131: =VLOOKAnyCol(القاهره!A125:C5917,E131,2,3) -> لفة ورق لصق | G131: MISCELLANEOUS | H131: متنوعات | I131: ROL | J131: 43
D132: 30 | E132: 520402106 | F132: =VLOOKAnyCol(القاهره!A126:C5918,E132,2,3) -> طبق الومنيوم 3 عين 24.5*18.5 | G132: ALMONUM | H132: طبق وغطاءالمونيوم | I132: EA. | J132: 3600
D133: 29 | E133: 520402108 | F133: =VLOOKAnyCol(القاهره!A127:C5919,E133,2,3) -> فورمة حلوانى غويطة مدور | G133: ALMONUM | H133: طبق وغطاءالمونيوم | I133: THN | J133: 10.3
D134: 28 | E134: 520402115 | F134: =VLOOKAnyCol(القاهره!A128:C5920,E134,2,3) -> غطاء طبق الومنيوم فضى بدون شعار | G134: ALMONUM | H134: طبق وغطاءالمونيوم | I134: THN | J134: 8
D135: 27 | E135: 520402116 | F135: =VLOOKAnyCol(القاهره!A129:C5921,E135,2,3) -> طبق الومنيوم للكرو 176*136*38 ممل | G135: ALMONUM | H135: طبق وغطاءالمونيوم | I135: EA. | J135: 3000
D136: 26 | E136: 520402122 | F136: =VLOOKAnyCol(القاهره!A130:C5922,E136,2,3) -> رول الومنيوم 2 لتر | G136: ALMONUM | H136: طبق وغطاءالمونيوم | I136: EA. | J136: 7
D137: 25 | E137: 520402126 | F137: =VLOOKAnyCol(القاهره!A131:C5923,E137,2,3) -> طبق الومنيوم مدور بدون غطاء | G137: ALMONUM | H137: طبق وغطاءالمونيوم | I137: THN | J137: 10
D138: 24 | E138: 520402127 | F138: =VLOOKAnyCol(القاهره!A132:C5924,E138,2,3) -> غطاء طبق الومنيوم احمر بدون شعار | G138: ALMONUM | H138: طبق وغطاءالمونيوم | I138: EA. | J138: 6000
D139: 23 | E139: 520402128 | F139: =VLOOKAnyCol(القاهره!A133:C5925,E139,2,3) -> غطاء طبق الومنيوم ازرق بدون شعار | G139: ALMONUM | H139: طبق وغطاءالمونيوم | I139: EA. | J139: 8000
D140: 22 | E140: 520402129 | F140: =VLOOKAnyCol(القاهره!A134:C5926,E140,2,3) -> غطاء طبق الومنيوم ذهبى بدون شعار | G140: ALMONUM | H140: طبق وغطاءالمونيوم | I140: EA. | J140: 8000
D141: 21 | E141: 520402130 | F141: =VLOOKAnyCol(القاهره!A135:C5927,E141,2,3) -> غطاء طبق الومنيوم ابيض بدون شعار | G141: ALMONUM | H141: طبق وغطاءالمونيوم | I141: EA. | J141: 5000
D142: 20 | E142: 520503102 | F142: =VLOOKAnyCol(القاهره!A136:C5928,E142,2,3) -> غطاء مربع شفاف سلطة فاكيوم | G142: PLASTIC COVER PLATE | H142: غطاءطبق بلاستيك | I142: THN | J142: 2.5
D143: 19 | E143: 520505112 | F143: =VLOOKAnyCol(القاهره!A137:C5929,E143,2,3) -> فنجان شاى ازرق بدون شعار | G143: MELAMIN/PLASTIC T.C | H143: فنجان شاى بلاستيك | I143: EA. | J143: 5000
D144: 18 | E144: 520506103 | F144: =VLOOKAnyCol(القاهره!A138:C5930,E144,2,3) -> كوب ابيض بلاستيك | G144: PLASTIC TUMBLER | H144: أكواب | I144: THN | J144: 56
D145: 17 | E145: 520506105 | F145: =VLOOKAnyCol(القاهره!A139:C5931,E145,2,3) -> باول ازرق | G145: PLASTIC TUMBLER | H145: أكواب | I145: THN | J145: 4.5
D146: 16 | E146: 520506119 | F146: =VLOOKAnyCol(القاهره!A140:C5932,E146,2,3) -> باول مربع 7.5*7.5 | G146: PLASTIC TUMBLER | H146: أكواب | I146: EA. | J146: 51000
D147: 15 | E147: 520506120 | F147: =VLOOKAnyCol(القاهره!A141:C5933,E147,2,3) -> غطاء شفاف للباول 7.5*7.5 بدون شعار | G147: PLASTIC TUMBLER | H147: أكواب | I147: EA. | J147: 51000
D148: 14 | E148: 520506141 | F148: =VLOOKAnyCol(القاهره!A142:C5934,E148,2,3) -> كوب هوت 7 اونز تيك اواى | G148: PLASTIC TUMBLER | H148: أكواب | I148: EA. | J148: 2000
D149: 13 | E149: 520506144 | F149: =VLOOKAnyCol(القاهره!A143:C5935,E149,2,3) -> باول ازرق مستطيل فاكيوم | G149: PLASTIC TUMBLER | H149: أكواب | I149: EA. | J149: 5400
D150: 12 | E150: 520506168 | F150: =VLOOKAnyCol(القاهره!A144:C5936,E150,2,3) -> كوب 8 اونز بدون شعار | G150: PLASTIC TUMBLER | H150: أكواب | I150: EA. | J150: 12600
D151: 11 | E151: 520506174 | F151: =VLOOKAnyCol(القاهره!A145:C5937,E151,2,3) ->  | G151: PLASTIC TUMBLER | H151: أكواب | I151: EA. | J151: 1000
D152: 10 | E152: 520507101 | F152: =VLOOKAnyCol(القاهره!A146:C5938,E152,2,3) -> سكينة يلاستيك | G152: PLASTIC CUTLERY | H152: فضيه بلاستيك | I152: THN | J152: 2.1
D153: 9 | E153: 520507103 | F153: =VLOOKAnyCol(القاهره!A147:C5939,E153,2,3) -> معلفقة بلاستيك للشائ | G153: PLASTIC CUTLERY | H153: فضيه بلاستيك | I153: THN | J153: 10
D154: 8 | E154: 520507105 | F154: =VLOOKAnyCol(القاهره!A148:C5940,E154,2,3) -> معلقةشوربةبلاستك كبيرة | G154: PLASTIC CUTLERY | H154: فضيه بلاستيك | I154: EA. | J154: 6000
D155: 7 | E155: 520508119 | F155: =VLOOKAnyCol(القاهره!A149:C5941,E155,2,3) -> كوفير 9*1 | G155: PLASTIC SETS | H155: اطقم بلاستيك | I155: EA. | J155: 9500
D156: 6 | E156: 520509106 | F156: =VLOOKAnyCol(القاهره!A150:C5942,E156,2,3) -> طبق فوم | G156: PLASTIC TRAY | H156: علب بلاستيك وسناكس | I156: THN | J156: 4.3
D157: 5 | E157: 520509118 | F157: =VLOOKAnyCol(القاهره!A151:C5943,E157,2,3) -> علبة سناكس بدون شعار | G157: PLASTIC TRAY | H157: علب بلاستيك وسناكس | I157: EA. | J157: 8000
D158: 4 | E158: 520509121 | F158: =VLOOKAnyCol(القاهره!A152:C5944,E158,2,3) -> علبة لانش بوكس الشروق بدون محتويات | G158: PLASTIC TRAY | H158: علب بلاستيك وسناكس | I158: EA. | J158: 10000
D159: 3 | E159: 520509124 | F159: =VLOOKAnyCol(القاهره!A153:C5945,E159,2,3) -> علبة بلاستك فرنساوى22سم | G159: PLASTIC TRAY | H159: علب بلاستيك وسناكس | I159: EA. | J159: 8000
D160: 2 | E160: 520509125 | F160: =VLOOKAnyCol(القاهره!A154:C5946,E160,2,3) -> طبق فوم 1 كيلو | G160: PLASTIC TRAY | H160: علب بلاستيك وسناكس | I160: EA. | J160: 700
D161: 1 | E161: 721202102 | F161: =VLOOKAnyCol(القاهره!A155:C5947,E161,2,3) -> فوطة معطرة هدايا | G161: GIFTS | H161: هدايا | I161: THN | J161: 4
